Workbook

Sheet Bachmann,Dieter
A1: Serie | B1: Sp.Pu | C1: gew. | D1: verl. | E1: abg. | F1: v.GS | G1: We.Pu. | H1: Durchschnitt Wertungspunkte | J1: Platz am Jahresende : | M1: 19 | N1: in Gruppe : | P1: 1 | Q1: Anzahl der Teilnahmen : | U1: 65
A2: 1 | B2: 240 | C2: 8 | D2: 1 | E2: 5 | F2: 9 | G2: 860 | H2: 860 | K2: Spiel- | L2: Spiele | P2: Wert.- | R2: Anz.Li.- | S2: Anz. | T2: Listenfehler
A3: 2 | B3: 343 | C3: 10 | D3: 0 | E3: 3 | F3: 3 | G3: 963 | H3: 911.5 | K3: punkte | L3: gew. | M3: ver. | N3: abgen. | O3: v.GS | P3: punkte | R3: führer | S3: Null-Fehler | T3: Summe | U3: Schnitt
A4: 3 | B4: 254 | C4: 7 | D4: 2 | E4: 2 | F4: 4 | G4: 624 | H4: 815.6666667 | J4: Max | K4: 803 | L4: 17 | M4: 6 | N4: 9 | O4: 11 | P4: 1707 | R4: 20 | S4: 20 | T4: 0 | U4: 0
A5: 4 | B5: 243 | C5: 9 | D5: 1 | E5: 6 | F5: 6 | G5: 883 | H5: 832.5 | J5: Schnitt | K5: 291.8307692 | L5: 8.538461538 | M5: 1.969230769 | N5: 3.738461538 | O5: 4.661538462 | P5: 781.3692308 | S5: Sum.Abr.geld : | T5: 128
A6: 5 | B6: 254 | C6: 7 | D6: 2 | E6: 2 | F6: 2 | G6: 584 | H6: 782.8 | J6: Min | K6: -134 | L6: 4 | M6: 0 | N6: 1 | O6: 1 | P6: 130 | S6: Schn.Abreizg. : | T6: 1.969230769
A7: 6 | B7: 419 | C7: 8 | D7: 2 | E7: 7 | F7: 7 | G7: 999 | H7: 818.8333333
A8: 7 | B8: 496 | C8: 12 | D8: 0 | E8: 3 | F8: 4 | G8: 1216 | H8: 875.5714286
A9: 8 | B9: 106 | C9: 6 | D9: 3 | E9: 7 | F9: 7 | G9: 536 | H9: 833.125
A10: 9 | B10: 387 | C10: 10 | D10: 2 | E10: 3 | F10: 3 | G10: 907 | H10: 841.3333333
A11: 10 | B11: 651 | C11: 12 | D11: 0 | E11: 8 | F11: 11 | G11: 1581 | H11: 915.3
A12: 11 | B12: 118 | C12: 6 | D12: 1 | E12: 1 | F12: 3 | G12: 458 | H12: 873.7272727
A13: 12 | B13: 466 | C13: 10 | D13: 0 | E13: 3 | F13: 3 | G13: 1086 | H13: 891.4166667
A14: 13 | B14: 602 | C14: 13 | D14: 2 | E14: 5 | F14: 5 | G14: 1302 | H14: 923
A15: 14 | B15: 532 | C15: 11 | D15: 0 | E15: 4 | F15: 6 | G15: 1262 | H15: 947.2142857
A16: 15 | B16: 482 | C16: 8 | D16: 0 | E16: 4 | F16: 6 | G16: 1062 | H16: 954.8666667
A17: 16 | B17: 305 | C17: 10 | D17: 3 | E17: 5 | F17: 5 | G17: 805 | H17: 945.5
A18: 17 | B18: 358 | C18: 5 | D18: 0 | E18: 5 | F18: 5 | G18: 808 | H18: 937.4117647
A19: 18 | B19: 62 | C19: 7 | D19: 4 | E19: 4 | F19: 8 | G19: 452 | H19: 910.4444444
A20: 19 | B20: 216 | C20: 8 | D20: 3 | E20: 2 | F20: 2 | G20: 546 | H20: 891.2631579
A21: 20 | B21: 345 | C21: 8 | D21: 1 | E21: 5 | F21: 6 | G21: 875 | H21: 890.45
A22: 21 | B22: 150 | C22: 9 | D22: 3 | E22: 3 | F22: 3 | G22: 570 | H22: 875.1904762
A23: 22 | B23: 616 | C23: 10 | D23: 3 | E23: 3 | F23: 4 | G23: 1086 | H23: 884.7727273
A24: 23 | B24: 267 | C24: 7 | D24: 1 | E24: 3 | F24: 5 | G24: 717 | H24: 877.4782609
A25: 24 | B25: 386 | C25: 11 | D25: 3 | E25: 4 | F25: 4 | G25: 946 | H25: 880.3333333
A26: 25 | B26: 213 | C26: 5 | D26: 0 | E26: 2 | F26: 7 | G26: 673 | H26: 872.04
A27: 26 | B27: 229 | C27: 8 | D27: 2 | E27: 2 | F27: 2 | G27: 609 | H27: 861.9230769
A28: 27 | B28: -64 | C28: 6 | D28: 6 | E28: 4 | F28: 7 | G28: 146 | H28: 835.4074074
A29: 28 | B29: 161 | C29: 7 | D29: 3 | E29: 6 | F29: 6 | G29: 601 | H29: 827.0357143
A30: 29 | B30: 159 | C30: 8 | D30: 1 | E30: 4 | F30: 4 | G30: 669 | H30: 821.5862069
A31: 30 | B31: -134 | C31: 6 | D31: 2 | E31: 5 | F31: 5 | G31: 266 | H31: 803.0666667
A32: 31 | B32: 99 | C32: 4 | D32: 4 | E32: 2 | F32: 2 | G32: 179 | H32: 782.9354839
A33: 32 | B33: 284 | C33: 7 | D33: 3 | E33: 3 | F33: 4 | G33: 604 | H33: 777.34375
A34: 33 | B34: 354 | C34: 8 | D34: 1 | E34: 4 | F34: 4 | G34: 864 | H34: 779.969697
A35: 34 | H35: 779.969697
A36: 35 | B36: 458 | C36: 10 | D36: 2 | E36: 5 | F36: 5 | G36: 1058 | H36: 788.1470588
A37: 36 | B37: 803 | C37: 11 | D37: 0 | E37: 4 | F37: 4 | G37: 1513 | H37: 808.8571429
A38: 37 | B38: 32 | C38: 6 | D38: 4 | E38: 5 | F38: 5 | G38: 282 | H38: 794.2222222
A39: 38 | H39: 794.2222222
A40: 39 | H40: 794.2222222
A41: 40 | B41: 4 | C41: 7 | D41: 4 | E41: 4 | F41: 4 | G41: 314 | H41: 781.2432432
A42: 41 | B42: 111 | C42: 7 | D42: 2 | E42: 3 | F42: 7 | G42: 571 | H42: 775.7105263
A43: 42 | B43: 256 | C43: 8 | D43: 3 | E43: 6 | F43: 6 | G43: 746 | H43: 774.9487179
A44: 43 | H44: 774.9487179
A45: 44 | H45: 774.9487179
A46: 45 | H46: 774.9487179
A47: 46 | B47: 75 | C47: 7 | D47: 2 | E47: 3 | F47: 4 | G47: 445 | H47: 766.7
A48: 47 | B48: 43 | C48: 10 | D48: 4 | E48: 2 | F48: 2 | G48: 423 | H48: 758.3170732
A49: 48 | B49: 331 | C49: 9 | D49: 0 | E49: 9 | F49: 9 | G49: 1141 | H49: 767.4285714
A50: 49 | H50: 767.4285714
A51: 50 | H51: 767.4285714
A52: 51 | B52: 446 | C52: 7 | D52: 2 | E52: 3 | F52: 4 | G52: 816 | H52: 768.5581395
A53: 52 | B53: 319 | C53: 11 | D53: 1 | E53: 2 | F53: 2 | G53: 899 | H53: 771.5227273
A54: 53 | B54: 389 | C54: 9 | D54: 0 | E54: 1 | F54: 1 | G54: 879 | H54: 773.9111111
A55: 54 | B55: 260 | C55: 8 | D55: 1 | E55: 3 | F55: 5 | G55: 760 | H55: 773.6086957
A56: 55 | H56: 773.6086957
A57: 56 | H57: 773.6086957
A58: 57 | B58: 737 | C58: 17 | D58: 0 | E58: 3 | F58: 3 | G58: 1707 | H58: 793.4680851
A59: 58 | B59: 351 | C59: 8 | D59: 0 | E59: 1 | F59: 1 | G59: 791 | H59: 793.4166667
A60: 59 | B60: 319 | C60: 12 | D60: 2 | E60: 3 | F60: 5 | G60: 969 | H60: 797
A61: 60 | B61: 611 | C61: 12 | D61: 2 | E61: 6 | F61: 6 | G61: 1291 | H61: 806.88
A62: 61 | B62: 221 | C62: 6 | D62: 3 | E62: 4 | F62: 7 | G62: 581 | H62: 802.4509804
A63: 62 | B63: 308 | C63: 12 | D63: 3 | E63: 3 | F63: 3 | G63: 878 | H63: 803.9038462
A64: 63 | B64: 184 | C64: 8 | D64: 2 | E64: 4 | F64: 7 | G64: 694 | H64: 801.8301887
A65: 64 | B65: 566 | C65: 12 | D65: 2 | E65: 1 | F65: 2 | G65: 1126 | H65: 807.8333333
A66: 65 | B66: 233 | C66: 10 | D66: 3 | E66: 3 | F66: 3 | G66: 703 | H66: 805.9272727
A67: 66 | B67: 236 | C67: 7 | D67: 1 | E67: 5 | F67: 5 | G67: 736 | H67: 804.6785714
A68: 67 | B68: -20 | C68: 4 | D68: 5 | E68: 5 | F68: 5 | G68: 130 | H68: 792.8421053
A69: 68 | B69: 446 | C69: 10 | D69: 0 | E69: 7 | F69: 7 | G69: 1226 | H69: 800.3103448
A70: 69 | B70: 226 | C70: 7 | D70: 3 | E70: 1 | F70: 1 | G70: 466 | H70: 794.6440678
A71: 70 | B71: 523 | C71: 11 | D71: 2 | E71: 6 | F71: 6 | G71: 1213 | H71: 801.6166667
A72: 71 | B72: 223 | C72: 7 | D72: 2 | E72: 1 | F72: 4 | G72: 593 | H72: 798.1967213
A73: 72 | B73: 105 | C73: 9 | D73: 4 | E73: 3 | F73: 6 | G73: 535 | H73: 793.9516129
A74: 73 | B74: 34 | C74: 8 | D74: 5 | E74: 3 | F74: 3 | G74: 304 | H74: 786.1746032
A75: 74 | B75: -4 | C75: 6 | D75: 5 | E75: 3 | F75: 6 | G75: 226 | H75: 777.421875
A76: 75 | B76: 544 | C76: 8 | D76: 0 | E76: 2 | F76: 3 | G76: 1034 | H76: 781.3692308

Sheet Beck,Maik
A1: Serie | B1: Sp.Pu | C1: gew. | D1: verl. | E1: abg. | F1: v.GS | G1: We.Pu. | H1: Durchschnitt Wertungspunkte | J1: Platz am Jahresende : | M1: 27 | N1: in Gruppe : | P1: 3 | Q1: Anzahl der Teilnahmen : | U1: 20
A2: 1 | K2: Spiel- | L2: Spiele | P2: Wert.- | R2: Anz.Li.- | S2: Anz. | T2: Listenfehler
A3: 2 | K3: punkte | L3: gew. | M3: ver. | N3: abgen. | O3: v.GS | P3: punkte | R3: führer | S3: Null-Fehler | T3: Summe | U3: Schnitt
A4: 3 | J4: Max | K4: 762 | L4: 14 | M4: 3 | N4: 8 | O4: 10 | P4: 1392 | R4: 6 | S4: 6 | T4: 0 | U4: 0
A5: 4 | J5: Schnitt | K5: 373.05 | L5: 10.1 | M5: 1.5 | N5: 4.1 | O5: 4.9 | P5: 978.55 | S5: Sum.Abr.geld : | T5: 30
A6: 5 | J6: Min | K6: 5 | L6: 4 | M6: 0 | N6: 0 | O6: 1 | P6: 345 | S6: Schn.Abreizg. : | T6: 1.5
A7: 6
A8: 7
A9: 8
A10: 9
A11: 10
A12: 11
A13: 12
A14: 13
A15: 14
A16: 15
A17: 16
A18: 17
A19: 18
A20: 19
A21: 20
A22: 21
A23: 22
A24: 23
A25: 24
A26: 25
A27: 26
A28: 27
A29: 28
A30: 29
A31: 30
A32: 31
A33: 32
A34: 33
A35: 34
A36: 35
A37: 36
A38: 37
A39: 38 | B39: 558 | C39: 12 | D39: 0 | E39: 5 | F39: 5 | G39: 1358 | H39: 1358
A40: 39 | B40: 693 | C40: 11 | D40: 2 | E40: 3 | F40: 3 | G40: 1233 | H40: 1295.5
A41: 40 | H41: 1295.5
A42: 41 | B42: 225 | C42: 9 | D42: 2 | E42: 5 | F42: 10 | G42: 875 | H42: 1155.333333
A43: 42 | B43: 5 | C43: 4 | D43: 2 | E43: 6 | F43: 6 | G43: 345 | H43: 952.75
A44: 43 | B44: 308 | C44: 6 | D44: 2 | E44: 6 | F44: 8 | G44: 748 | H44: 911.8
A45: 44 | B45: 524 | C45: 11 | D45: 1 | E45: 3 | F45: 3 | G45: 1144 | H45: 950.5
A46: 45 | H46: 950.5
A47: 46 | H47: 950.5
A48: 47 | H48: 950.5
A49: 48 | B49: 444 | C49: 9 | D49: 1 | E49: 8 | F49: 8 | G49: 1164 | H49: 981
A50: 49 | H50: 981
A51: 50 | H51: 981
A52: 51 | B52: 392 | C52: 12 | D52: 2 | E52: 2 | F52: 4 | G52: 1012 | H52: 984.875
A53: 52 | B53: 57 | C53: 6 | D53: 2 | E53: 5 | F53: 5 | G53: 457 | H53: 926.2222222
A54: 53 | B54: 98 | C54: 9 | D54: 3 | E54: 6 | F54: 6 | G54: 638 | H54: 897.4
A55: 54 | H55: 897.4
A56: 55 | B56: 762 | C56: 13 | D56: 1 | E56: 0 | F56: 1 | G56: 1392 | H56: 942.3636364
A57: 56 | B57: 461 | C57: 10 | D57: 2 | E57: 5 | F57: 5 | G57: 1061 | H57: 952.25
A58: 57 | B58: 410 | C58: 10 | D58: 1 | E58: 3 | F58: 3 | G58: 980 | H58: 954.3846154
A59: 58 | H59: 954.3846154
A60: 59 | B60: 349 | C60: 14 | D60: 1 | E60: 5 | F60: 7 | G60: 1209 | H60: 972.5714286
A61: 60 | B61: 88 | C61: 11 | D61: 2 | E61: 1 | F61: 3 | G61: 628 | H61: 949.6
A62: 61 | H62: 949.6
A63: 62 | B63: 266 | C63: 10 | D63: 0 | E63: 4 | F63: 4 | G63: 926 | H63: 948.125
A64: 63 | H64: 948.125
A65: 64 | B65: 477 | C65: 11 | D65: 0 | E65: 3 | F65: 5 | G65: 1177 | H65: 961.5882353
A66: 65 | B66: 427 | C66: 12 | D66: 2 | E66: 1 | F66: 1 | G66: 967 | H66: 961.8888889
A67: 66 | H67: 961.8888889
A68: 67 | H68: 961.8888889
A69: 68 | H69: 961.8888889
A70: 69 | H70: 961.8888889
A71: 70 | B71: 329 | C71: 9 | D71: 2 | E71: 5 | F71: 5 | G71: 879 | H71: 957.5263158
A72: 71 | H72: 957.5263158
A73: 72 | B73: 588 | C73: 13 | D73: 2 | E73: 6 | F73: 6 | G73: 1378 | H73: 978.55
A74: 73 | H74: 978.55
A75: 74 | H75: 978.55
A76: 75 | H76: 978.55

Sheet Bernhardt,Lutz
A1: Serie | B1: Sp.Pu | C1: gew. | D1: verl. | E1: abg. | F1: v.GS | G1: We.Pu. | H1: Durchschnitt Wertungspunkte | J1: Platz am Jahresende : | M1: 26 | N1: in Gruppe : | P1: 3 | Q1: Anzahl der Teilnahmen : | U1: 23
A2: 1 | K2: Spiel- | L2: Spiele | P2: Wert.- | R2: Anz.Li.- | S2: Anz. | T2: Listenfehler
A3: 2 | K3: punkte | L3: gew. | M3: ver. | N3: abgen. | O3: v.GS | P3: punkte | R3: führer | S3: Null-Fehler | T3: Summe | U3: Schnitt
A4: 3 | J4: Max | K4: 707 | L4: 13 | M4: 3 | N4: 8 | O4: 8 | P4: 1526 | R4: 4 | S4: 4 | T4: 0 | U4: 0
A5: 4 | J5: Schnitt | K5: 314.2608696 | L5: 8.869565217 | M5: 1.434782609 | N5: 4.304347826 | O5: 4.565217391 | P5: 860.7826087 | S5: Sum.Abr.geld : | T5: 33
A6: 5 | J6: Min | K6: -54 | L6: 3 | M6: 0 | N6: 2 | O6: 2 | P6: 206 | S6: Schn.Abreizg. : | T6: 1.434782609
A7: 6
A8: 7
A9: 8
A10: 9
A11: 10
A12: 11
A13: 12
A14: 13
A15: 14
A16: 15
A17: 16
A18: 17
A19: 18
A20: 19
A21: 20
A22: 21
A23: 22
A24: 23
A25: 24
A26: 25
A27: 26
A28: 27
A29: 28
A30: 29
A31: 30
A32: 31
A33: 32
A34: 33
A35: 34
A36: 35
A37: 36
A38: 37
A39: 38
A40: 39
A41: 40
A42: 41
A43: 42
A44: 43
A45: 44
A46: 45 | B46: 172 | C46: 7 | D46: 2 | E46: 4 | F46: 4 | G46: 582 | H46: 582
A47: 46 | B47: 348 | C47: 9 | D47: 3 | E47: 2 | F47: 5 | G47: 798 | H47: 690
A48: 47 | B48: 318 | C48: 8 | D48: 1 | E48: 5 | F48: 5 | G48: 868 | H48: 749.3333333
A49: 48 | H49: 749.3333333
A50: 49 | B50: 339 | C50: 13 | D50: 2 | E50: 2 | F50: 4 | G50: 1009 | H50: 814.25
A51: 50 | B51: 345 | C51: 8 | D51: 0 | E51: 8 | F51: 8 | G51: 1065 | H51: 864.4
A52: 51 | H52: 864.4
A53: 52 | B53: 596 | C53: 13 | D53: 0 | E53: 7 | F53: 7 | G53: 1526 | H53: 974.6666667
A54: 53 | B54: 429 | C54: 12 | D54: 3 | E54: 2 | F54: 2 | G54: 959 | H54: 972.4285714
A55: 54 | B55: 104 | C55: 6 | D55: 3 | E55: 6 | F55: 6 | G55: 494 | H55: 912.625
A56: 55 | B56: 707 | C56: 13 | D56: 0 | E56: 3 | F56: 3 | G56: 1477 | H56: 975.3333333
A57: 56 | B57: 207 | C57: 9 | D57: 2 | E57: 5 | F57: 5 | G57: 757 | H57: 953.5
A58: 57 | B58: 444 | C58: 10 | D58: 0 | E58: 4 | F58: 4 | G58: 1104 | H58: 967.1818182
A59: 58 | B59: 330 | C59: 8 | D59: 1 | E59: 7 | F59: 7 | G59: 960 | H59: 966.5833333
A60: 59 | H60: 966.5833333
A61: 60 | B61: -54 | C61: 4 | D61: 2 | E61: 4 | F61: 4 | G61: 206 | H61: 908.0769231
A62: 61 | B62: 306 | C62: 8 | D62: 2 | E62: 4 | F62: 4 | G62: 766 | H62: 897.9285714
A63: 62 | B63: 575 | C63: 9 | D63: 0 | E63: 4 | F63: 4 | G63: 1185 | H63: 917.0666667
A64: 63 | B64: 308 | C64: 7 | D64: 1 | E64: 5 | F64: 6 | G64: 788 | H64: 909
A65: 64 | H65: 909
A66: 65 | B66: 223 | C66: 7 | D66: 0 | E66: 6 | F66: 6 | G66: 813 | H66: 903.3529412
A67: 66 | B67: 240 | C67: 10 | D67: 2 | E67: 2 | F67: 2 | G67: 720 | H67: 893.1666667
A68: 67 | B68: 104 | C68: 3 | D68: 1 | E68: 4 | F68: 4 | G68: 364 | H68: 865.3157895
A69: 68 | H69: 865.3157895
A70: 69 | H70: 865.3157895
A71: 70 | H71: 865.3157895
A72: 71 | H72: 865.3157895
A73: 72 | B73: 312 | C73: 10 | D73: 2 | E73: 6 | F73: 6 | G73: 952 | H73: 869.65
A74: 73 | B74: 160 | C74: 8 | D74: 3 | E74: 3 | F74: 3 | G74: 530 | H74: 853.4761905
A75: 74 | B75: 296 | C75: 11 | D75: 2 | E75: 3 | F75: 3 | G75: 866 | H75: 854.0454545
A76: 75 | B76: 419 | C76: 11 | D76: 1 | E76: 3 | F76: 3 | G76: 1009 | H76: 860.7826087

Sheet Blancke,Manfred
A1: Serie | B1: Sp.Pu | C1: gew. | D1: verl. | E1: abg. | F1: v.GS | G1: We.Pu. | H1: Durchschnitt Wertungspunkte | J1: Platz am Jahresende : | M1: 15 | N1: in Gruppe : | P1: 1 | Q1: Anzahl der Teilnahmen : | U1: 73
A2: 1 | K2: Spiel- | L2: Spiele | P2: Wert.- | R2: Anz.Li.- | S2: Anz. | T2: Listenfehler
A3: 2 | K3: punkte | L3: gew. | M3: ver. | N3: abgen. | O3: v.GS | P3: punkte | R3: führer | S3: Null-Fehler | T3: Summe | U3: Schnitt
A4: 3 | B4: 676 | C4: 15 | D4: 3 | E4: 2 | F4: 5 | G4: 1426 | H4: 1426 | J4: Max | K4: 825 | L4: 17 | M4: 7 | N4: 9 | O4: 9 | P4: 1684 | R4: 18 | S4: 18 | T4: 0 | U4: 0
A5: 4 | B5: 154 | C5: 10 | D5: 4 | E5: 3 | F5: 3 | G5: 574 | H5: 1000 | J5: Schnitt | K5: 343 | L5: 10.67123288 | M5: 2.684931507 | N5: 3.068493151 | O5: 4.328767123 | P5: 884.5068493 | S5: Sum.Abr.geld : | T5: 196
A6: 5 | B6: 609 | C6: 13 | D6: 2 | E6: 9 | F6: 9 | G6: 1519 | H6: 1173 | J6: Min | K6: -146 | L6: 5 | M6: 0 | N6: 0 | O6: 0 | P6: -26 | S6: Schn.Abreizg. : | T6: 2.684931507
A7: 6 | B7: 155 | C7: 8 | D7: 3 | E7: 3 | F7: 5 | G7: 555 | H7: 1018.5
A8: 7 | B8: 485 | C8: 12 | D8: 1 | E8: 1 | F8: 2 | G8: 1095 | H8: 1033.8
A9: 8 | B9: 695 | C9: 13 | D9: 1 | E9: 3 | F9: 3 | G9: 1415 | H9: 1097.333333
A10: 9 | B10: 339 | C10: 12 | D10: 3 | E10: 0 | F10: 2 | G10: 849 | H10: 1061.857143
A11: 10 | B11: -132 | C11: 5 | D11: 5 | E11: 3 | F11: 5 | G11: 18 | H11: 931.375
A12: 11 | B12: 477 | C12: 9 | D12: 2 | E12: 3 | F12: 3 | G12: 947 | H12: 933.1111111
A13: 12 | B13: 795 | C13: 11 | D13: 2 | E13: 4 | F13: 6 | G13: 1425 | H13: 982.3
A14: 13 | B14: 267 | C14: 9 | D14: 3 | E14: 3 | F14: 3 | G14: 657 | H14: 952.7272727
A15: 14 | B15: 354 | C15: 12 | D15: 4 | E15: 4 | F15: 4 | G15: 914 | H15: 949.5
A16: 15 | B16: 211 | C16: 9 | D16: 3 | E16: 3 | F16: 5 | G16: 661 | H16: 927.3076923
A17: 16 | B17: 339 | C17: 11 | D17: 2 | E17: 0 | F17: 2 | G17: 849 | H17: 921.7142857
A18: 17 | B18: 234 | C18: 11 | D18: 5 | E18: 0 | F18: 0 | G18: 534 | H18: 895.8666667
A19: 18 | B19: 67 | C19: 9 | D19: 5 | E19: 5 | F19: 5 | G19: 417 | H19: 865.9375
A20: 19 | B20: 681 | C20: 12 | D20: 0 | E20: 5 | F20: 5 | G20: 1481 | H20: 902.1176471
A21: 20 | B21: 567 | C21: 13 | D21: 3 | E21: 1 | F21: 4 | G21: 1187 | H21: 917.9444444
A22: 21 | B22: 464 | C22: 13 | D22: 1 | E22: 0 | F22: 2 | G22: 1124 | H22: 928.7894737
A23: 22 | B23: 338 | C23: 9 | D23: 3 | E23: 2 | F23: 5 | G23: 788 | H23: 921.75
A24: 23 | B24: 579 | C24: 14 | D24: 1 | E24: 3 | F24: 5 | G24: 1379 | H24: 943.5238095
A25: 24 | B25: 318 | C25: 7 | D25: 0 | E25: 5 | F25: 5 | G25: 868 | H25: 940.0909091
A26: 25 | B26: 316 | C26: 12 | D26: 3 | E26: 3 | F26: 4 | G26: 886 | H26: 937.7391304
A27: 26 | B27: 385 | C27: 12 | D27: 2 | E27: 1 | F27: 1 | G27: 925 | H27: 937.2083333
A28: 27 | B28: 517 | C28: 13 | D28: 2 | E28: 2 | F28: 3 | G28: 1157 | H28: 946
A29: 28 | B29: 450 | C29: 14 | D29: 1 | E29: 6 | F29: 8 | G29: 1340 | H29: 961.1538462
A30: 29 | B30: 606 | C30: 10 | D30: 0 | E30: 4 | F30: 6 | G30: 1286 | H30: 973.1851852
A31: 30 | B31: 291 | C31: 8 | D31: 1 | E31: 5 | F31: 5 | G31: 841 | H31: 968.4642857
A32: 31 | B32: 367 | C32: 10 | D32: 3 | E32: 4 | F32: 4 | G32: 877 | H32: 965.3103448
A33: 32 | B33: 364 | C33: 12 | D33: 3 | E33: 2 | F33: 4 | G33: 934 | H33: 964.2666667
A34: 33 | B34: 592 | C34: 13 | D34: 2 | E34: 3 | F34: 7 | G34: 1352 | H34: 976.7741935
A35: 34 | B35: 87 | C35: 10 | D35: 3 | E35: 2 | F35: 3 | G35: 527 | H35: 962.71875
A36: 35 | B36: 205 | C36: 8 | D36: 4 | E36: 3 | F36: 7 | G36: 615 | H36: 952.1818182
A37: 36 | B37: 279 | C37: 13 | D37: 4 | E37: 3 | F37: 3 | G37: 849 | H37: 949.1470588
A38: 37 | B38: 520 | C38: 11 | D38: 1 | E38: 1 | F38: 1 | G38: 1060 | H38: 952.3142857
A39: 38 | B39: 76 | C39: 11 | D39: 5 | E39: 5 | F39: 5 | G39: 526 | H39: 940.4722222
A40: 39 | B40: 514 | C40: 13 | D40: 2 | E40: 3 | F40: 3 | G40: 1184 | H40: 947.0540541
A41: 40 | B41: 495 | C41: 14 | D41: 2 | E41: 4 | F41: 5 | G41: 1245 | H41: 954.8947368
A42: 41 | B42: -80 | C42: 7 | D42: 5 | E42: 3 | F42: 6 | G42: 200 | H42: 935.5384615
A43: 42 | B43: 275 | C43: 12 | D43: 3 | E43: 2 | F43: 2 | G43: 805 | H43: 932.275
A44: 43 | B44: 392 | C44: 10 | D44: 2 | E44: 5 | F44: 8 | G44: 1032 | H44: 934.7073171
A45: 44 | B45: 628 | C45: 14 | D45: 0 | E45: 0 | F45: 0 | G45: 1328 | H45: 944.0714286
A46: 45 | B46: 258 | C46: 10 | D46: 3 | E46: 3 | F46: 9 | G46: 878 | H46: 942.5348837
A47: 46 | B47: 53 | C47: 9 | D47: 6 | E47: 3 | F47: 8 | G47: 443 | H47: 931.1818182
A48: 47 | B48: 404 | C48: 9 | D48: 1 | E48: 5 | F48: 5 | G48: 1004 | H48: 932.8
A49: 48 | B49: 271 | C49: 9 | D49: 3 | E49: 3 | F49: 6 | G49: 751 | H49: 928.8478261
A50: 49 | B50: 714 | C50: 15 | D50: 1 | E50: 8 | F50: 9 | G50: 1684 | H50: 944.9148936
A51: 50 | B51: 380 | C51: 9 | D51: 1 | E51: 6 | F51: 6 | G51: 1020 | H51: 946.4791667
A52: 51 | B52: 623 | C52: 16 | D52: 3 | E52: 1 | F52: 2 | G52: 1333 | H52: 954.3673469
A53: 52 | B53: -146 | C53: 7 | D53: 7 | E53: 4 | F53: 4 | G53: -26 | H53: 934.76
A54: 53 | B54: 242 | C54: 6 | D54: 1 | E54: 1 | F54: 1 | G54: 532 | H54: 926.8627451
A55: 54 | B55: 108 | C55: 6 | D55: 4 | E55: 2 | F55: 6 | G55: 388 | H55: 916.5
A56: 55 | B56: 67 | C56: 5 | D56: 2 | E56: 6 | F56: 6 | G56: 397 | H56: 906.6981132
A57: 56 | B57: 448 | C57: 17 | D57: 3 | E57: 1 | F57: 1 | G57: 1188 | H57: 911.9074074
A58: 57 | B58: 226 | C58: 10 | D58: 5 | E58: 0 | F58: 6 | G58: 656 | H58: 907.2545455
A59: 58 | B59: 516 | C59: 10 | D59: 1 | E59: 6 | F59: 6 | G59: 1206 | H59: 912.5892857
A60: 59 | B60: 522 | C60: 11 | D60: 1 | E60: 7 | F60: 9 | G60: 1292 | H60: 919.245614
A61: 60 | B61: 265 | C61: 9 | D61: 2 | E61: 4 | F61: 5 | G61: 765 | H61: 916.5862069
A62: 61 | B62: 129 | C62: 9 | D62: 5 | E62: 0 | F62: 0 | G62: 329 | H62: 906.6271186
A63: 62 | B63: -130 | C63: 10 | D63: 5 | E63: 2 | F63: 2 | G63: 200 | H63: 894.85
A64: 63 | B64: 341 | C64: 11 | D64: 1 | E64: 2 | F64: 2 | G64: 921 | H64: 895.2786885
A65: 64 | B65: 140 | C65: 8 | D65: 2 | E65: 2 | F65: 3 | G65: 530 | H65: 889.3870968
A66: 65 | B66: 755 | C66: 17 | D66: 3 | E66: 3 | F66: 3 | G66: 1575 | H66: 900.2698413
A67: 66 | B67: 571 | C67: 12 | D67: 2 | E67: 3 | F67: 6 | G67: 1251 | H67: 905.75
A68: 67 | B68: 61 | C68: 10 | D68: 5 | E68: 4 | F68: 4 | G68: 471 | H68: 899.0615385
A69: 68 | B69: 427 | C69: 10 | D69: 2 | E69: 3 | F69: 3 | G69: 947 | H69: 899.7878788
A70: 69 | B70: 253 | C70: 7 | D70: 4 | E70: 1 | F70: 1 | G70: 443 | H70: 892.9701493
A71: 70 | B71: 242 | C71: 9 | D71: 4 | E71: 2 | F71: 4 | G71: 612 | H71: 888.8382353
A72: 71 | B72: 39 | C72: 8 | D72: 4 | E72: 5 | F72: 5 | G72: 439 | H72: 882.3188406
A73: 72 | B73: 383 | C73: 12 | D73: 2 | E73: 6 | F73: 9 | G73: 1153 | H73: 886.1857143
A74: 73 | B74: 132 | C74: 11 | D74: 5 | E74: 0 | F74: 0 | G74: 432 | H74: 879.7887324
A75: 74 | B75: -31 | C75: 10 | D75: 4 | E75: 5 | F75: 8 | G75: 509 | H75: 874.6388889
A76: 75 | B76: 825 | C76: 13 | D76: 0 | E76: 3 | F76: 4 | G76: 1595 | H76: 884.5068493

Sheet Endt,Angelika
A1: Serie | B1: Sp.Pu | C1: gew. | D1: verl. | E1: abg. | F1: v.GS | G1: We.Pu. | H1: Durchschnitt Wertungspunkte | J1: Platz am Jahresende : | M1: 5 | N1: in Gruppe : | P1: 1 | Q1: Anzahl der Teilnahmen : | U1: 51
A2: 1 | B2: 371 | C2: 8 | D2: 2 | E2: 8 | F2: 10 | G2: 971 | H2: 971 | K2: Spiel- | L2: Spiele | P2: Wert.- | R2: Anz.Li.- | S2: Anz. | T2: Listenfehler
A3: 2 | B3: 350 | C3: 11 | D3: 3 | E3: 4 | F3: 4 | G3: 910 | H3: 940.5 | K3: punkte | L3: gew. | M3: ver. | N3: abgen. | O3: v.GS | P3: punkte | R3: führer | S3: Null-Fehler | T3: Summe | U3: Schnitt
A4: 3 | B4: 577 | C4: 11 | D4: 2 | E4: 6 | F4: 8 | G4: 1267 | H4: 1049.333333 | J4: Max | K4: 953 | L4: 17 | M4: 4 | N4: 9 | O4: 10 | P4: 1885 | R4: 15 | S4: 15 | T4: 0 | U4: 0
A5: 4 | B5: 351 | C5: 10 | D5: 2 | E5: 3 | F5: 3 | G5: 871 | H5: 1004.75 | J5: Schnitt | K5: 402.627451 | L5: 9.882352941 | M5: 1.431372549 | N5: 3.862745098 | O5: 4.960784314 | P5: 991.6470588 | S5: Sum.Abr.geld : | T5: 73
A6: 5 | B6: 356 | C6: 10 | D6: 1 | E6: 5 | F6: 5 | G6: 1006 | H6: 1005 | J6: Min | K6: -101 | L6: 4 | M6: 0 | N6: 0 | O6: 0 | P6: -21 | S6: Schn.Abreizg. : | T6: 1.431372549
A7: 6 | B7: 355 | C7: 10 | D7: 2 | E7: 2 | F7: 2 | G7: 815 | H7: 973.3333333
A8: 7 | B8: 516 | C8: 6 | D8: 1 | E8: 3 | F8: 4 | G8: 886 | H8: 960.8571429
A9: 8 | B9: 86 | C9: 8 | D9: 3 | E9: 3 | F9: 3 | G9: 456 | H9: 897.75
A10: 9 | B10: 530 | C10: 15 | D10: 1 | E10: 7 | F10: 7 | G10: 1510 | H10: 965.7777778
A11: 10 | B11: 101 | C11: 7 | D11: 3 | E11: 2 | F11: 3 | G11: 391 | H11: 908.3
A12: 11 | B12: 363 | C12: 12 | D12: 3 | E12: 3 | F12: 3 | G12: 933 | H12: 910.5454545
A13: 12 | B13: 435 | C13: 11 | D13: 2 | E13: 1 | F13: 6 | G13: 1065 | H13: 923.4166667
A14: 13 | H14: 923.4166667
A15: 14 | B15: 437 | C15: 11 | D15: 2 | E15: 1 | F15: 1 | G15: 927 | H15: 923.6923077
A16: 15 | B16: 468 | C16: 9 | D16: 0 | E16: 5 | F16: 8 | G16: 1158 | H16: 940.4285714
A17: 16 | B17: 410 | C17: 8 | D17: 1 | E17: 2 | F17: 3 | G17: 850 | H17: 934.4
A18: 17 | B18: 484 | C18: 13 | D18: 0 | E18: 5 | F18: 5 | G18: 1334 | H18: 959.375
A19: 18 | B19: 366 | C19: 8 | D19: 0 | E19: 4 | F19: 6 | G19: 946 | H19: 958.5882353
A20: 19 | H20: 958.5882353
A21: 20 | H21: 958.5882353
A22: 21 | H22: 958.5882353
A23: 22 | H23: 958.5882353
A24: 23 | H24: 958.5882353
A25: 24 | H25: 958.5882353
A26: 25 | H26: 958.5882353
A27: 26 | H27: 958.5882353
A28: 27 | H28: 958.5882353
A29: 28 | B29: 214 | C29: 9 | D29: 2 | E29: 3 | F29: 4 | G29: 684 | H29: 943.3333333
A30: 29 | B30: 925 | C30: 17 | D30: 1 | E30: 4 | F30: 4 | G30: 1885 | H30: 992.8947368
A31: 30 | B31: 302 | C31: 7 | D31: 2 | E31: 2 | F31: 4 | G31: 672 | H31: 976.85
A32: 31 | B32: 698 | C32: 15 | D32: 1 | E32: 5 | F32: 5 | G32: 1598 | H32: 1006.428571
A33: 32 | B33: 519 | C33: 10 | D33: 2 | E33: 2 | F33: 2 | G33: 979 | H33: 1005.181818
A34: 33 | B34: 443 | C34: 9 | D34: 0 | E34: 7 | F34: 9 | G34: 1163 | H34: 1012.043478
A35: 34 | H35: 1012.043478
A36: 35 | B36: 326 | C36: 9 | D36: 0 | E36: 2 | F36: 3 | G36: 866 | H36: 1005.958333
A37: 36 | B37: 699 | C37: 16 | D37: 0 | E37: 6 | F37: 6 | G37: 1739 | H37: 1035.28
A38: 37 | B38: 237 | C38: 8 | D38: 2 | E38: 5 | F38: 7 | G38: 747 | H38: 1024.192308
A39: 38 | H39: 1024.192308
A40: 39 | H40: 1024.192308
A41: 40 | B41: 361 | C41: 7 | D41: 0 | E41: 6 | F41: 6 | G41: 951 | H41: 1021.481481
A42: 41 | B42: 181 | C42: 9 | D42: 2 | E42: 2 | F42: 5 | G42: 681 | H42: 1009.321429
A43: 42 | B43: 151 | C43: 9 | D43: 3 | E43: 5 | F43: 5 | G43: 651 | H43: 996.9655172
A44: 43 | B44: 350 | C44: 8 | D44: 1 | E44: 3 | F44: 4 | G44: 820 | H44: 991.0666667
A45: 44 | B45: -101 | C45: 4 | D45: 4 | E45: 2 | F45: 2 | G45: -21 | H45: 958.4193548
A46: 45 | B46: 502 | C46: 11 | D46: 0 | E46: 6 | F46: 6 | G46: 1292 | H46: 968.84375
A47: 46 | H47: 968.84375
A48: 47 | B48: 530 | C48: 10 | D48: 0 | E48: 7 | F48: 7 | G48: 1310 | H48: 979.1818182
A49: 48 | B49: 756 | C49: 9 | D49: 0 | E49: 3 | F49: 5 | G49: 1356 | H49: 990.2647059
A50: 49 | B50: 248 | C50: 10 | D50: 1 | E50: 5 | F50: 8 | G50: 938 | H50: 988.7714286
A51: 50 | B51: 459 | C51: 11 | D51: 1 | E51: 1 | F51: 1 | G51: 999 | H51: 989.0555556
A52: 51 | B52: 284 | C52: 6 | D52: 0 | E52: 3 | F52: 5 | G52: 734 | H52: 982.1621622
A53: 52 | B53: 316 | C53: 10 | D53: 2 | E53: 4 | F53: 6 | G53: 896 | H53: 979.8947368
A54: 53 | B54: 524 | C54: 13 | D54: 1 | E54: 0 | F54: 0 | G54: 1124 | H54: 983.5897436
A55: 54 | B55: 417 | C55: 10 | D55: 2 | E55: 4 | F55: 8 | G55: 1057 | H55: 985.425
A56: 55 | H56: 985.425
A57: 56 | H57: 985.425
A58: 57 | B58: 360 | C58: 7 | D58: 1 | E58: 7 | F58: 8 | G58: 900 | H58: 983.3414634
A59: 58 | B59: 323 | C59: 12 | D59: 3 | E59: 2 | F59: 2 | G59: 853 | H59: 980.2380952
A60: 59 | B60: 313 | C60: 10 | D60: 4 | E60: 2 | F60: 3 | G60: 703 | H60: 973.7906977
A61: 60 | B61: 376 | C61: 10 | D61: 2 | E61: 0 | F61: 4 | G61: 896 | H61: 972.0227273
A62: 61 | B62: 456 | C62: 10 | D62: 1 | E62: 2 | F62: 3 | G62: 996 | H62: 972.5555556
A63: 62 | H63: 972.5555556
A64: 63 | H64: 972.5555556
A65: 64 | B65: 461 | C65: 10 | D65: 0 | E65: 6 | F65: 10 | G65: 1261 | H65: 978.826087
A66: 65 | B66: 185 | C66: 6 | D66: 1 | E66: 2 | F66: 2 | G66: 515 | H66: 968.9574468
A67: 66 | B67: 321 | C67: 9 | D67: 0 | E67: 6 | F67: 8 | G67: 1011 | H67: 969.8333333
A68: 67 | B68: 626 | C68: 12 | D68: 1 | E68: 9 | F68: 9 | G68: 1536 | H68: 981.3877551
A69: 68 | B69: 263 | C69: 8 | D69: 2 | E69: 6 | F69: 7 | G69: 773 | H69: 977.22
A70: 69 | B70: 953 | C70: 15 | D70: 3 | E70: 4 | F70: 4 | G70: 1713 | H70: 991.6470588
A71: 70 | H71: 991.6470588
A72: 71 | H72: 991.6470588
A73: 72 | H73: 991.6470588
A74: 73 | H74: 991.6470588
A75: 74 | H75: 991.6470588
A76: 75 | H76: 991.6470588

Sheet Franke,Thomas
A1: Serie | B1: Sp.Pu | C1: gew. | D1: verl. | E1: abg. | F1: v.GS | G1: We.Pu. | H1: Durchschnitt Wertungspunkte | J1: Platz am Jahresende : | M1: 16 | N1: in Gruppe : | P1: 1 | Q1: Anzahl der Teilnahmen : | U1: 60
A2: 1 | B2: 364 | C2: 11 | D2: 1 | E2: 2 | F2: 5 | G2: 1014 | H2: 1014 | K2: Spiel- | L2: Spiele | P2: Wert.- | R2: Anz.Li.- | S2: Anz. | T2: Listenfehler
A3: 2 | B3: 113 | C3: 8 | D3: 2 | E3: 5 | F3: 5 | G3: 613 | H3: 813.5 | K3: punkte | L3: gew. | M3: ver. | N3: abgen. | O3: v.GS | P3: punkte | R3: führer | S3: Null-Fehler | T3: Summe | U3: Schnitt
A4: 3 | B4: 144 | C4: 5 | D4: 0 | E4: 5 | F4: 8 | G4: 634 | H4: 753.6666667 | J4: Max | K4: 826 | L4: 17 | M4: 8 | N4: 10 | O4: 12 | P4: 1833 | R4: 21 | S4: 21 | T4: 0 | U4: 0
A5: 4 | B5: 178 | C5: 9 | D5: 2 | E5: 5 | F5: 5 | G5: 728 | H5: 747.25 | J5: Schnitt | K5: 314.0166667 | L5: 9 | M5: 1.433333333 | N5: 4.25 | O5: 5.566666667 | P5: 876.1833333 | S5: Sum.Abr.geld : | T5: 86
A6: 5 | B6: 245 | C6: 8 | D6: 2 | E6: 4 | F6: 4 | G6: 705 | H6: 738.8 | J6: Min | K6: -204 | L6: 4 | M6: 0 | N6: 1 | O6: 1 | P6: -214 | S6: Schn.Abreizg. : | T6: 1.433333333
A7: 6 | B7: 507 | C7: 13 | D7: 0 | E7: 1 | F7: 2 | G7: 1217 | H7: 818.5
A8: 7 | B8: 238 | C8: 6 | D8: 1 | E8: 2 | F8: 3 | G8: 578 | H8: 784.1428571
A9: 8 | B9: 137 | C9: 7 | D9: 1 | E9: 5 | F9: 5 | G9: 637 | H9: 765.75
A10: 9 | B10: 396 | C10: 10 | D10: 1 | E10: 4 | F10: 4 | G10: 1006 | H10: 792.4444444
A11: 10 | B11: 637 | C11: 14 | D11: 1 | E11: 4 | F11: 4 | G11: 1447 | H11: 857.9
A12: 11 | B12: 826 | C12: 14 | D12: 0 | E12: 2 | F12: 4 | G12: 1646 | H12: 929.5454545
A13: 12 | B13: 87 | C13: 7 | D13: 3 | E13: 4 | F13: 6 | G13: 467 | H13: 891
A14: 13 | B14: 803 | C14: 17 | D14: 0 | E14: 4 | F14: 6 | G14: 1833 | H14: 963.4615385
A15: 14 | B15: 275 | C15: 9 | D15: 1 | E15: 4 | F15: 5 | G15: 825 | H15: 953.5714286
A16: 15 | B16: 426 | C16: 13 | D16: 1 | E16: 1 | F16: 6 | G16: 1206 | H16: 970.4
A17: 16 | B17: 360 | C17: 10 | D17: 1 | E17: 4 | F17: 7 | G17: 1020 | H17: 973.5
A18: 17 | B18: 261 | C18: 8 | D18: 1 | E18: 6 | F18: 6 | G18: 851 | H18: 966.2941176
A19: 18 | B19: 369 | C19: 12 | D19: 2 | E19: 5 | F19: 6 | G19: 1049 | H19: 970.8888889
A20: 19 | B20: 359 | C20: 7 | D20: 1 | E20: 5 | F20: 7 | G20: 869 | H20: 965.5263158
A21: 20 | B21: 361 | C21: 11 | D21: 1 | E21: 4 | F21: 8 | G21: 1101 | H21: 972.3
A22: 21 | B22: 374 | C22: 10 | D22: 0 | E22: 6 | F22: 6 | G22: 1114 | H22: 979.047619
A23: 22 | H23: 979.047619
A24: 23 | H24: 979.047619
A25: 24 | H25: 979.047619
A26: 25 | H26: 979.047619
A27: 26 | H27: 979.047619
A28: 27 | H28: 979.047619
A29: 28 | B29: 140 | C29: 5 | D29: 1 | E29: 7 | F29: 8 | G29: 580 | H29: 960.9090909
A30: 29 | B30: 1 | C30: 4 | D30: 3 | E30: 2 | F30: 2 | G30: 131 | H30: 924.826087
A31: 30 | B31: 376 | C31: 16 | D31: 3 | E31: 4 | F31: 4 | G31: 1186 | H31: 935.7083333
A32: 31 | B32: 340 | C32: 9 | D32: 5 | E32: 7 | F32: 12 | G32: 900 | H32: 934.28
A33: 32 | B33: 310 | C33: 7 | D33: 0 | E33: 7 | F33: 11 | G33: 990 | H33: 936.4230769
A34: 33 | B34: 100 | C34: 4 | D34: 2 | E34: 5 | F34: 6 | G34: 380 | H34: 915.8148148
A35: 34 | B35: 281 | C35: 7 | D35: 0 | E35: 5 | F35: 6 | G35: 811 | H35: 912.0714286
A36: 35 | B36: 480 | C36: 8 | D36: 0 | E36: 10 | F36: 11 | G36: 1210 | H36: 922.3448276
A37: 36 | B37: 190 | C37: 6 | D37: 2 | E37: 5 | F37: 5 | G37: 590 | H37: 911.2666667
A38: 37 | B38: 461 | C38: 11 | D38: 0 | E38: 1 | F38: 1 | G38: 1051 | H38: 915.7741935
A39: 38 | H39: 915.7741935
A40: 39 | H40: 915.7741935
A41: 40 | B41: 93 | C41: 6 | D41: 2 | E41: 8 | F41: 9 | G41: 563 | H41: 904.75
A42: 41 | B42: 352 | C42: 12 | D42: 2 | E42: 1 | F42: 4 | G42: 972 | H42: 906.7878788
A43: 42 | B43: 336 | C43: 7 | D43: 1 | E43: 4 | F43: 4 | G43: 796 | H43: 903.5294118
A44: 43 | H44: 903.5294118
A45: 44 | H45: 903.5294118
A46: 45 | B46: 266 | C46: 7 | D46: 2 | E46: 4 | F46: 4 | G46: 676 | H46: 897.0285714
A47: 46 | H47: 897.0285714
A48: 47 | B48: 138 | C48: 7 | D48: 4 | E48: 3 | F48: 3 | G48: 408 | H48: 883.4444444
A49: 48 | B49: -204 | C49: 7 | D49: 8 | E49: 1 | F49: 1 | G49: -214 | H49: 853.7837838
A50: 49 | B50: 435 | C50: 8 | D50: 2 | E50: 5 | F50: 8 | G50: 975 | H50: 856.9736842
A51: 50 | B51: 503 | C51: 11 | D51: 1 | E51: 1 | F51: 1 | G51: 1043 | H51: 861.7435897
A52: 51 | B52: 704 | C52: 13 | D52: 0 | E52: 4 | F52: 6 | G52: 1534 | H52: 878.55
A53: 52 | B53: 274 | C53: 6 | D53: 1 | E53: 3 | F53: 8 | G53: 764 | H53: 875.7560976
A54: 53 | B54: 464 | C54: 10 | D54: 1 | E54: 7 | F54: 7 | G54: 1194 | H54: 883.3333333
A55: 54 | B55: 497 | C55: 13 | D55: 0 | E55: 5 | F55: 7 | G55: 1357 | H55: 894.3488372
A56: 55 | H56: 894.3488372
A57: 56 | H57: 894.3488372
A58: 57 | B58: 39 | C58: 7 | D58: 3 | E58: 8 | F58: 8 | G58: 479 | H58: 884.9090909
A59: 58 | B59: 310 | C59: 6 | D59: 1 | E59: 4 | F59: 4 | G59: 720 | H59: 881.2444444
A60: 59 | B60: 129 | C60: 6 | D60: 1 | E60: 3 | F60: 6 | G60: 559 | H60: 874.2391304
A61: 60 | B61: 627 | C61: 12 | D61: 0 | E61: 5 | F61: 8 | G61: 1467 | H61: 886.8510638
A62: 61 | B62: 183 | C62: 8 | D62: 3 | E62: 4 | F62: 7 | G62: 643 | H62: 881.7708333
A63: 62 | B63: 291 | C63: 6 | D63: 1 | E63: 6 | F63: 6 | G63: 781 | H63: 879.7142857
A64: 63 | B64: 75 | C64: 8 | D64: 3 | E64: 5 | F64: 6 | G64: 505 | H64: 872.22
A65: 64 | B65: 289 | C65: 9 | D65: 0 | E65: 3 | F65: 5 | G65: 889 | H65: 872.5490196
A66: 65 | B66: 291 | C66: 10 | D66: 3 | E66: 2 | F66: 2 | G66: 721 | H66: 869.6346154
A67: 66 | B67: 619 | C67: 14 | D67: 1 | E67: 5 | F67: 5 | G67: 1469 | H67: 880.9433962
A68: 67 | B68: 379 | C68: 12 | D68: 2 | E68: 2 | F68: 2 | G68: 959 | H68: 882.3888889
A69: 68 | B69: 476 | C69: 12 | D69: 2 | E69: 3 | F69: 3 | G69: 1096 | H69: 886.2727273
A70: 69 | B70: 117 | C70: 5 | D70: 1 | E70: 2 | F70: 2 | G70: 397 | H70: 877.5357143
A71: 70 | H71: 877.5357143
A72: 71 | H72: 877.5357143
A73: 72 | B73: 122 | C73: 4 | D73: 0 | E73: 8 | F73: 10 | G73: 622 | H73: 873.0526316
A74: 73 | B74: 271 | C74: 11 | D74: 2 | E74: 6 | F74: 6 | G74: 961 | H74: 874.5689655
A75: 74 | B75: 310 | C75: 8 | D75: 1 | E75: 6 | F75: 10 | G75: 960 | H75: 876.0169492
A76: 75 | B76: 316 | C76: 9 | D76: 0 | E76: 2 | F76: 4 | G76: 886 | H76: 876.1833333

Sheet Gibson,Sybille
A1: Serie | B1: Sp.Pu | C1: gew. | D1: verl. | E1: abg. | F1: v.GS | G1: We.Pu. | H1: Durchschnitt Wertungspunkte | J1: Platz am Jahresende : | M1: 23 | N1: in Gruppe : | P1: 1 | Q1: Anzahl der Teilnahmen : | U1: 32
A2: 1 | B2: 197 | C2: 9 | D2: 4 | E2: 5 | F2: 7 | G2: 657 | H2: 657 | K2: Spiel- | L2: Spiele | P2: Wert.- | R2: Anz.Li.- | S2: Anz. | T2: Listenfehler
A3: 2 | B3: 65 | C3: 8 | D3: 3 | E3: 3 | F3: 3 | G3: 435 | H3: 546 | K3: punkte | L3: gew. | M3: ver. | N3: abgen. | O3: v.GS | P3: punkte | R3: führer | S3: Null-Fehler | T3: Summe | U3: Schnitt
A4: 3 | B4: 55 | C4: 8 | D4: 2 | E4: 8 | F4: 11 | G4: 685 | H4: 592.3333333 | J4: Max | K4: 525 | L4: 17 | M4: 7 | N4: 8 | O4: 11 | P4: 1342 | R4: 5 | S4: 5 | T4: 0 | U4: 0
A5: 4 | B5: 304 | C5: 11 | D5: 2 | E5: 3 | F5: 3 | G5: 874 | H5: 662.75 | J5: Schnitt | K5: 238.09375 | L5: 9.40625 | M5: 2.4375 | N5: 3.8125 | O5: 4.75 | P5: 745.28125 | S5: Sum.Abr.geld : | T5: 78
A6: 5 | H6: 662.75 | J6: Min | K6: -270 | L6: 5 | M6: 0 | N6: 0 | O6: 0 | P6: -220 | S6: Schn.Abreizg. : | T6: 2.4375
A7: 6 | B7: 272 | C7: 10 | D7: 3 | E7: 4 | F7: 4 | G7: 742 | H7: 678.6
A8: 7 | H8: 678.6
A9: 8 | H9: 678.6
A10: 9 | B10: 252 | C10: 9 | D10: 1 | E10: 5 | F10: 5 | G10: 852 | H10: 707.5
A11: 10 | B11: 304 | C11: 10 | D11: 1 | E11: 4 | F11: 4 | G11: 914 | H11: 737
A12: 11 | H12: 737
A13: 12 | B13: -34 | C13: 8 | D13: 3 | E13: 5 | F13: 5 | G13: 366 | H13: 690.625
A14: 13 | B14: 302 | C14: 11 | D14: 3 | E14: 5 | F14: 9 | G14: 972 | H14: 721.8888889
A15: 14 | H15: 721.8888889
A16: 15 | B16: 349 | C16: 11 | D16: 4 | E16: 2 | F16: 4 | G16: 819 | H16: 731.6
A17: 16 | B17: 219 | C17: 7 | D17: 4 | E17: 5 | F17: 7 | G17: 579 | H17: 717.7272727
A18: 17 | H18: 717.7272727
A19: 18 | B19: 208 | C19: 9 | D19: 3 | E19: 2 | F19: 3 | G19: 598 | H19: 707.75
A20: 19 | B20: 348 | C20: 12 | D20: 3 | E20: 1 | F20: 1 | G20: 838 | H20: 717.7692308
A21: 20 | B21: 192 | C21: 8 | D21: 1 | E21: 4 | F21: 5 | G21: 692 | H21: 715.9285714
A22: 21 | H22: 715.9285714
A23: 22 | B23: 327 | C23: 10 | D23: 1 | E23: 4 | F23: 6 | G23: 957 | H23: 732
A24: 23 | B24: 200 | C24: 5 | D24: 1 | E24: 6 | F24: 6 | G24: 640 | H24: 726.25
A25: 24 | H25: 726.25
A26: 25 | B26: 173 | C26: 8 | D26: 3 | E26: 3 | F26: 6 | G26: 603 | H26: 719
A27: 26 | H27: 719
A28: 27 | B28: 378 | C28: 11 | D28: 1 | E28: 4 | F28: 4 | G28: 1038 | H28: 736.7222222
A29: 28 | B29: -270 | C29: 5 | D29: 7 | E29: 3 | F29: 5 | G29: -220 | H29: 686.3684211
A30: 29 | H30: 686.3684211
A31: 30 | H31: 686.3684211
A32: 31 | B32: 257 | C32: 8 | D32: 1 | E32: 5 | F32: 5 | G32: 807 | H32: 692.4
A33: 32 | H33: 692.4
A34: 33 | H34: 692.4
A35: 34 | B35: 482 | C35: 17 | D35: 1 | E35: 0 | F35: 2 | G35: 1342 | H35: 723.3333333
A36: 35 | B36: 145 | C36: 7 | D36: 2 | E36: 5 | F36: 5 | G36: 595 | H36: 717.5
A37: 36 | H37: 717.5
A38: 37 | H38: 717.5
A39: 38 | H39: 717.5
A40: 39 | H40: 717.5
A41: 40 | H41: 717.5
A42: 41 | B42: 518 | C42: 9 | D42: 0 | E42: 4 | F42: 4 | G42: 1128 | H42: 735.3478261
A43: 42 | H43: 735.3478261
A44: 43 | B44: 370 | C44: 13 | D44: 2 | E44: 2 | F44: 2 | G44: 1000 | H44: 746.375
A45: 44 | H45: 746.375
A46: 45 | H46: 746.375
A47: 46 | H47: 746.375
A48: 47 | H48: 746.375
A49: 48 | H49: 746.375
A50: 49 | H50: 746.375
A51: 50 | H51: 746.375
A52: 51 | H52: 746.375
A53: 52 | B53: 525 | C53: 15 | D53: 1 | E53: 2 | F53: 2 | G53: 1305 | H53: 768.72
A54: 53 | H54: 768.72
A55: 54 | B55: 57 | C55: 6 | D55: 3 | E55: 2 | F55: 4 | G55: 327 | H55: 751.7307692
A56: 55 | B56: 520 | C56: 13 | D56: 2 | E56: 6 | F56: 8 | G56: 1310 | H56: 772.4074074
A57: 56 | H57: 772.4074074
A58: 57 | H58: 772.4074074
A59: 58 | H59: 772.4074074
A60: 59 | B60: 298 | C60: 9 | D60: 3 | E60: 7 | F60: 7 | G60: 808 | H60: 773.6785714
A61: 60 | H61: 773.6785714
A62: 61 | H62: 773.6785714
A63: 62 | H63: 773.6785714
A64: 63 | H64: 773.6785714
A65: 64 | H65: 773.6785714
A66: 65 | H66: 773.6785714
A67: 66 | B67: 238 | C67: 9 | D67: 2 | E67: 6 | F67: 6 | G67: 828 | H67: 775.5517241
A68: 67 | H68: 775.5517241
A69: 68 | B69: 34 | C69: 5 | D69: 4 | E69: 2 | F69: 2 | G69: 164 | H69: 755.1666667
A70: 69 | H70: 755.1666667
A71: 70 | B71: 303 | C71: 12 | D71: 3 | E71: 0 | F71: 0 | G71: 753 | H71: 755.0967742
A72: 71 | H72: 755.0967742
A73: 72 | B73: 31 | C73: 8 | D73: 4 | E73: 5 | F73: 7 | G73: 441 | H73: 745.28125
A74: 73 | H74: 745.28125
A75: 74 | H75: 745.28125
A76: 75 | H76: 745.28125

Sheet Hartmann,Andreas
A1: Serie | B1: Sp.Pu | C1: gew. | D1: verl. | E1: abg. | F1: v.GS | G1: We.Pu. | H1: Durchschnitt Wertungspunkte | J1: Platz am Jahresende : | M1: 6 | N1: in Gruppe : | P1: 1 | Q1: Anzahl der Teilnahmen : | U1: 59
A2: 1 | B2: 623 | C2: 12 | D2: 2 | E2: 5 | F2: 5 | G2: 1273 | H2: 1273 | K2: Spiel- | L2: Spiele | P2: Wert.- | R2: Anz.Li.- | S2: Anz. | T2: Listenfehler
A3: 2 | B3: 652 | C3: 15 | D3: 4 | E3: 4 | F3: 4 | G3: 1362 | H3: 1317.5 | K3: punkte | L3: gew. | M3: ver. | N3: abgen. | O3: v.GS | P3: punkte | R3: führer | S3: Null-Fehler | T3: Summe | U3: Schnitt
A4: 3 | B4: 888 | C4: 15 | D4: 1 | E4: 3 | F4: 4 | G4: 1708 | H4: 1447.666667 | J4: Max | K4: 888 | L4: 15 | M4: 6 | N4: 10 | O4: 12 | P4: 1708 | R4: 19 | S4: 19 | T4: 0 | U4: 0
A5: 4 | B5: 285 | C5: 9 | D5: 2 | E5: 5 | F5: 5 | G5: 835 | H5: 1294.5 | J5: Schnitt | K5: 394.9152542 | L5: 10 | M5: 1.830508475 | N5: 4 | O5: 5.288135593 | P5: 974.2372881 | S5: Sum.Abr.geld : | T5: 108
A6: 5 | B6: 441 | C6: 12 | D6: 3 | E6: 3 | F6: 3 | G6: 1011 | H6: 1237.8 | J6: Min | K6: -109 | L6: 4 | M6: 0 | N6: 0 | O6: 1 | P6: 310 | S6: Schn.Abreizg. : | T6: 1.830508475
A7: 6 | B7: 877 | C7: 14 | D7: 0 | E7: 2 | F7: 4 | G7: 1697 | H7: 1314.333333
A8: 7 | B8: 663 | C8: 9 | D8: 0 | E8: 4 | F8: 4 | G8: 1233 | H8: 1302.714286
A9: 8 | B9: 476 | C9: 9 | D9: 0 | E9: 10 | F9: 10 | G9: 1326 | H9: 1305.625
A10: 9 | B10: 343 | C10: 7 | D10: 1 | E10: 4 | F10: 5 | G10: 793 | H10: 1248.666667
A11: 10 | B11: 231 | C11: 6 | D11: 1 | E11: 6 | F11: 9 | G11: 751 | H11: 1198.9
A12: 11 | B12: 600 | C12: 11 | D12: 1 | E12: 7 | F12: 7 | G12: 1310 | H12: 1209
A13: 12 | H13: 1209
A14: 13 | H14: 1209
A15: 14 | H15: 1209
A16: 15 | B16: 70 | C16: 6 | D16: 3 | E16: 3 | F16: 3 | G16: 310 | H16: 1134.083333
A17: 16 | B17: 545 | C17: 11 | D17: 0 | E17: 5 | F17: 5 | G17: 1245 | H17: 1142.615385
A18: 17 | B18: 104 | C18: 6 | D18: 3 | E18: 2 | F18: 2 | G18: 334 | H18: 1084.857143
A19: 18 | B19: 705 | C19: 14 | D19: 1 | E19: 4 | F19: 6 | G19: 1535 | H19: 1114.866667
A20: 19 | H20: 1114.866667
A21: 20 | B21: 98 | C21: 4 | D21: 2 | E21: 5 | F21: 7 | G21: 408 | H21: 1070.6875
A22: 21 | B22: 799 | C22: 15 | D22: 2 | E22: 3 | F22: 3 | G22: 1569 | H22: 1100
A23: 22 | B23: 367 | C23: 11 | D23: 2 | E23: 2 | F23: 4 | G23: 937 | H23: 1090.944444
A24: 23 | H24: 1090.944444
A25: 24 | H25: 1090.944444
A26: 25 | B26: 182 | C26: 10 | D26: 4 | E26: 3 | F26: 5 | G26: 632 | H26: 1066.789474
A27: 26 | B27: 435 | C27: 7 | D27: 0 | E27: 4 | F27: 4 | G27: 945 | H27: 1060.7
A28: 27 | B28: 564 | C28: 13 | D28: 0 | E28: 2 | F28: 5 | G28: 1364 | H28: 1075.142857
A29: 28 | B29: 668 | C29: 12 | D29: 0 | E29: 3 | F29: 8 | G29: 1508 | H29: 1094.818182
A30: 29 | H30: 1094.818182
A31: 30 | H31: 1094.818182
A32: 31 | H32: 1094.818182
A33: 32 | H33: 1094.818182
A34: 33 | H34: 1094.818182
A35: 34 | B35: 336 | C35: 7 | D35: 1 | E35: 2 | F35: 5 | G35: 786 | H35: 1081.391304
A36: 35 | B36: 502 | C36: 9 | D36: 0 | E36: 0 | F36: 1 | G36: 982 | H36: 1077.25
A37: 36 | B37: 652 | C37: 14 | D37: 2 | E37: 2 | F37: 2 | G37: 1332 | H37: 1087.44
A38: 37 | B38: 383 | C38: 11 | D38: 3 | E38: 7 | F38: 9 | G38: 1053 | H38: 1086.115385
A39: 38 | B39: 461 | C39: 14 | D39: 2 | E39: 5 | F39: 9 | G39: 1331 | H39: 1095.185185
A40: 39 | B40: 384 | C40: 9 | D40: 1 | E40: 3 | F40: 4 | G40: 904 | H40: 1088.357143
A41: 40 | B41: 200 | C41: 8 | D41: 2 | E41: 6 | F41: 10 | G41: 800 | H41: 1078.413793
A42: 41 | B42: 150 | C42: 6 | D42: 1 | E42: 5 | F42: 6 | G42: 580 | H42: 1061.8
A43: 42 | B43: 265 | C43: 10 | D43: 3 | E43: 6 | F43: 6 | G43: 855 | H43: 1055.129032
A44: 43 | B44: 228 | C44: 7 | D44: 3 | E44: 6 | F44: 7 | G44: 638 | H44: 1042.09375
A45: 44 | B45: 419 | C45: 11 | D45: 0 | E45: 4 | F45: 4 | G45: 1129 | H45: 1044.727273
A46: 45 | B46: 779 | C46: 15 | D46: 0 | E46: 3 | F46: 5 | G46: 1679 | H46: 1063.382353
A47: 46 | B47: 116 | C47: 10 | D47: 2 | E47: 4 | F47: 7 | G47: 726 | H47: 1053.742857
A48: 47 | B48: 744 | C48: 15 | D48: 1 | E48: 5 | F48: 5 | G48: 1644 | H48: 1070.138889
A49: 48 | B49: 649 | C49: 12 | D49: 0 | E49: 4 | F49: 5 | G49: 1399 | H49: 1079.027027
A50: 49 | B50: 102 | C50: 8 | D50: 4 | E50: 4 | F50: 5 | G50: 452 | H50: 1062.526316
A51: 50 | B51: 154 | C51: 7 | D51: 2 | E51: 1 | F51: 1 | G51: 444 | H51: 1046.666667
A52: 51 | B52: 473 | C52: 7 | D52: 1 | E52: 4 | F52: 6 | G52: 953 | H52: 1044.325
A53: 52 | B53: 328 | C53: 9 | D53: 2 | E53: 4 | F53: 6 | G53: 858 | H53: 1039.780488
A54: 53 | B54: 134 | C54: 9 | D54: 4 | E54: 4 | F54: 4 | G54: 544 | H54: 1027.97619
A55: 54 | B55: 293 | C55: 11 | D55: 2 | E55: 4 | F55: 8 | G55: 983 | H55: 1026.930233
A56: 55 | B56: 201 | C56: 8 | D56: 3 | E56: 4 | F56: 6 | G56: 631 | H56: 1017.931818
A57: 56 | B57: 418 | C57: 8 | D57: 1 | E57: 3 | F57: 3 | G57: 888 | H57: 1015.044444
A58: 57 | B58: 435 | C58: 9 | D58: 2 | E58: 4 | F58: 7 | G58: 995 | H58: 1014.608696
A59: 58 | B59: 167 | C59: 15 | D59: 6 | E59: 2 | F59: 2 | G59: 697 | H59: 1007.851064
A60: 59 | B60: 527 | C60: 11 | D60: 3 | E60: 3 | F60: 3 | G60: 1047 | H60: 1008.666667
A61: 60 | B61: 476 | C61: 9 | D61: 0 | E61: 6 | F61: 9 | G61: 1196 | H61: 1012.489796
A62: 61 | H62: 1012.489796
A63: 62 | B63: 419 | C63: 11 | D63: 0 | E63: 3 | F63: 6 | G63: 1149 | H63: 1015.22
A64: 63 | B64: 156 | C64: 9 | D64: 4 | E64: 2 | F64: 3 | G64: 496 | H64: 1005.039216
A65: 64 | B65: 361 | C65: 9 | D65: 2 | E65: 6 | F65: 9 | G65: 981 | H65: 1004.576923
A66: 65 | B66: 274 | C66: 9 | D66: 2 | E66: 3 | F66: 3 | G66: 744 | H66: 999.6603774
A67: 66 | H67: 999.6603774
A68: 67 | H68: 999.6603774
A69: 68 | H69: 999.6603774
A70: 69 | H70: 999.6603774
A71: 70 | B71: 158 | C71: 6 | D71: 2 | E71: 5 | F71: 5 | G71: 508 | H71: 990.5555556
A72: 71 | B72: -109 | C72: 11 | D72: 5 | E72: 4 | F72: 4 | G72: 351 | H72: 978.9272727
A73: 72 | B73: 224 | C73: 7 | D73: 0 | E73: 8 | F73: 12 | G73: 934 | H73: 978.125
A74: 73 | B74: 344 | C74: 10 | D74: 3 | E74: 4 | F74: 4 | G74: 854 | H74: 975.9473684
A75: 74 | B75: 148 | C75: 8 | D75: 6 | E75: 5 | F75: 7 | G75: 458 | H75: 967.0172414
A76: 75 | B76: 733 | C76: 13 | D76: 1 | E76: 2 | F76: 2 | G76: 1393 | H76: 974.2372881

Sheet Heidecke,Gabriele
A1: Serie | B1: Sp.Pu | C1: gew. | D1: verl. | E1: abg. | F1: v.GS | G1: We.Pu. | H1: Durchschnitt Wertungspunkte | J1: Platz am Jahresende : | M1: 20 | N1: in Gruppe : | P1: 1 | Q1: Anzahl der Teilnahmen : | U1: 49
A2: 1 | B2: 258 | C2: 7 | D2: 2 | E2: 6 | F2: 9 | G2: 778 | H2: 778 | K2: Spiel- | L2: Spiele | P2: Wert.- | R2: Anz.Li.- | S2: Anz. | T2: Listenfehler
A3: 2 | B3: 544 | C3: 9 | D3: 1 | E3: 4 | F3: 4 | G3: 1104 | H3: 941 | K3: punkte | L3: gew. | M3: ver. | N3: abgen. | O3: v.GS | P3: punkte | R3: führer | S3: Null-Fehler | T3: Summe | U3: Schnitt
A4: 3 | B4: 72 | C4: 7 | D4: 3 | E4: 3 | F4: 7 | G4: 482 | H4: 788 | J4: Max | K4: 865 | L4: 16 | M4: 5 | N4: 8 | O4: 10 | P4: 1685 | R4: 19 | S4: 19 | T4: 0 | U4: 0
A5: 4 | B5: 405 | C5: 9 | D5: 1 | E5: 5 | F5: 5 | G5: 1005 | H5: 842.25 | J5: Schnitt | K5: 260.2040816 | L5: 8.551020408 | M5: 2.12244898 | N5: 3.612244898 | O5: 4.346938776 | P5: 735.7142857 | S5: Sum.Abr.geld : | T5: 104
A6: 5 | B6: 370 | C6: 10 | D6: 0 | E6: 4 | F6: 4 | G6: 1030 | H6: 879.8 | J6: Min | K6: -161 | L6: 4 | M6: 0 | N6: 1 | O6: 1 | P6: -41 | S6: Schn.Abreizg. : | T6: 2.12244898
A7: 6 | B7: 85 | C7: 5 | D7: 2 | E7: 1 | F7: 2 | G7: 295 | H7: 782.3333333
A8: 7 | B8: 676 | C8: 16 | D8: 0 | E8: 4 | F8: 4 | G8: 1636 | H8: 904.2857143
A9: 8 | B9: 178 | C9: 8 | D9: 2 | E9: 1 | F9: 1 | G9: 518 | H9: 856
A10: 9 | B10: 226 | C10: 11 | D10: 2 | E10: 3 | F10: 3 | G10: 796 | H10: 849.3333333
A11: 10 | B11: 33 | C11: 9 | D11: 5 | E11: 3 | F11: 6 | G11: 413 | H11: 805.7
A12: 11 | B12: 143 | C12: 5 | D12: 2 | E12: 4 | F12: 4 | G12: 453 | H12: 773.6363636
A13: 12 | B13: 338 | C13: 8 | D13: 2 | E13: 1 | F13: 1 | G13: 678 | H13: 765.6666667
A14: 13 | B14: 78 | C14: 5 | D14: 2 | E14: 3 | F14: 4 | G14: 348 | H14: 733.5384615
A15: 14 | B15: 303 | C15: 6 | D15: 1 | E15: 7 | F15: 7 | G15: 833 | H15: 740.6428571
A16: 15 | B16: -1 | C16: 6 | D16: 4 | E16: 2 | F16: 3 | G16: 189 | H16: 703.8666667
A17: 16 | H17: 703.8666667
A18: 17 | H18: 703.8666667
A19: 18 | B19: 215 | C19: 10 | D19: 2 | E19: 3 | F19: 5 | G19: 765 | H19: 707.6875
A20: 19 | B20: 424 | C20: 9 | D20: 4 | E20: 3 | F20: 3 | G20: 764 | H20: 711
A21: 20 | B21: 266 | C21: 9 | D21: 1 | E21: 4 | F21: 5 | G21: 816 | H21: 716.8333333
A22: 21 | B22: -161 | C22: 4 | D22: 4 | E22: 3 | F22: 3 | G22: -41 | H22: 676.9473684
A23: 22 | B23: 364 | C23: 9 | D23: 2 | E23: 4 | F23: 5 | G23: 864 | H23: 686.3
A24: 23 | B24: 315 | C24: 10 | D24: 3 | E24: 3 | F24: 3 | G24: 785 | H24: 691
A25: 24 | B25: 90 | C25: 6 | D25: 2 | E25: 5 | F25: 5 | G25: 490 | H25: 681.8636364
A26: 25 | B26: 344 | C26: 10 | D26: 2 | E26: 4 | F26: 6 | G26: 924 | H26: 692.3913043
A27: 26 | B27: 865 | C27: 14 | D27: 0 | E27: 3 | F27: 3 | G27: 1685 | H27: 733.75
A28: 27 | B28: 449 | C28: 12 | D28: 2 | E28: 2 | F28: 4 | G28: 1069 | H28: 747.16
A29: 28 | B29: 250 | C29: 8 | D29: 2 | E29: 8 | F29: 10 | G29: 850 | H29: 751.1153846
A30: 29 | H30: 751.1153846
A31: 30 | H31: 751.1153846
A32: 31 | H32: 751.1153846
A33: 32 | H33: 751.1153846
A34: 33 | H34: 751.1153846
A35: 34 | B35: 262 | C35: 9 | D35: 1 | E35: 1 | F35: 2 | G35: 722 | H35: 750.037037
A36: 35 | B36: 259 | C36: 10 | D36: 3 | E36: 4 | F36: 4 | G36: 769 | H36: 750.7142857
A37: 36 | B37: 144 | C37: 6 | D37: 2 | E37: 3 | F37: 3 | G37: 464 | H37: 740.8275862
A38: 37 | B38: 197 | C38: 9 | D38: 2 | E38: 1 | F38: 1 | G38: 587 | H38: 735.7
A39: 38 | B39: 225 | C39: 10 | D39: 2 | E39: 3 | F39: 3 | G39: 745 | H39: 736
A40: 39 | B40: 446 | C40: 8 | D40: 1 | E40: 7 | F40: 7 | G40: 1076 | H40: 746.625
A41: 40 | B41: 371 | C41: 10 | D41: 3 | E41: 4 | F41: 8 | G41: 961 | H41: 753.1212121
A42: 41 | B42: 454 | C42: 13 | D42: 2 | E42: 2 | F42: 2 | G42: 1084 | H42: 762.8529412
A43: 42 | B43: 301 | C43: 7 | D43: 3 | E43: 2 | F43: 2 | G43: 581 | H43: 757.6571429
A44: 43 | B44: 280 | C44: 8 | D44: 0 | E44: 4 | F44: 4 | G44: 840 | H44: 759.9444444
A45: 44 | B45: 311 | C45: 10 | D45: 2 | E45: 4 | F45: 4 | G45: 871 | H45: 762.9459459
A46: 45 | H46: 762.9459459
A47: 46 | B47: 518 | C47: 10 | D47: 0 | E47: 4 | F47: 6 | G47: 1198 | H47: 774.3947368
A48: 47 | B48: 125 | C48: 7 | D48: 2 | E48: 5 | F48: 5 | G48: 575 | H48: 769.2820513
A49: 48 | H49: 769.2820513
A50: 49 | H50: 769.2820513
A51: 50 | H51: 769.2820513
A52: 51 | H52: 769.2820513
A53: 52 | H53: 769.2820513
A54: 53 | H54: 769.2820513
A55: 54 | H55: 769.2820513
A56: 55 | H56: 769.2820513
A57: 56 | H57: 769.2820513
A58: 57 | H58: 769.2820513
A59: 58 | H59: 769.2820513
A60: 59 | H60: 769.2820513
A61: 60 | H61: 769.2820513
A62: 61 | H62: 769.2820513
A63: 62 | H63: 769.2820513
A64: 63 | H64: 769.2820513
A65: 64 | H65: 769.2820513
A66: 65 | H66: 769.2820513
A67: 66 | B67: 357 | C67: 13 | D67: 4 | E67: 4 | F67: 4 | G67: 967 | H67: 774.225
A68: 67 | B68: -53 | C68: 7 | D68: 4 | E68: 6 | F68: 6 | G68: 337 | H68: 763.5609756
A69: 68 | B69: 142 | C69: 8 | D69: 2 | E69: 5 | F69: 5 | G69: 642 | H69: 760.6666667
A70: 69 | B70: 44 | C70: 5 | D70: 2 | E70: 5 | F70: 5 | G70: 394 | H70: 752.1395349
A71: 70 | B71: 124 | C71: 7 | D71: 3 | E71: 5 | F71: 5 | G71: 524 | H71: 746.9545455
A72: 71 | B72: 319 | C72: 11 | D72: 4 | E72: 5 | F72: 5 | G72: 869 | H72: 749.6666667
A73: 72 | B73: 470 | C73: 10 | D73: 2 | E73: 4 | F73: 9 | G73: 1140 | H73: 758.1521739
A74: 73 | B74: 34 | C74: 4 | D74: 3 | E74: 2 | F74: 2 | G74: 164 | H74: 745.5106383
A75: 74 | B75: 138 | C75: 11 | D75: 3 | E75: 2 | F75: 2 | G75: 618 | H75: 742.8541667
A76: 75 | B76: 153 | C76: 4 | D76: 1 | E76: 2 | F76: 3 | G76: 393 | H76: 735.7142857

Sheet Helbig,Sylvelie
A1: Serie | B1: Sp.Pu | C1: gew. | D1: verl. | E1: abg. | F1: v.GS | G1: We.Pu. | H1: Durchschnitt Wertungspunkte | J1: Platz am Jahresende : | M1: 21 | N1: in Gruppe : | P1: 1 | Q1: Anzahl der Teilnahmen : | U1: 41
A2: 1 | K2: Spiel- | L2: Spiele | P2: Wert.- | R2: Anz.Li.- | S2: Anz. | T2: Listenfehler
A3: 2 | K3: punkte | L3: gew. | M3: ver. | N3: abgen. | O3: v.GS | P3: punkte | R3: führer | S3: Null-Fehler | T3: Summe | U3: Schnitt
A4: 3 | J4: Max | K4: 760 | L4: 15 | M4: 3 | N4: 9 | O4: 11 | P4: 1502 | R4: 15 | S4: 15 | T4: 0 | U4: 0
A5: 4 | J5: Schnitt | K5: 245.6829268 | L5: 6.487804878 | M5: 0.9024390244 | N5: 4.609756098 | O5: 5.317073171 | P5: 709.5853659 | S5: Sum.Abr.geld : | T5: 37
A6: 5 | B6: -9 | C6: 3 | D6: 2 | E6: 5 | F6: 5 | G6: 241 | H6: 241 | J6: Min | K6: -106 | L6: 1 | M6: 0 | N6: 2 | O6: 2 | P6: 124 | S6: Schn.Abreizg. : | T6: 0.9024390244
A7: 6 | B7: 137 | C7: 4 | D7: 0 | E7: 4 | F7: 4 | G7: 497 | H7: 369
A8: 7 | B8: -50 | C8: 1 | D8: 1 | E8: 7 | F8: 7 | G8: 230 | H8: 322.6666667
A9: 8 | H9: 322.6666667
A10: 9 | B10: 141 | C10: 4 | D10: 0 | E10: 8 | F10: 8 | G10: 661 | H10: 407.25
A11: 10 | H11: 407.25
A12: 11 | H12: 407.25
A13: 12 | B13: 310 | C13: 7 | D13: 1 | E13: 3 | F13: 3 | G13: 730 | H13: 471.8
A14: 13 | B14: 298 | C14: 5 | D14: 1 | E14: 9 | F14: 11 | G14: 828 | H14: 531.1666667
A15: 14 | H15: 531.1666667
A16: 15 | B16: 288 | C16: 7 | D16: 0 | E16: 6 | F16: 7 | G16: 848 | H16: 576.4285714
A17: 16 | B17: -17 | C17: 4 | D17: 2 | E17: 4 | F17: 5 | G17: 233 | H17: 533.5
A18: 17 | B18: 760 | C18: 10 | D18: 0 | E18: 4 | F18: 4 | G18: 1420 | H18: 632
A19: 18 | B19: 242 | C19: 3 | D19: 0 | E19: 4 | F19: 6 | G19: 572 | H19: 626
A20: 19 | B20: 460 | C20: 9 | D20: 1 | E20: 3 | F20: 3 | G20: 980 | H20: 658.1818182
A21: 20 | B21: 138 | C21: 6 | D21: 1 | E21: 2 | F21: 5 | G21: 538 | H21: 648.1666667
A22: 21 | B22: 207 | C22: 5 | D22: 1 | E22: 4 | F22: 4 | G22: 567 | H22: 641.9230769
A23: 22 | B23: 160 | C23: 5 | D23: 0 | E23: 5 | F23: 7 | G23: 620 | H23: 640.3571429
A24: 23 | B24: 195 | C24: 7 | D24: 1 | E24: 5 | F24: 5 | G24: 695 | H24: 644
A25: 24 | H25: 644
A26: 25 | B26: 240 | C26: 6 | D26: 0 | E26: 7 | F26: 8 | G26: 780 | H26: 652.5
A27: 26 | H27: 652.5
A28: 27 | H28: 652.5
A29: 28 | H29: 652.5
A30: 29 | H30: 652.5
A31: 30 | H31: 652.5
A32: 31 | H32: 652.5
A33: 32 | B33: 14 | C33: 4 | D33: 2 | E33: 3 | F33: 5 | G33: 264 | H33: 629.6470588
A34: 33 | B34: 473 | C34: 10 | D34: 1 | E34: 4 | F34: 4 | G34: 1083 | H34: 654.8333333
A35: 34 | B35: 555 | C35: 10 | D35: 0 | E35: 5 | F35: 6 | G35: 1235 | H35: 685.3684211
A36: 35 | B36: 642 | C36: 15 | D36: 1 | E36: 4 | F36: 4 | G36: 1502 | H36: 726.2
A37: 36 | B37: 40 | C37: 5 | D37: 2 | E37: 5 | F37: 5 | G37: 390 | H37: 710.1904762
A38: 37 | B38: 459 | C38: 11 | D38: 1 | E38: 2 | F38: 2 | G38: 1039 | H38: 725.1363636
A39: 38 | B39: -106 | C39: 6 | D39: 3 | E39: 2 | F39: 2 | G39: 124 | H39: 699
A40: 39 | H40: 699
A41: 40 | B41: 330 | C41: 7 | D41: 1 | E41: 4 | F41: 4 | G41: 790 | H41: 702.7916667
A42: 41 | B42: 163 | C42: 5 | D42: 1 | E42: 7 | F42: 7 | G42: 643 | H42: 700.4
A43: 42 | H43: 700.4
A44: 43 | B44: 237 | C44: 10 | D44: 1 | E44: 7 | F44: 7 | G44: 967 | H44: 710.6538462
A45: 44 | H45: 710.6538462
A46: 45 | B46: 286 | C46: 4 | D46: 1 | E46: 4 | F46: 4 | G46: 556 | H46: 704.9259259
A47: 46 | B47: 220 | C47: 4 | D47: 1 | E47: 4 | F47: 7 | G47: 580 | H47: 700.4642857
A48: 47 | H48: 700.4642857
A49: 48 | H49: 700.4642857
A50: 49 | B50: 206 | C50: 10 | D50: 1 | E50: 3 | F50: 5 | G50: 806 | H50: 704.1034483
A51: 50 | H51: 704.1034483
A52: 51 | B52: 243 | C52: 7 | D52: 2 | E52: 4 | F52: 5 | G52: 643 | H52: 702.0666667
A53: 52 | B53: 216 | C53: 6 | D53: 1 | E53: 2 | F53: 2 | G53: 546 | H53: 697.0322581
A54: 53 | H54: 697.0322581
A55: 54 | B55: 302 | C55: 7 | D55: 0 | E55: 8 | F55: 10 | G55: 952 | H55: 705
A56: 55 | B56: 245 | C56: 6 | D56: 1 | E56: 7 | F56: 9 | G56: 765 | H56: 706.8181818
A57: 56 | H57: 706.8181818
A58: 57 | B58: 67 | C58: 4 | D58: 1 | E58: 2 | F58: 2 | G58: 297 | H58: 694.7647059
A59: 58 | H59: 694.7647059
A60: 59 | H60: 694.7647059
A61: 60 | B61: 624 | C61: 10 | D61: 0 | E61: 4 | F61: 5 | G61: 1274 | H61: 711.3142857
A62: 61 | H62: 711.3142857
A63: 62 | H63: 711.3142857
A64: 63 | H64: 711.3142857
A65: 64 | H65: 711.3142857
A66: 65 | H66: 711.3142857
A67: 66 | B67: 316 | C67: 7 | D67: 1 | E67: 3 | F67: 3 | G67: 736 | H67: 712
A68: 67 | H68: 712
A69: 68 | B69: 244 | C69: 5 | D69: 1 | E69: 5 | F69: 5 | G69: 644 | H69: 710.1621622
A70: 69 | B70: 111 | C70: 6 | D70: 2 | E70: 5 | F70: 5 | G70: 511 | H70: 704.9210526
A71: 70 | B71: 278 | C71: 7 | D71: 0 | E71: 3 | F71: 3 | G71: 748 | H71: 706.025641
A72: 71 | H72: 706.025641
A73: 72 | B73: 233 | C73: 7 | D73: 1 | E73: 7 | F73: 10 | G73: 833 | H73: 709.2
A74: 73 | H74: 709.2
A75: 74 | B75: 175 | C75: 7 | D75: 0 | E75: 5 | F75: 5 | G75: 725 | H75: 709.5853659
A76: 75 | H76: 709.5853659

Sheet Kraus,Mario
A1: Serie | B1: Sp.Pu | C1: gew. | D1: verl. | E1: abg. | F1: v.GS | G1: We.Pu. | H1: Durchschnitt Wertungspunkte | J1: Platz am Jahresende : | M1: 10 | N1: in Gruppe : | P1: 1 | Q1: Anzahl der Teilnahmen : | U1: 56
A2: 1 | B2: 332 | C2: 8 | D2: 0 | E2: 5 | F2: 7 | G2: 942 | H2: 942 | K2: Spiel- | L2: Spiele | P2: Wert.- | R2: Anz.Li.- | S2: Anz. | T2: Listenfehler
A3: 2 | B3: 351 | C3: 9 | D3: 2 | E3: 5 | F3: 5 | G3: 901 | H3: 921.5 | K3: punkte | L3: gew. | M3: ver. | N3: abgen. | O3: v.GS | P3: punkte | R3: führer | S3: Null-Fehler | T3: Summe | U3: Schnitt
A4: 3 | B4: 353 | C4: 13 | D4: 2 | E4: 5 | F4: 8 | G4: 1143 | H4: 995.3333333 | J4: Max | K4: 720 | L4: 14 | M4: 3 | N4: 12 | O4: 13 | P4: 1555 | R4: 15 | S4: 15 | T4: 0 | U4: 0
A5: 4 | B5: 473 | C5: 8 | D5: 0 | E5: 5 | F5: 5 | G5: 1073 | H5: 1014.75 | J5: Schnitt | K5: 359.0357143 | L5: 8.303571429 | M5: 0.7857142857 | N5: 5.071428571 | O5: 6.553571429 | P5: 946 | S5: Sum.Abr.geld : | T5: 44
A6: 5 | H6: 1014.75 | J6: Min | K6: 42 | L6: 3 | M6: 0 | N6: 2 | O6: 2 | P6: 363 | S6: Schn.Abreizg. : | T6: 0.7857142857
A7: 6 | H7: 1014.75
A8: 7 | H8: 1014.75
A9: 8 | H9: 1014.75
A10: 9 | H10: 1014.75
A11: 10 | B11: 327 | C11: 9 | D11: 0 | E11: 4 | F11: 6 | G11: 957 | H11: 1003.2
A12: 11 | B12: 182 | C12: 6 | D12: 2 | E12: 3 | F12: 6 | G12: 562 | H12: 929.6666667
A13: 12 | B13: 300 | C13: 8 | D13: 1 | E13: 3 | F13: 3 | G13: 770 | H13: 906.8571429
A14: 13 | B14: 365 | C14: 12 | D14: 1 | E14: 3 | F14: 6 | G14: 1095 | H14: 930.375
A15: 14 | B15: 444 | C15: 8 | D15: 1 | E15: 2 | F15: 2 | G15: 874 | H15: 924.1111111
A16: 15 | H16: 924.1111111
A17: 16 | B17: 559 | C17: 12 | D17: 0 | E17: 3 | F17: 4 | G17: 1279 | H17: 959.6
A18: 17 | B18: 386 | C18: 8 | D18: 1 | E18: 4 | F18: 4 | G18: 896 | H18: 953.8181818
A19: 18 | B19: 173 | C19: 7 | D19: 0 | E19: 4 | F19: 8 | G19: 763 | H19: 937.9166667
A20: 19 | B20: 336 | C20: 7 | D20: 1 | E20: 3 | F20: 6 | G20: 816 | H20: 928.5384615
A21: 20 | B21: 315 | C21: 7 | D21: 1 | E21: 7 | F21: 8 | G21: 855 | H21: 923.2857143
A22: 21 | B22: 715 | C22: 13 | D22: 1 | E22: 6 | F22: 6 | G22: 1555 | H22: 965.4
A23: 22 | B23: 280 | C23: 11 | D23: 2 | E23: 4 | F23: 4 | G23: 850 | H23: 958.1875
A24: 23 | B24: 193 | C24: 8 | D24: 0 | E24: 4 | F24: 7 | G24: 803 | H24: 949.0588235
A25: 24 | B25: 254 | C25: 9 | D25: 2 | E25: 5 | F25: 5 | G25: 804 | H25: 941
A26: 25 | H26: 941
A27: 26 | H27: 941
A28: 27 | H28: 941
A29: 28 | B29: 445 | C29: 11 | D29: 2 | E29: 3 | F29: 4 | G29: 1015 | H29: 944.8947368
A30: 29 | H30: 944.8947368
A31: 30 | H31: 944.8947368
A32: 31 | B32: 557 | C32: 11 | D32: 0 | E32: 9 | F32: 13 | G32: 1497 | H32: 972.5
A33: 32 | B33: 549 | C33: 10 | D33: 0 | E33: 5 | F33: 7 | G33: 1259 | H33: 986.1428571
A34: 33 | B34: 250 | C34: 7 | D34: 2 | E34: 4 | F34: 6 | G34: 680 | H34: 972.2272727
A35: 34 | B35: 93 | C35: 5 | D35: 2 | E35: 2 | F35: 4 | G35: 363 | H35: 945.7391304
A36: 35 | H36: 945.7391304
A37: 36 | H37: 945.7391304
A38: 37 | B38: 295 | C38: 6 | D38: 0 | E38: 3 | F38: 3 | G38: 715 | H38: 936.125
A39: 38 | B39: 615 | C39: 12 | D39: 0 | E39: 6 | F39: 10 | G39: 1515 | H39: 959.28
A40: 39 | B40: 521 | C40: 9 | D40: 0 | E40: 3 | F40: 5 | G40: 1121 | H40: 965.5
A41: 40 | H41: 965.5
A42: 41 | B42: 282 | C42: 9 | D42: 2 | E42: 7 | F42: 9 | G42: 902 | H42: 963.1481481
A43: 42 | B43: 333 | C43: 6 | D43: 1 | E43: 3 | F43: 3 | G43: 703 | H43: 953.8571429
A44: 43 | B44: 408 | C44: 7 | D44: 0 | E44: 2 | F44: 5 | G44: 908 | H44: 952.2758621
A45: 44 | B45: 601 | C45: 11 | D45: 0 | E45: 6 | F45: 6 | G45: 1391 | H45: 966.9
A46: 45 | B46: 462 | C46: 8 | D46: 0 | E46: 9 | F46: 12 | G46: 1222 | H46: 975.1290323
A47: 46 | B47: 42 | C47: 3 | D47: 1 | E47: 12 | F47: 13 | G47: 532 | H47: 961.28125
A48: 47 | B48: 279 | C48: 7 | D48: 1 | E48: 5 | F48: 5 | G48: 779 | H48: 955.7575758
A49: 48 | B49: 720 | C49: 10 | D49: 1 | E49: 7 | F49: 7 | G49: 1450 | H49: 970.2941176
A50: 49 | B50: 371 | C50: 6 | D50: 0 | E50: 6 | F50: 9 | G50: 941 | H50: 969.4571429
A51: 50 | B51: 531 | C51: 7 | D51: 0 | E51: 2 | F51: 2 | G51: 961 | H51: 969.2222222
A52: 51 | B52: 408 | C52: 8 | D52: 0 | E52: 4 | F52: 5 | G52: 958 | H52: 968.9189189
A53: 52 | B53: 189 | C53: 6 | D53: 1 | E53: 5 | F53: 10 | G53: 739 | H53: 962.8684211
A54: 53 | B54: 576 | C54: 9 | D54: 3 | E54: 5 | F54: 5 | G54: 1076 | H54: 965.7692308
A55: 54 | B55: 204 | C55: 6 | D55: 1 | E55: 7 | F55: 9 | G55: 724 | H55: 959.725
A56: 55 | B56: 343 | C56: 9 | D56: 0 | E56: 6 | F56: 9 | G56: 1063 | H56: 962.2439024
A57: 56 | H57: 962.2439024
A58: 57 | B58: 306 | C58: 4 | D58: 0 | E58: 7 | F58: 10 | G58: 806 | H58: 958.5238095
A59: 58 | B59: 355 | C59: 11 | D59: 1 | E59: 4 | F59: 4 | G59: 1015 | H59: 959.8372093
A60: 59 | B60: 245 | C60: 6 | D60: 1 | E60: 6 | F60: 7 | G60: 705 | H60: 954.0454545
A61: 60 | B61: 417 | C61: 7 | D61: 0 | E61: 6 | F61: 6 | G61: 947 | H61: 953.8888889
A62: 61 | B62: 241 | C62: 10 | D62: 2 | E62: 6 | F62: 8 | G62: 881 | H62: 952.3043478
A63: 62 | B63: 271 | C63: 8 | D63: 1 | E63: 4 | F63: 6 | G63: 801 | H63: 949.0851064
A64: 63 | B64: 219 | C64: 5 | D64: 0 | E64: 8 | F64: 9 | G64: 739 | H64: 944.7083333
A65: 64 | H65: 944.7083333
A66: 65 | H66: 944.7083333
A67: 66 | H67: 944.7083333
A68: 67 | H68: 944.7083333
A69: 68 | B69: 89 | C69: 6 | D69: 2 | E69: 5 | F69: 7 | G69: 499 | H69: 935.6122449
A70: 69 | B70: 363 | C70: 8 | D70: 0 | E70: 6 | F70: 6 | G70: 1003 | H70: 936.96
A71: 70 | B71: 207 | C71: 6 | D71: 0 | E71: 8 | F71: 10 | G71: 807 | H71: 934.4117647
A72: 71 | B72: 412 | C72: 11 | D72: 1 | E72: 5 | F72: 5 | G72: 1112 | H72: 937.8269231
A73: 72 | B73: 662 | C73: 14 | D73: 0 | E73: 2 | F73: 2 | G73: 1422 | H73: 946.9622642
A74: 73 | B74: 550 | C74: 12 | D74: 0 | E74: 5 | F74: 5 | G74: 1350 | H74: 954.4259259
A75: 74 | B75: 273 | C75: 6 | D75: 0 | E75: 11 | F75: 13 | G75: 963 | H75: 954.5818182
A76: 75 | B76: 84 | C76: 5 | D76: 2 | E76: 5 | F76: 8 | G76: 474 | H76: 946

Sheet Liebing,Theodor
A1: Serie | B1: Sp.Pu | C1: gew. | D1: verl. | E1: abg. | F1: v.GS | G1: We.Pu. | H1: Durchschnitt Wertungspunkte | J1: Platz am Jahresende : | M1: 3 | N1: in Gruppe : | P1: 1 | Q1: Anzahl der Teilnahmen : | U1: 53
A2: 1 | B2: 223 | C2: 12 | D2: 3 | E2: 3 | F2: 3 | G2: 763 | H2: 763 | K2: Spiel- | L2: Spiele | P2: Wert.- | R2: Anz.Li.- | S2: Anz. | T2: Listenfehler
A3: 2 | B3: 558 | C3: 12 | D3: 2 | E3: 4 | F3: 4 | G3: 1218 | H3: 990.5 | K3: punkte | L3: gew. | M3: ver. | N3: abgen. | O3: v.GS | P3: punkte | R3: führer | S3: Null-Fehler | T3: Summe | U3: Schnitt
A4: 3 | B4: 51 | C4: 5 | D4: 3 | E4: 6 | F4: 7 | G4: 361 | H4: 780.6666667 | J4: Max | K4: 909 | L4: 18 | M4: 4 | N4: 11 | O4: 15 | P4: 1879 | R4: 15 | S4: 15 | T4: 0 | U4: 0
A5: 4 | B5: 531 | C5: 14 | D5: 2 | E5: 4 | F5: 4 | G5: 1291 | H5: 908.25 | J5: Schnitt | K5: 429.4150943 | L5: 11.24528302 | M5: 1.716981132 | N5: 4.188679245 | O5: 5.358490566 | P5: 1080.924528 | S5: Sum.Abr.geld : | T5: 91
A6: 5 | B6: 437 | C6: 9 | D6: 1 | E6: 3 | F6: 3 | G6: 957 | H6: 918 | J6: Min | K6: 51 | L6: 5 | M6: 0 | N6: 0 | O6: 0 | P6: 361 | S6: Schn.Abreizg. : | T6: 1.716981132
A7: 6 | B7: 493 | C7: 12 | D7: 0 | E7: 4 | F7: 7 | G7: 1303 | H7: 982.1666667
A8: 7 | H8: 982.1666667
A9: 8 | H9: 982.1666667
A10: 9 | B10: 251 | C10: 8 | D10: 2 | E10: 3 | F10: 4 | G10: 671 | H10: 937.7142857
A11: 10 | B11: 367 | C11: 9 | D11: 2 | E11: 11 | F11: 15 | G11: 1167 | H11: 966.375
A12: 11 | B12: 509 | C12: 9 | D12: 0 | E12: 4 | F12: 4 | G12: 1079 | H12: 978.8888889
A13: 12 | B13: 538 | C13: 11 | D13: 0 | E13: 5 | F13: 8 | G13: 1328 | H13: 1013.8
A14: 13 | B14: 275 | C14: 9 | D14: 2 | E14: 3 | F14: 6 | G14: 805 | H14: 994.8181818
A15: 14 | B15: 784 | C15: 15 | D15: 2 | E15: 4 | F15: 4 | G15: 1594 | H15: 1044.75
A16: 15 | H16: 1044.75
A17: 16 | H17: 1044.75
A18: 17 | H18: 1044.75
A19: 18 | B19: 531 | C19: 15 | D19: 4 | E19: 1 | F19: 2 | G19: 1141 | H19: 1052.153846
A20: 19 | B20: 417 | C20: 11 | D20: 3 | E20: 3 | F20: 5 | G20: 967 | H20: 1046.071429
A21: 20 | B21: 110 | C21: 8 | D21: 4 | E21: 5 | F21: 5 | G21: 460 | H21: 1007
A22: 21 | B22: 146 | C22: 11 | D22: 2 | E22: 3 | F22: 3 | G22: 716 | H22: 988.8125
A23: 22 | H23: 988.8125
A24: 23 | B24: 619 | C24: 13 | D24: 2 | E24: 4 | F24: 5 | G24: 1319 | H24: 1008.235294
A25: 24 | B25: 358 | C25: 12 | D25: 2 | E25: 3 | F25: 3 | G25: 978 | H25: 1006.555556
A26: 25 | B26: 350 | C26: 10 | D26: 2 | E26: 1 | F26: 1 | G26: 780 | H26: 994.6315789
A27: 26 | B27: 832 | C27: 15 | D27: 0 | E27: 3 | F27: 3 | G27: 1702 | H27: 1030
A28: 27 | H28: 1030
A29: 28 | H29: 1030
A30: 29 | B30: 219 | C30: 10 | D30: 3 | E30: 4 | F30: 5 | G30: 719 | H30: 1015.190476
A31: 30 | B31: 909 | C31: 18 | D31: 1 | E31: 3 | F31: 3 | G31: 1879 | H31: 1054.454545
A32: 31 | H32: 1054.454545
A33: 32 | H33: 1054.454545
A34: 33 | H34: 1054.454545
A35: 34 | B35: 572 | C35: 13 | D35: 1 | E35: 3 | F35: 5 | G35: 1322 | H35: 1066.086957
A36: 35 | B36: 515 | C36: 15 | D36: 1 | E36: 0 | F36: 0 | G36: 1215 | H36: 1072.291667
A37: 36 | B37: 497 | C37: 17 | D37: 3 | E37: 4 | F37: 4 | G37: 1357 | H37: 1083.68
A38: 37 | B38: 585 | C38: 11 | D38: 1 | E38: 7 | F38: 11 | G38: 1415 | H38: 1096.423077
A39: 38 | B39: 263 | C39: 7 | D39: 0 | E39: 9 | F39: 11 | G39: 943 | H39: 1090.740741
A40: 39 | B40: 596 | C40: 12 | D40: 1 | E40: 4 | F40: 10 | G40: 1446 | H40: 1103.428571
A41: 40 | B41: 232 | C41: 7 | D41: 1 | E41: 4 | F41: 6 | G41: 712 | H41: 1089.931034
A42: 41 | B42: 520 | C42: 13 | D42: 2 | E42: 4 | F42: 5 | G42: 1220 | H42: 1094.266667
A43: 42 | B43: 205 | C43: 8 | D43: 2 | E43: 6 | F43: 6 | G43: 745 | H43: 1083
A44: 43 | H44: 1083
A45: 44 | H45: 1083
A46: 45 | B46: 588 | C46: 15 | D46: 4 | E46: 2 | F46: 2 | G46: 1218 | H46: 1087.21875
A47: 46 | H47: 1087.21875
A48: 47 | H48: 1087.21875
A49: 48 | B49: 622 | C49: 15 | D49: 2 | E49: 3 | F49: 4 | G49: 1392 | H49: 1096.454545
A50: 49 | B50: 600 | C50: 11 | D50: 1 | E50: 5 | F50: 8 | G50: 1340 | H50: 1103.617647
A51: 50 | B51: 149 | C51: 7 | D51: 2 | E51: 5 | F51: 5 | G51: 599 | H51: 1089.2
A52: 51 | B52: 345 | C52: 11 | D52: 2 | E52: 3 | F52: 5 | G52: 945 | H52: 1085.194444
A53: 52 | B53: 307 | C53: 14 | D53: 3 | E53: 2 | F53: 5 | G53: 1007 | H53: 1083.081081
A54: 53 | B54: 287 | C54: 9 | D54: 3 | E54: 5 | F54: 5 | G54: 787 | H54: 1075.289474
A55: 54 | B55: 428 | C55: 16 | D55: 2 | E55: 3 | F55: 4 | G55: 1248 | H55: 1079.717949
A56: 55 | B56: 347 | C56: 10 | D56: 2 | E56: 8 | F56: 8 | G56: 987 | H56: 1077.4
A57: 56 | B57: 445 | C57: 12 | D57: 1 | E57: 6 | F57: 6 | G57: 1235 | H57: 1081.243902
A58: 57 | H58: 1081.243902
A59: 58 | H59: 1081.243902
A60: 59 | H60: 1081.243902
A61: 60 | B61: 130 | C61: 7 | D61: 2 | E61: 7 | F61: 7 | G61: 590 | H61: 1069.547619
A62: 61 | B62: 460 | C62: 12 | D62: 1 | E62: 5 | F62: 5 | G62: 1210 | H62: 1072.813953
A63: 62 | B63: 234 | C63: 7 | D63: 3 | E63: 3 | F63: 3 | G63: 524 | H63: 1060.340909
A64: 63 | B64: 352 | C64: 10 | D64: 1 | E64: 2 | F64: 2 | G64: 882 | H64: 1056.377778
A65: 64 | H65: 1056.377778
A66: 65 | H66: 1056.377778
A67: 66 | B67: 699 | C67: 13 | D67: 2 | E67: 2 | F67: 5 | G67: 1399 | H67: 1063.826087
A68: 67 | B68: 443 | C68: 13 | D68: 1 | E68: 3 | F68: 3 | G68: 1163 | H68: 1065.93617
A69: 68 | B69: 395 | C69: 9 | D69: 0 | E69: 3 | F69: 5 | G69: 995 | H69: 1064.458333
A70: 69 | B70: 656 | C70: 14 | D70: 0 | E70: 5 | F70: 5 | G70: 1556 | H70: 1074.489796
A71: 70 | H71: 1074.489796
A72: 71 | H72: 1074.489796
A73: 72 | B73: 371 | C73: 9 | D73: 3 | E73: 6 | F73: 9 | G73: 941 | H73: 1071.82
A74: 73 | B74: 441 | C74: 12 | D74: 0 | E74: 6 | F74: 6 | G74: 1281 | H74: 1075.921569
A75: 74 | B75: 448 | C75: 10 | D75: 0 | E75: 9 | F75: 12 | G75: 1308 | H75: 1080.384615
A76: 75 | B76: 519 | C76: 9 | D76: 2 | E76: 4 | F76: 8 | G76: 1109 | H76: 1080.924528

Sheet Lipfert,Ingrid
A1: Serie | B1: Sp.Pu | C1: gew. | D1: verl. | E1: abg. | F1: v.GS | G1: We.Pu. | H1: Durchschnitt Wertungspunkte | J1: Platz am Jahresende : | M1: 30 | N1: in Gruppe : | P1: 3 | Q1: Anzahl der Teilnahmen : | U1: 9
A2: 1 | B2: 124 | C2: 5 | D2: 2 | E2: 3 | F2: 4 | G2: 394 | H2: 394 | K2: Spiel- | L2: Spiele | P2: Wert.- | R2: Anz.Li.- | S2: Anz. | T2: Listenfehler
A3: 2 | H3: 394 | K3: punkte | L3: gew. | M3: ver. | N3: abgen. | O3: v.GS | P3: punkte | R3: führer | S3: Null-Fehler | T3: Summe | U3: Schnitt
A4: 3 | B4: 267 | C4: 5 | D4: 2 | E4: 5 | F4: 11 | G4: 747 | H4: 570.5 | J4: Max | K4: 596 | L4: 11 | M4: 2 | N4: 9 | O4: 11 | P4: 1376 | R4: 4 | S4: 4 | T4: 0 | U4: 0
A5: 4 | H5: 570.5 | J5: Schnitt | K5: 335.4444444 | L5: 7.888888889 | M5: 1.222222222 | N5: 4 | O5: 5.555555556 | P5: 844.3333333 | S5: Sum.Abr.geld : | T5: 11
A6: 5 | H6: 570.5 | J6: Min | K6: 109 | L6: 5 | M6: 0 | N6: 0 | O6: 0 | P6: 394 | S6: Schn.Abreizg. : | T6: 1.222222222
A7: 6 | B7: 488 | C7: 11 | D7: 2 | E7: 0 | F7: 0 | G7: 938 | H7: 693
A8: 7 | H8: 693
A9: 8 | H9: 693
A10: 9 | H10: 693
A11: 10 | B11: 352 | C11: 9 | D11: 1 | E11: 6 | F11: 6 | G11: 992 | H11: 767.75
A12: 11 | H12: 767.75
A13: 12 | H13: 767.75
A14: 13 | B14: 304 | C14: 8 | D14: 0 | E14: 4 | F14: 6 | G14: 884 | H14: 791
A15: 14 | H15: 791
A16: 15 | H16: 791
A17: 16 | B17: 596 | C17: 9 | D17: 0 | E17: 9 | F17: 11 | G17: 1376 | H17: 888.5
A18: 17 | H18: 888.5
A19: 18 | H19: 888.5
A20: 19 | H20: 888.5
A21: 20 | H21: 888.5
A22: 21 | H22: 888.5
A23: 22 | B23: 317 | C23: 8 | D23: 1 | E23: 4 | F23: 5 | G23: 817 | H23: 878.2857143
A24: 23 | H24: 878.2857143
A25: 24 | H25: 878.2857143
A26: 25 | H26: 878.2857143
A27: 26 | H27: 878.2857143
A28: 27 | H28: 878.2857143
A29: 28 | B29: 109 | C29: 6 | D29: 1 | E29: 3 | F29: 5 | G29: 509 | H29: 832.125
A30: 29 | H30: 832.125
A31: 30 | H31: 832.125
A32: 31 | H32: 832.125
A33: 32 | H33: 832.125
A34: 33 | H34: 832.125
A35: 34 | H35: 832.125
A36: 35 | H36: 832.125
A37: 36 | H37: 832.125
A38: 37 | H38: 832.125
A39: 38 | H39: 832.125
A40: 39 | H40: 832.125
A41: 40 | H41: 832.125
A42: 41 | H42: 832.125
A43: 42 | H43: 832.125
A44: 43 | H44: 832.125
A45: 44 | H45: 832.125
A46: 45 | H46: 832.125
A47: 46 | H47: 832.125
A48: 47 | H48: 832.125
A49: 48 | H49: 832.125
A50: 49 | H50: 832.125
A51: 50 | H51: 832.125
A52: 51 | H52: 832.125
A53: 52 | H53: 832.125
A54: 53 | H54: 832.125
A55: 54 | H55: 832.125
A56: 55 | H56: 832.125
A57: 56 | H57: 832.125
A58: 57 | B58: 462 | C58: 10 | D58: 2 | E58: 2 | F58: 2 | G58: 942 | H58: 844.3333333
A59: 58 | H59: 844.3333333
A60: 59 | H60: 844.3333333
A61: 60 | H61: 844.3333333
A62: 61 | H62: 844.3333333
A63: 62 | H63: 844.3333333
A64: 63 | H64: 844.3333333
A65: 64 | H65: 844.3333333
A66: 65 | H66: 844.3333333
A67: 66 | H67: 844.3333333
A68: 67 | H68: 844.3333333
A69: 68 | H69: 844.3333333
A70: 69 | H70: 844.3333333
A71: 70 | H71: 844.3333333
A72: 71 | H72: 844.3333333
A73: 72 | H73: 844.3333333
A74: 73 | H74: 844.3333333
A75: 74 | H75: 844.3333333
A76: 75 | H76: 844.3333333

Sheet Lippold,Michael
A1: Serie | B1: Sp.Pu | C1: gew. | D1: verl. | E1: abg. | F1: v.GS | G1: We.Pu. | H1: Durchschnitt Wertungspunkte | J1: Platz am Jahresende : | M1: 7 | N1: in Gruppe : | P1: 1 | Q1: Anzahl der Teilnahmen : | U1: 46
A2: 1 | B2: 270 | C2: 7 | D2: 1 | E2: 7 | F2: 7 | G2: 850 | H2: 850 | K2: Spiel- | L2: Spiele | P2: Wert.- | R2: Anz.Li.- | S2: Anz. | T2: Listenfehler
A3: 2 | H3: 850 | K3: punkte | L3: gew. | M3: ver. | N3: abgen. | O3: v.GS | P3: punkte | R3: führer | S3: Null-Fehler | T3: Summe | U3: Schnitt
A4: 3 | B4: 61 | C4: 8 | D4: 4 | E4: 3 | F4: 4 | G4: 381 | H4: 615.5 | J4: Max | K4: 718 | L4: 16 | M4: 7 | N4: 9 | O4: 11 | P4: 1678 | R4: 15 | S4: 15 | T4: 0 | U4: 0
A5: 4 | H5: 615.5 | J5: Schnitt | K5: 366.7608696 | L5: 10.39130435 | M5: 2.086956522 | N5: 4 | O5: 5.826086957 | P5: 962.4130435 | S5: Sum.Abr.geld : | T5: 96
A6: 5 | B6: 527 | C6: 13 | D6: 2 | E6: 5 | F6: 5 | G6: 1277 | H6: 836 | J6: Min | K6: -257 | L6: 4 | M6: 0 | N6: 0 | O6: 1 | P6: -167 | S6: Schn.Abreizg. : | T6: 2.086956522
A7: 6 | B7: 608 | C7: 13 | D7: 1 | E7: 5 | F7: 7 | G7: 1418 | H7: 981.5
A8: 7 | B8: 680 | C8: 12 | D8: 1 | E8: 2 | F8: 4 | G8: 1350 | H8: 1055.2
A9: 8 | H9: 1055.2
A10: 9 | B10: 436 | C10: 9 | D10: 0 | E10: 4 | F10: 5 | G10: 1036 | H10: 1052
A11: 10 | B11: 544 | C11: 12 | D11: 1 | E11: 6 | F11: 9 | G11: 1364 | H11: 1096.571429
A12: 11 | H12: 1096.571429
A13: 12 | B13: 331 | C13: 9 | D13: 0 | E13: 7 | F13: 9 | G13: 1051 | H13: 1090.875
A14: 13 | B14: 299 | C14: 9 | D14: 3 | E14: 4 | F14: 5 | G14: 749 | H14: 1052.888889
A15: 14 | H15: 1052.888889
A16: 15 | B16: 260 | C16: 15 | D16: 4 | E16: 1 | F16: 5 | G16: 960 | H16: 1043.6
A17: 16 | B17: 280 | C17: 6 | D17: 1 | E17: 4 | F17: 7 | G17: 740 | H17: 1016
A18: 17 | H18: 1016
A19: 18 | B19: 607 | C19: 12 | D19: 1 | E19: 8 | F19: 11 | G19: 1487 | H19: 1055.25
A20: 19 | B20: 614 | C20: 10 | D20: 1 | E20: 3 | F20: 6 | G20: 1244 | H20: 1069.769231
A21: 20 | B21: 394 | C21: 9 | D21: 2 | E21: 5 | F21: 7 | G21: 954 | H21: 1061.5
A22: 21 | H22: 1061.5
A23: 22 | B23: 718 | C23: 15 | D23: 0 | E23: 6 | F23: 7 | G23: 1678 | H23: 1102.6
A24: 23 | B24: 474 | C24: 8 | D24: 0 | E24: 5 | F24: 5 | G24: 1024 | H24: 1097.6875
A25: 24 | H25: 1097.6875
A26: 25 | H26: 1097.6875
A27: 26 | H27: 1097.6875
A28: 27 | B28: 522 | C28: 12 | D28: 0 | E28: 4 | F28: 5 | G28: 1272 | H28: 1107.941176
A29: 28 | B29: 299 | C29: 9 | D29: 2 | E29: 2 | F29: 7 | G29: 859 | H29: 1094.111111
A30: 29 | B30: 303 | C30: 13 | D30: 6 | E30: 1 | F30: 4 | G30: 773 | H30: 1077.210526
A31: 30 | H31: 1077.210526
A32: 31 | B32: 563 | C32: 11 | D32: 2 | E32: 1 | F32: 1 | G32: 1053 | H32: 1076
A33: 32 | B33: 532 | C33: 10 | D33: 0 | E33: 3 | F33: 4 | G33: 1152 | H33: 1079.619048
A34: 33 | H34: 1079.619048
A35: 34 | H35: 1079.619048
A36: 35 | H36: 1079.619048
A37: 36 | H37: 1079.619048
A38: 37 | B38: 312 | C38: 8 | D38: 1 | E38: 5 | F38: 9 | G38: 932 | H38: 1072.909091
A39: 38 | B39: 413 | C39: 9 | D39: 0 | E39: 9 | F39: 11 | G39: 1193 | H39: 1078.130435
A40: 39 | H40: 1078.130435
A41: 40 | B41: 372 | C41: 9 | D41: 1 | E41: 4 | F41: 6 | G41: 952 | H41: 1072.875
A42: 41 | B42: 616 | C42: 13 | D42: 2 | E42: 3 | F42: 5 | G42: 1316 | H42: 1082.6
A43: 42 | H43: 1082.6
A44: 43 | B44: 306 | C44: 10 | D44: 2 | E44: 7 | F44: 8 | G44: 946 | H44: 1077.346154
A45: 44 | H45: 1077.346154
A46: 45 | B46: 152 | C46: 4 | D46: 1 | E46: 3 | F46: 3 | G46: 392 | H46: 1051.962963
A47: 46 | B47: 224 | C47: 9 | D47: 3 | E47: 5 | F47: 6 | G47: 704 | H47: 1039.535714
A48: 47 | H48: 1039.535714
A49: 48 | B49: 246 | C49: 12 | D49: 3 | E49: 5 | F49: 5 | G49: 896 | H49: 1034.586207
A50: 49 | B50: 389 | C50: 13 | D50: 4 | E50: 3 | F50: 5 | G50: 989 | H50: 1033.066667
A51: 50 | B51: -257 | C51: 8 | D51: 7 | E51: 1 | F51: 1 | G51: -167 | H51: 994.3548387
A52: 51 | B52: 360 | C52: 12 | D52: 1 | E52: 3 | F52: 6 | G52: 1090 | H52: 997.34375
A53: 52 | B53: 112 | C53: 5 | D53: 1 | E53: 5 | F53: 7 | G53: 522 | H53: 982.9393939
A54: 53 | H54: 982.9393939
A55: 54 | B55: 335 | C55: 10 | D55: 2 | E55: 7 | F55: 7 | G55: 1015 | H55: 983.8823529
A56: 55 | B56: 276 | C56: 13 | D56: 4 | E56: 3 | F56: 5 | G56: 876 | H56: 980.8
A57: 56 | H57: 980.8
A58: 57 | B58: 656 | C58: 13 | D58: 2 | E58: 5 | F58: 8 | G58: 1446 | H58: 993.7222222
A59: 58 | H59: 993.7222222
A60: 59 | B60: 130 | C60: 8 | D60: 5 | E60: 2 | F60: 5 | G60: 430 | H60: 978.4864865
A61: 60 | B61: 392 | C61: 14 | D61: 3 | E61: 3 | F61: 3 | G61: 1032 | H61: 979.8947368
A62: 61 | H62: 979.8947368
A63: 62 | B63: 383 | C63: 10 | D63: 1 | E63: 4 | F63: 6 | G63: 1013 | H63: 980.7435897
A64: 63 | H64: 980.7435897
A65: 64 | B65: 294 | C65: 10 | D65: 4 | E65: 4 | F65: 6 | G65: 774 | H65: 975.575
A66: 65 | H66: 975.575
A67: 66 | B67: 444 | C67: 10 | D67: 2 | E67: 5 | F67: 6 | G67: 1024 | H67: 976.7560976
A68: 67 | H68: 976.7560976
A69: 68 | B69: 256 | C69: 11 | D69: 4 | E69: 2 | F69: 5 | G69: 756 | H69: 971.5
A70: 69 | H70: 971.5
A71: 70 | B71: 333 | C71: 7 | D71: 1 | E71: 3 | F71: 6 | G71: 813 | H71: 967.8139535
A72: 71 | H72: 967.8139535
A73: 72 | B73: 363 | C73: 10 | D73: 1 | E73: 0 | F73: 1 | G73: 843 | H73: 964.9772727
A74: 73 | H74: 964.9772727
A75: 74 | B75: 291 | C75: 16 | D75: 4 | E75: 3 | F75: 9 | G75: 1161 | H75: 969.3333333
A76: 75 | B76: 151 | C76: 12 | D76: 5 | E76: 4 | F76: 5 | G76: 651 | H76: 962.4130435

Sheet Narewski Dr.,Ulf
A1: Serie | B1: Sp.Pu | C1: gew. | D1: verl. | E1: abg. | F1: v.GS | G1: We.Pu. | H1: Durchschnitt Wertungspunkte | J1: Platz am Jahresende : | M1: 34 | N1: in Gruppe : | P1: 3 | Q1: Anzahl der Teilnahmen : | U1: 5
A2: 1 | K2: Spiel- | L2: Spiele | P2: Wert.- | R2: Anz.Li.- | S2: Anz. | T2: Listenfehler
A3: 2 | K3: punkte | L3: gew. | M3: ver. | N3: abgen. | O3: v.GS | P3: punkte | R3: führer | S3: Null-Fehler | T3: Summe | U3: Schnitt
A4: 3 | J4: Max | K4: 387 | L4: 11 | M4: 3 | N4: 7 | O4: 7 | P4: 1067 | R4: 0 | S4: 0 | T4: 0
A5: 4 | J5: Schnitt | K5: 346 | L5: 8.6 | M5: 1.4 | N5: 4.2 | O5: 5.4 | P5: 882 | S5: Sum.Abr.geld : | T5: 7
A6: 5 | J6: Min | K6: 271 | L6: 8 | M6: 0 | N6: 2 | O6: 2 | P6: 659 | S6: Schn.Abreizg. : | T6: 1.4
A7: 6
A8: 7
A9: 8
A10: 9
A11: 10 | B11: 387 | C11: 8 | D11: 0 | E11: 7 | F11: 7 | G11: 1067 | H11: 1067
A12: 11 | H12: 1067
A13: 12 | H13: 1067
A14: 13 | H14: 1067
A15: 14 | H15: 1067
A16: 15 | H16: 1067
A17: 16 | B17: 349 | C17: 8 | D17: 3 | E17: 2 | F17: 2 | G17: 659 | H17: 863
A18: 17 | H18: 863
A19: 18 | B19: 375 | C19: 11 | D19: 2 | E19: 3 | F19: 4 | G19: 945 | H19: 890.3333333
A20: 19 | B20: 348 | C20: 8 | D20: 0 | E20: 4 | F20: 7 | G20: 958 | H20: 907.25
A21: 20 | B21: 271 | C21: 8 | D21: 2 | E21: 5 | F21: 7 | G21: 781 | H21: 882
A22: 21 | H22: 882
A23: 22 | H23: 882
A24: 23 | H24: 882
A25: 24 | H25: 882
A26: 25 | H26: 882
A27: 26 | H27: 882
A28: 27 | H28: 882
A29: 28 | H29: 882
A30: 29 | H30: 882
A31: 30 | H31: 882
A32: 31 | H32: 882
A33: 32 | H33: 882
A34: 33 | H34: 882
A35: 34 | H35: 882
A36: 35 | H36: 882
A37: 36 | H37: 882
A38: 37 | H38: 882
A39: 38 | H39: 882
A40: 39 | H40: 882
A41: 40 | H41: 882
A42: 41 | H42: 882
A43: 42 | H43: 882
A44: 43 | H44: 882
A45: 44 | H45: 882
A46: 45 | H46: 882
A47: 46 | H47: 882
A48: 47 | H48: 882
A49: 48 | H49: 882
A50: 49 | H50: 882
A51: 50 | H51: 882
A52: 51 | H52: 882
A53: 52 | H53: 882
A54: 53 | H54: 882
A55: 54 | H55: 882
A56: 55 | H56: 882
A57: 56 | H57: 882
A58: 57 | H58: 882
A59: 58 | H59: 882
A60: 59 | H60: 882
A61: 60 | H61: 882
A62: 61 | H62: 882
A63: 62 | H63: 882
A64: 63 | H64: 882
A65: 64 | H65: 882
A66: 65 | H66: 882
A67: 66 | H67: 882
A68: 67 | H68: 882
A69: 68 | H69: 882
A70: 69 | H70: 882
A71: 70 | H71: 882
A72: 71 | H72: 882
A73: 72 | H73: 882
A74: 73 | H74: 882
A75: 74 | H75: 882
A76: 75 | H76: 882

Sheet Nitzschke,Andreas
A1: Serie | B1: Sp.Pu | C1: gew. | D1: verl. | E1: abg. | F1: v.GS | G1: We.Pu. | H1: Durchschnitt Wertungspunkte | J1: Platz am Jahresende : | M1: 8 | N1: in Gruppe : | P1: 1 | Q1: Anzahl der Teilnahmen : | U1: 44
A2: 1 | B2: -25 | C2: 8 | D2: 5 | E2: 4 | F2: 7 | G2: 335 | H2: 335 | K2: Spiel- | L2: Spiele | P2: Wert.- | R2: Anz.Li.- | S2: Anz. | T2: Listenfehler
A3: 2 | H3: 335 | K3: punkte | L3: gew. | M3: ver. | N3: abgen. | O3: v.GS | P3: punkte | R3: führer | S3: Null-Fehler | T3: Summe | U3: Schnitt
A4: 3 | B4: 472 | C4: 10 | D4: 0 | E4: 5 | F4: 8 | G4: 1212 | H4: 773.5 | J4: Max | K4: 816 | L4: 15 | M4: 7 | N4: 7 | O4: 11 | P4: 1636 | R4: 18 | S4: 18 | T4: 0 | U4: 0
A5: 4 | H5: 773.5 | J5: Schnitt | K5: 372.8181818 | L5: 10.40909091 | M5: 2.068181818 | N5: 4.113636364 | O5: 5.522727273 | P5: 960.0909091 | S5: Sum.Abr.geld : | T5: 91
A6: 5 | B6: 393 | C6: 8 | D6: 0 | E6: 5 | F6: 5 | G6: 993 | H6: 846.6666667 | J6: Min | K6: -187 | L6: 6 | M6: 0 | N6: 0 | O6: 1 | P6: -57 | S6: Schn.Abreizg. : | T6: 2.068181818
A7: 6 | B7: 816 | C7: 14 | D7: 0 | E7: 3 | F7: 4 | G7: 1636 | H7: 1044
A8: 7 | B8: 416 | C8: 13 | D8: 1 | E8: 0 | F8: 2 | G8: 1076 | H8: 1050.4
A9: 8 | H9: 1050.4
A10: 9 | B10: 541 | C10: 14 | D10: 2 | E10: 4 | F10: 7 | G10: 1351 | H10: 1100.5
A11: 10 | B11: 442 | C11: 15 | D11: 3 | E11: 5 | F11: 7 | G11: 1252 | H11: 1122.142857
A12: 11 | H12: 1122.142857
A13: 12 | B13: 312 | C13: 6 | D13: 1 | E13: 5 | F13: 7 | G13: 772 | H13: 1078.375
A14: 13 | B14: 300 | C14: 6 | D14: 0 | E14: 7 | F14: 8 | G14: 840 | H14: 1051.888889
A15: 14 | H15: 1051.888889
A16: 15 | B16: 602 | C16: 13 | D16: 2 | E16: 5 | F16: 5 | G16: 1302 | H16: 1076.9
A17: 16 | B17: 601 | C17: 15 | D17: 1 | E17: 2 | F17: 4 | G17: 1421 | H17: 1108.181818
A18: 17 | H18: 1108.181818
A19: 18 | H19: 1108.181818
A20: 19 | B20: 202 | C20: 10 | D20: 2 | E20: 3 | F20: 5 | G20: 752 | H20: 1078.5
A21: 20 | B21: 484 | C21: 8 | D21: 2 | E21: 6 | F21: 7 | G21: 994 | H21: 1072
A22: 21 | H22: 1072
A23: 22 | H23: 1072
A24: 23 | B24: 131 | C24: 6 | D24: 3 | E24: 4 | F24: 4 | G24: 401 | H24: 1024.071429
A25: 24 | H25: 1024.071429
A26: 25 | B26: 774 | C26: 12 | D26: 1 | E26: 2 | F26: 2 | G26: 1384 | H26: 1048.066667
A27: 26 | H27: 1048.066667
A28: 27 | H28: 1048.066667
A29: 28 | B29: 183 | C29: 9 | D29: 3 | E29: 4 | F29: 5 | G29: 633 | H29: 1022.125
A30: 29 | B30: 402 | C30: 12 | D30: 2 | E30: 2 | F30: 4 | G30: 1022 | H30: 1022.117647
A31: 30 | H31: 1022.117647
A32: 31 | B32: -187 | C32: 6 | D32: 7 | E32: 4 | F32: 6 | G32: -57 | H32: 962.1666667
A33: 32 | B33: 249 | C33: 9 | D33: 1 | E33: 5 | F33: 6 | G33: 829 | H33: 955.1578947
A34: 33 | H34: 955.1578947
A35: 34 | H35: 955.1578947
A36: 35 | B36: 267 | C36: 9 | D36: 5 | E36: 3 | F36: 6 | G36: 647 | H36: 939.75
A37: 36 | B37: 106 | C37: 10 | D37: 3 | E37: 4 | F37: 4 | G37: 616 | H37: 924.3333333
A38: 37 | B38: 563 | C38: 12 | D38: 1 | E38: 1 | F38: 1 | G38: 1153 | H38: 934.7272727
A39: 38 | B39: 65 | C39: 7 | D39: 3 | E39: 5 | F39: 7 | G39: 475 | H39: 914.7391304
A40: 39 | H40: 914.7391304
A41: 40 | B41: 547 | C41: 14 | D41: 2 | E41: 6 | F41: 6 | G41: 1387 | H41: 934.4166667
A42: 41 | B42: 268 | C42: 7 | D42: 0 | E42: 4 | F42: 6 | G42: 798 | H42: 928.96
A43: 42 | H43: 928.96
A44: 43 | B44: 344 | C44: 9 | D44: 2 | E44: 6 | F44: 8 | G44: 934 | H44: 929.1538462
A45: 44 | H45: 929.1538462
A46: 45 | B46: 578 | C46: 14 | D46: 2 | E46: 2 | F46: 2 | G46: 1238 | H46: 940.5925926
A47: 46 | B47: 395 | C47: 9 | D47: 1 | E47: 5 | F47: 6 | G47: 975 | H47: 941.8214286
A48: 47 | H48: 941.8214286
A49: 48 | B49: 266 | C49: 8 | D49: 1 | E49: 5 | F49: 8 | G49: 856 | H49: 938.862069
A50: 49 | B50: 48 | C50: 7 | D50: 4 | E50: 5 | F50: 6 | G50: 378 | H50: 920.1666667
A51: 50 | H51: 920.1666667
A52: 51 | B52: 399 | C52: 9 | D52: 2 | E52: 4 | F52: 5 | G52: 899 | H52: 919.483871
A53: 52 | B53: 117 | C53: 10 | D53: 4 | E53: 4 | F53: 5 | G53: 567 | H53: 908.46875
A54: 53 | H54: 908.46875
A55: 54 | B55: 273 | C55: 11 | D55: 4 | E55: 6 | F55: 6 | G55: 803 | H55: 905.2727273
A56: 55 | B56: 526 | C56: 14 | D56: 0 | E56: 6 | F56: 8 | G56: 1466 | H56: 921.7647059
A57: 56 | H57: 921.7647059
A58: 57 | B58: 268 | C58: 9 | D58: 3 | E58: 4 | F58: 5 | G58: 718 | H58: 915.9428571
A59: 58 | H59: 915.9428571
A60: 59 | B60: 474 | C60: 11 | D60: 2 | E60: 4 | F60: 4 | G60: 1084 | H60: 920.6111111
A61: 60 | B61: 742 | C61: 15 | D61: 2 | E61: 3 | F61: 5 | G61: 1542 | H61: 937.4054054
A62: 61 | H62: 937.4054054
A63: 62 | B63: 589 | C63: 12 | D63: 1 | E63: 4 | F63: 6 | G63: 1319 | H63: 947.4473684
A64: 63 | H64: 947.4473684
A65: 64 | B65: 383 | C65: 8 | D65: 4 | E65: 4 | F65: 6 | G65: 763 | H65: 942.7179487
A66: 65 | H66: 942.7179487
A67: 66 | B67: 33 | C67: 10 | D67: 5 | E67: 2 | F67: 3 | G67: 373 | H67: 928.475
A68: 67 | H68: 928.475
A69: 68 | B69: 506 | C69: 13 | D69: 2 | E69: 5 | F69: 7 | G69: 1266 | H69: 936.7073171
A70: 69 | H70: 936.7073171
A71: 70 | B71: 544 | C71: 11 | D71: 0 | E71: 6 | F71: 8 | G71: 1334 | H71: 946.1666667
A72: 71 | H72: 946.1666667
A73: 72 | B73: 447 | C73: 11 | D73: 1 | E73: 1 | F73: 1 | G73: 977 | H73: 946.8837209
A74: 73 | H74: 946.8837209
A75: 74 | B75: 548 | C75: 14 | D75: 1 | E75: 7 | F75: 11 | G75: 1528 | H75: 960.0909091
A76: 75 | H76: 960.0909091

Sheet Nitzschke,Holger
A1: Serie | B1: Sp.Pu | C1: gew. | D1: verl. | E1: abg. | F1: v.GS | G1: We.Pu. | H1: Durchschnitt Wertungspunkte | J1: Platz am Jahresende : | M1: 9 | N1: in Gruppe : | P1: 1 | Q1: Anzahl der Teilnahmen : | U1: 45
A2: 1 | B2: 309 | C2: 9 | D2: 3 | E2: 4 | F2: 9 | G2: 879 | H2: 879 | K2: Spiel- | L2: Spiele | P2: Wert.- | R2: Anz.Li.- | S2: Anz. | T2: Listenfehler
A3: 2 | H3: 879 | K3: punkte | L3: gew. | M3: ver. | N3: abgen. | O3: v.GS | P3: punkte | R3: führer | S3: Null-Fehler | T3: Summe | U3: Schnitt
A4: 3 | B4: 628 | C4: 10 | D4: 2 | E4: 3 | F4: 4 | G4: 1148 | H4: 1013.5 | J4: Max | K4: 937 | L4: 16 | M4: 5 | N4: 7 | O4: 9 | P4: 1827 | R4: 12 | S4: 12 | T4: 0 | U4: 0
A5: 4 | H5: 1013.5 | J5: Schnitt | K5: 386.3555556 | L5: 9.933333333 | M5: 1.911111111 | N5: 3.688888889 | O5: 5.288888889 | P5: 951.9111111 | S5: Sum.Abr.geld : | T5: 86
A6: 5 | H6: 1013.5 | J6: Min | K6: -105 | L6: 5 | M6: 0 | N6: 1 | O6: 2 | P6: 65 | S6: Schn.Abreizg. : | T6: 1.911111111
A7: 6 | B7: 511 | C7: 8 | D7: 1 | E7: 5 | F7: 7 | G7: 1071 | H7: 1032.666667
A8: 7 | B8: 414 | C8: 9 | D8: 0 | E8: 3 | F8: 3 | G8: 954 | H8: 1013
A9: 8 | H9: 1013
A10: 9 | B10: 91 | C10: 7 | D10: 4 | E10: 3 | F10: 5 | G10: 391 | H10: 888.6
A11: 10 | H11: 888.6
A12: 11 | H12: 888.6
A13: 12 | B13: 797 | C13: 14 | D13: 1 | E13: 2 | F13: 2 | G13: 1527 | H13: 995
A14: 13 | B14: 390 | C14: 8 | D14: 2 | E14: 4 | F14: 4 | G14: 810 | H14: 968.5714286
A15: 14 | H15: 968.5714286
A16: 15 | B16: 284 | C16: 6 | D16: 0 | E16: 6 | F16: 9 | G16: 854 | H16: 954.25
A17: 16 | B17: 623 | C17: 12 | D17: 3 | E17: 3 | F17: 5 | G17: 1223 | H17: 984.1111111
A18: 17 | H18: 984.1111111
A19: 18 | B19: 167 | C19: 10 | D19: 2 | E19: 3 | F19: 4 | G19: 687 | H19: 954.4
A20: 19 | B20: 574 | C20: 11 | D20: 0 | E20: 4 | F20: 4 | G20: 1284 | H20: 984.3636364
A21: 20 | B21: 93 | C21: 8 | D21: 5 | E21: 2 | F21: 4 | G21: 363 | H21: 932.5833333
A22: 21 | H22: 932.5833333
A23: 22 | B23: 575 | C23: 14 | D23: 3 | E23: 2 | F23: 4 | G23: 1245 | H23: 956.6153846
A24: 23 | B24: 271 | C24: 7 | D24: 3 | E24: 2 | F24: 3 | G24: 561 | H24: 928.3571429
A25: 24 | H25: 928.3571429
A26: 25 | B26: 755 | C26: 14 | D26: 2 | E26: 4 | F26: 5 | G26: 1505 | H26: 966.8
A27: 26 | H27: 966.8
A28: 27 | B28: 265 | C28: 11 | D28: 2 | E28: 3 | F28: 4 | G28: 835 | H28: 958.5625
A29: 28 | B29: 640 | C29: 13 | D29: 1 | E29: 3 | F29: 5 | G29: 1390 | H29: 983.9411765
A30: 29 | B30: 310 | C30: 9 | D30: 2 | E30: 2 | F30: 4 | G30: 780 | H30: 972.6111111
A31: 30 | H31: 972.6111111
A32: 31 | B32: 295 | C32: 9 | D32: 0 | E32: 7 | F32: 7 | G32: 1025 | H32: 975.3684211
A33: 32 | B33: 226 | C33: 9 | D33: 3 | E33: 2 | F33: 4 | G33: 646 | H33: 958.9
A34: 33 | H34: 958.9
A35: 34 | B35: 711 | C35: 16 | D35: 1 | E35: 3 | F35: 5 | G35: 1611 | H35: 989.952381
A36: 35 | B36: 937 | C36: 16 | D36: 0 | E36: 1 | F36: 3 | G36: 1827 | H36: 1028
A37: 36 | H37: 1028
A38: 37 | B38: 242 | C38: 7 | D38: 2 | E38: 6 | F38: 7 | G38: 702 | H38: 1013.826087
A39: 38 | B39: 320 | C39: 7 | D39: 2 | E39: 7 | F39: 9 | G39: 840 | H39: 1006.583333
A40: 39 | B40: 376 | C40: 11 | D40: 2 | E40: 6 | F40: 9 | G40: 1096 | H40: 1010.16
A41: 40 | B41: 423 | C41: 12 | D41: 3 | E41: 4 | F41: 8 | G41: 1113 | H41: 1014.115385
A42: 41 | B42: 229 | C42: 7 | D42: 2 | E42: 5 | F42: 9 | G42: 749 | H42: 1004.296296
A43: 42 | H43: 1004.296296
A44: 43 | B44: 439 | C44: 14 | D44: 2 | E44: 2 | F44: 3 | G44: 1129 | H44: 1008.75
A45: 44 | H45: 1008.75
A46: 45 | H46: 1008.75
A47: 46 | B47: 134 | C47: 6 | D47: 2 | E47: 5 | F47: 7 | G47: 544 | H47: 992.7241379
A48: 47 | H48: 992.7241379
A49: 48 | B49: 370 | C49: 11 | D49: 1 | E49: 4 | F49: 4 | G49: 1030 | H49: 993.9666667
A50: 49 | H50: 993.9666667
A51: 50 | H51: 993.9666667
A52: 51 | B52: 520 | C52: 12 | D52: 2 | E52: 2 | F52: 3 | G52: 1110 | H52: 997.7096774
A53: 52 | B53: 589 | C53: 16 | D53: 3 | E53: 3 | F53: 5 | G53: 1389 | H53: 1009.9375
A54: 53 | B54: 388 | C54: 8 | D54: 1 | E54: 3 | F54: 3 | G54: 858 | H54: 1005.333333
A55: 54 | B55: 537 | C55: 7 | D55: 0 | E55: 5 | F55: 6 | G55: 1067 | H55: 1007.147059
A56: 55 | B56: 298 | C56: 8 | D56: 2 | E56: 5 | F56: 7 | G56: 808 | H56: 1001.457143
A57: 56 | B57: -105 | C57: 5 | D57: 4 | E57: 3 | F57: 3 | G57: 65 | H57: 975.4444444
A58: 57 | B58: 376 | C58: 9 | D58: 3 | E58: 5 | F58: 7 | G58: 886 | H58: 973.027027
A59: 58 | H59: 973.027027
A60: 59 | B60: 152 | C60: 10 | D60: 2 | E60: 4 | F60: 6 | G60: 732 | H60: 966.6842105
A61: 60 | B61: 225 | C61: 7 | D61: 1 | E61: 5 | F61: 5 | G61: 675 | H61: 959.2051282
A62: 61 | H62: 959.2051282
A63: 62 | H63: 959.2051282
A64: 63 | H64: 959.2051282
A65: 64 | B65: 229 | C65: 8 | D65: 2 | E65: 6 | F65: 8 | G65: 769 | H65: 954.45
A66: 65 | H66: 954.45
A67: 66 | B67: 438 | C67: 10 | D67: 1 | E67: 3 | F67: 7 | G67: 1098 | H67: 957.9512195
A68: 67 | H68: 957.9512195
A69: 68 | B69: 637 | C69: 10 | D69: 2 | E69: 4 | F69: 7 | G69: 1247 | H69: 964.8333333
A70: 69 | H70: 964.8333333
A71: 70 | B71: 221 | C71: 12 | D71: 4 | E71: 4 | F71: 6 | G71: 801 | H71: 961.0232558
A72: 71 | H72: 961.0232558
A73: 72 | B73: 385 | C73: 10 | D73: 0 | E73: 1 | F73: 2 | G73: 945 | H73: 960.6590909
A74: 73 | B74: 97 | C74: 10 | D74: 3 | E74: 3 | F74: 3 | G74: 567 | H74: 951.9111111
A75: 74 | H75: 951.9111111
A76: 75 | H76: 951.9111111

Sheet Nürnberger,Thomas
A1: Serie | B1: Sp.Pu | C1: gew. | D1: verl. | E1: abg. | F1: v.GS | G1: We.Pu. | H1: Durchschnitt Wertungspunkte | J1: Platz am Jahresende : | M1: 13 | N1: in Gruppe : | P1: 1 | Q1: Anzahl der Teilnahmen : | U1: 53
A2: 1 | B2: 350 | C2: 9 | D2: 3 | E2: 5 | F2: 7 | G2: 860 | H2: 860 | K2: Spiel- | L2: Spiele | P2: Wert.- | R2: Anz.Li.- | S2: Anz. | T2: Listenfehler
A3: 2 | B3: 362 | C3: 7 | D3: 1 | E3: 2 | F3: 2 | G3: 742 | H3: 801 | K3: punkte | L3: gew. | M3: ver. | N3: abgen. | O3: v.GS | P3: punkte | R3: führer | S3: Null-Fehler | T3: Summe | U3: Schnitt
A4: 3 | B4: 523 | C4: 12 | D4: 1 | E4: 4 | F4: 7 | G4: 1283 | H4: 961.6666667 | J4: Max | K4: 1130 | L4: 19 | M4: 5 | N4: 8 | O4: 11 | P4: 2140 | R4: 18 | S4: 18 | T4: 0 | U4: 0
A5: 4 | B5: 192 | C5: 9 | D5: 3 | E5: 2 | F5: 2 | G5: 572 | H5: 864.25 | J5: Schnitt | K5: 365.6037736 | L5: 9.679245283 | M5: 1.867924528 | N5: 4.037735849 | O5: 4.981132075 | P5: 923.5283019 | S5: Sum.Abr.geld : | T5: 99
A6: 5 | H6: 864.25 | J6: Min | K6: -94 | L6: 2 | M6: 0 | N6: 0 | O6: 1 | P6: 4 | S6: Schn.Abreizg. : | T6: 1.867924528
A7: 6 | H7: 864.25
A8: 7 | B8: 201 | C8: 7 | D8: 2 | E8: 0 | F8: 2 | G8: 511 | H8: 793.6
A9: 8 | B9: 317 | C9: 10 | D9: 1 | E9: 4 | F9: 4 | G9: 927 | H9: 815.8333333
A10: 9 | B10: 440 | C10: 9 | D10: 1 | E10: 6 | F10: 8 | G10: 1080 | H10: 853.5714286
A11: 10 | B11: 326 | C11: 8 | D11: 2 | E11: 8 | F11: 9 | G11: 896 | H11: 858.875
A12: 11 | B12: 282 | C12: 7 | D12: 3 | E12: 4 | F12: 5 | G12: 632 | H12: 833.6666667
A13: 12 | B13: 684 | C13: 15 | D13: 2 | E13: 2 | F13: 2 | G13: 1414 | H13: 891.7
A14: 13 | B14: 362 | C14: 8 | D14: 2 | E14: 4 | F14: 5 | G14: 812 | H14: 884.4545455
A15: 14 | B15: 237 | C15: 6 | D15: 0 | E15: 6 | F15: 6 | G15: 777 | H15: 875.5
A16: 15 | B16: 610 | C16: 12 | D16: 0 | E16: 5 | F16: 5 | G16: 1410 | H16: 916.6153846
A17: 16 | B17: 596 | C17: 11 | D17: 1 | E17: 3 | F17: 3 | G17: 1186 | H17: 935.8571429
A18: 17 | B18: 386 | C18: 10 | D18: 1 | E18: 6 | F18: 6 | G18: 1076 | H18: 945.2
A19: 18 | B19: 442 | C19: 11 | D19: 1 | E19: 5 | F19: 7 | G19: 1152 | H19: 958.125
A20: 19 | H20: 958.125
A21: 20 | H21: 958.125
A22: 21 | H22: 958.125
A23: 22 | B23: 381 | C23: 8 | D23: 1 | E23: 2 | F23: 5 | G23: 881 | H23: 953.5882353
A24: 23 | B24: 554 | C24: 12 | D24: 1 | E24: 4 | F24: 5 | G24: 1254 | H24: 970.2777778
A25: 24 | B25: 298 | C25: 8 | D25: 2 | E25: 4 | F25: 4 | G25: 758 | H25: 959.1052632
A26: 25 | H26: 959.1052632
A27: 26 | H27: 959.1052632
A28: 27 | H28: 959.1052632
A29: 28 | B29: 631 | C29: 12 | D29: 0 | E29: 2 | F29: 2 | G29: 1311 | H29: 976.7
A30: 29 | B30: 439 | C30: 10 | D30: 2 | E30: 4 | F30: 4 | G30: 959 | H30: 975.8571429
A31: 30 | B31: 291 | C31: 9 | D31: 0 | E31: 4 | F31: 4 | G31: 901 | H31: 972.4545455
A32: 31 | B32: 303 | C32: 8 | D32: 2 | E32: 8 | F32: 11 | G32: 933 | H32: 970.7391304
A33: 32 | H33: 970.7391304
A34: 33 | H34: 970.7391304
A35: 34 | H35: 970.7391304
A36: 35 | B36: 456 | C36: 9 | D36: 2 | E36: 1 | F36: 1 | G36: 836 | H36: 965.125
A37: 36 | B37: -66 | C37: 2 | D37: 3 | E37: 3 | F37: 3 | G37: 4 | H37: 926.68
A38: 37 | H38: 926.68
A39: 38 | B39: 222 | C39: 5 | D39: 2 | E39: 4 | F39: 8 | G39: 612 | H39: 914.5769231
A40: 39 | B40: 439 | C40: 10 | D40: 2 | E40: 3 | F40: 3 | G40: 959 | H40: 916.2222222
A41: 40 | B41: 608 | C41: 12 | D41: 2 | E41: 7 | F41: 10 | G41: 1408 | H41: 933.7857143
A42: 41 | B42: 407 | C42: 11 | D42: 1 | E42: 5 | F42: 5 | G42: 1057 | H42: 938.0344828
A43: 42 | B43: 533 | C43: 16 | D43: 1 | E43: 4 | F43: 4 | G43: 1443 | H43: 954.8666667
A44: 43 | H44: 954.8666667
A45: 44 | H45: 954.8666667
A46: 45 | B46: -94 | C46: 6 | D46: 4 | E46: 7 | F46: 8 | G46: 246 | H46: 932
A47: 46 | B47: 157 | C47: 9 | D47: 2 | E47: 3 | F47: 5 | G47: 657 | H47: 923.40625
A48: 47 | B48: 721 | C48: 13 | D48: 0 | E48: 7 | F48: 7 | G48: 1651 | H48: 945.4545455
A49: 48 | B49: 298 | C49: 8 | D49: 2 | E49: 1 | F49: 3 | G49: 688 | H49: 937.8823529
A50: 49 | B50: -52 | C50: 6 | D50: 4 | E50: 3 | F50: 6 | G50: 228 | H50: 917.6
A51: 50 | B51: 616 | C51: 12 | D51: 1 | E51: 2 | F51: 2 | G51: 1246 | H51: 926.7222222
A52: 51 | H52: 926.7222222
A53: 52 | B53: 48 | C53: 10 | D53: 5 | E53: 2 | F53: 2 | G53: 378 | H53: 911.8918919
A54: 53 | B54: 388 | C54: 13 | D54: 4 | E54: 5 | F54: 5 | G54: 1038 | H54: 915.2105263
A55: 54 | B55: 414 | C55: 11 | D55: 4 | E55: 5 | F55: 5 | G55: 964 | H55: 916.4615385
A56: 55 | B56: 1130 | C56: 19 | D56: 0 | E56: 1 | F56: 2 | G56: 2140 | H56: 947.05
A57: 56 | B57: 287 | C57: 8 | D57: 3 | E57: 4 | F57: 4 | G57: 697 | H57: 940.9512195
A58: 57 | B58: 102 | C58: 9 | D58: 3 | E58: 1 | F58: 1 | G58: 442 | H58: 929.0714286
A59: 58 | B59: 367 | C59: 14 | D59: 3 | E59: 2 | F59: 2 | G59: 997 | H59: 930.6511628
A60: 59 | H60: 930.6511628
A61: 60 | B61: 723 | C61: 17 | D61: 2 | E61: 4 | F61: 4 | G61: 1633 | H61: 946.6136364
A62: 61 | B62: 467 | C62: 10 | D62: 2 | E62: 6 | F62: 8 | G62: 1107 | H62: 950.1777778
A63: 62 | H63: 950.1777778
A64: 63 | H64: 950.1777778
A65: 64 | H65: 950.1777778
A66: 65 | H66: 950.1777778
A67: 66 | H67: 950.1777778
A68: 67 | H68: 950.1777778
A69: 68 | B69: 356 | C69: 9 | D69: 1 | E69: 6 | F69: 8 | G69: 996 | H69: 951.173913
A70: 69 | B70: 307 | C70: 10 | D70: 1 | E70: 2 | F70: 2 | G70: 837 | H70: 948.7446809
A71: 70 | B71: 20 | C71: 7 | D71: 3 | E71: 5 | F71: 7 | G71: 430 | H71: 937.9375
A72: 71 | B72: 187 | C72: 7 | D72: 2 | E72: 7 | F72: 7 | G72: 717 | H72: 933.4285714
A73: 72 | B73: 13 | C73: 3 | D73: 4 | E73: 5 | F73: 7 | G73: 173 | H73: 918.22
A74: 73 | B74: 260 | C74: 7 | D74: 1 | E74: 7 | F74: 7 | G74: 840 | H74: 916.6862745
A75: 74 | B75: 262 | C75: 6 | D75: 1 | E75: 7 | F75: 11 | G75: 842 | H75: 915.25
A76: 75 | B76: 594 | C76: 16 | D76: 2 | E76: 1 | F76: 2 | G76: 1354 | H76: 923.5283019

Sheet Pampa,Jakob
A1: Serie | B1: Sp.Pu | C1: gew. | D1: verl. | E1: abg. | F1: v.GS | G1: We.Pu. | H1: Durchschnitt Wertungspunkte | J1: Platz am Jahresende : | M1: 17 | N1: in Gruppe : | P1: 1 | Q1: Anzahl der Teilnahmen : | U1: 43
A2: 1 | B2: 292 | C2: 9 | D2: 3 | E2: 5 | F2: 5 | G2: 792 | H2: 792 | K2: Spiel- | L2: Spiele | P2: Wert.- | R2: Anz.Li.- | S2: Anz. | T2: Listenfehler
A3: 2 | B3: 104 | C3: 11 | D3: 4 | E3: 1 | F3: 1 | G3: 494 | H3: 643 | K3: punkte | L3: gew. | M3: ver. | N3: abgen. | O3: v.GS | P3: punkte | R3: führer | S3: Null-Fehler | T3: Summe | U3: Schnitt
A4: 3 | B4: -165 | C4: 7 | D4: 5 | E4: 6 | F4: 8 | G4: 175 | H4: 487 | J4: Max | K4: 980 | L4: 17 | M4: 7 | N4: 10 | O4: 12 | P4: 1950 | R4: 13 | S4: 13 | T4: 0 | U4: 0
A5: 4 | B5: 221 | C5: 7 | D5: 3 | E5: 3 | F5: 3 | G5: 541 | H5: 500.5 | J5: Schnitt | K5: 316.6511628 | L5: 11.37209302 | M5: 3.511627907 | N5: 3.255813953 | O5: 4.302325581 | P5: 849.2093023 | S5: Sum.Abr.geld : | T5: 151
A6: 5 | B6: -10 | C6: 7 | D6: 5 | E6: 6 | F6: 6 | G6: 330 | H6: 466.4 | J6: Min | K6: -165 | L6: 7 | M6: 0 | N6: 0 | O6: 0 | P6: 70 | S6: Schn.Abreizg. : | T6: 3.511627907
A7: 6 | B7: -79 | C7: 11 | D7: 5 | E7: 4 | F7: 4 | G7: 381 | H7: 452.1666667
A8: 7 | B8: 580 | C8: 17 | D8: 4 | E8: 4 | F8: 4 | G8: 1390 | H8: 586.1428571
A9: 8 | B9: 29 | C9: 11 | D9: 7 | E9: 3 | F9: 3 | G9: 349 | H9: 556.5
A10: 9 | B10: -70 | C10: 9 | D10: 7 | E10: 1 | F10: 1 | G10: 70 | H10: 502.4444444
A11: 10 | H11: 502.4444444
A12: 11 | H12: 502.4444444
A13: 12 | B13: 332 | C13: 15 | D13: 4 | E13: 2 | F13: 2 | G13: 962 | H13: 548.4
A14: 13 | B14: 401 | C14: 14 | D14: 3 | E14: 5 | F14: 9 | G14: 1221 | H14: 609.5454545
A15: 14 | B15: 283 | C15: 10 | D15: 5 | E15: 1 | F15: 1 | G15: 563 | H15: 605.6666667
A16: 15 | B16: 447 | C16: 11 | D16: 1 | E16: 7 | F16: 8 | G16: 1187 | H16: 650.3846154
A17: 16 | B17: -25 | C17: 10 | D17: 4 | E17: 4 | F17: 7 | G17: 485 | H17: 638.5714286
A18: 17 | H18: 638.5714286
A19: 18 | B19: 418 | C19: 11 | D19: 3 | E19: 4 | F19: 7 | G19: 1028 | H19: 664.5333333
A20: 19 | B20: 443 | C20: 15 | D20: 2 | E20: 4 | F20: 5 | G20: 1243 | H20: 700.6875
A21: 20 | B21: 595 | C21: 17 | D21: 3 | E21: 2 | F21: 3 | G21: 1385 | H21: 740.9411765
A22: 21 | B22: 604 | C22: 9 | D22: 1 | E22: 1 | F22: 2 | G22: 1064 | H22: 758.8888889
A23: 22 | B23: 397 | C23: 12 | D23: 3 | E23: 4 | F23: 4 | G23: 967 | H23: 769.8421053
A24: 23 | B24: 319 | C24: 12 | D24: 2 | E24: 0 | F24: 0 | G24: 819 | H24: 772.3
A25: 24 | B25: 447 | C25: 10 | D25: 4 | E25: 2 | F25: 2 | G25: 827 | H25: 774.9047619
A26: 25 | H26: 774.9047619
A27: 26 | H27: 774.9047619
A28: 27 | B28: 589 | C28: 13 | D28: 1 | E28: 10 | F28: 12 | G28: 1549 | H28: 810.0909091
A29: 28 | B29: 192 | C29: 8 | D29: 4 | E29: 3 | F29: 4 | G29: 512 | H29: 797.1304348
A30: 29 | B30: 691 | C30: 16 | D30: 4 | E30: 2 | F30: 2 | G30: 1371 | H30: 821.0416667
A31: 30 | B31: 427 | C31: 10 | D31: 3 | E31: 3 | F31: 3 | G31: 897 | H31: 824.08
A32: 31 | B32: 181 | C32: 8 | D32: 4 | E32: 3 | F32: 3 | G32: 501 | H32: 811.6538462
A33: 32 | B33: 209 | C33: 11 | D33: 3 | E33: 5 | F33: 8 | G33: 849 | H33: 813.037037
A34: 33 | B34: 29 | C34: 8 | D34: 6 | E34: 3 | F34: 3 | G34: 219 | H34: 791.8214286
A35: 34 | H35: 791.8214286
A36: 35 | B36: 509 | C36: 13 | D36: 2 | E36: 1 | F36: 4 | G36: 1179 | H36: 805.1724138
A37: 36 | H37: 805.1724138
A38: 37 | B38: 60 | C38: 10 | D38: 5 | E38: 4 | F38: 5 | G38: 460 | H38: 793.6666667
A39: 38 | B39: 573 | C39: 12 | D39: 2 | E39: 4 | F39: 7 | G39: 1283 | H39: 809.4516129
A40: 39 | H40: 809.4516129
A41: 40 | B41: 530 | C41: 11 | D41: 3 | E41: 2 | F41: 4 | G41: 1050 | H41: 816.96875
A42: 41 | B42: 520 | C42: 13 | D42: 4 | E42: 4 | F42: 5 | G42: 1120 | H42: 826.1515152
A43: 42 | H43: 826.1515152
A44: 43 | B44: 514 | C44: 14 | D44: 3 | E44: 2 | F44: 2 | G44: 1144 | H44: 835.5
A45: 44 | H45: 835.5
A46: 45 | B46: 356 | C46: 11 | D46: 2 | E46: 2 | F46: 3 | G46: 896 | H46: 837.2285714
A47: 46 | H47: 837.2285714
A48: 47 | H48: 837.2285714
A49: 48 | B49: 284 | C49: 10 | D49: 4 | E49: 3 | F49: 5 | G49: 734 | H49: 834.3611111
A50: 49 | H50: 834.3611111
A51: 50 | H51: 834.3611111
A52: 51 | H52: 834.3611111
A53: 52 | H53: 834.3611111
A54: 53 | H54: 834.3611111
A55: 54 | H55: 834.3611111
A56: 55 | H56: 834.3611111
A57: 56 | H57: 834.3611111
A58: 57 | B58: 413 | C58: 9 | D58: 3 | E58: 4 | F58: 5 | G58: 863 | H58: 835.1351351
A59: 58 | H59: 835.1351351
A60: 59 | B60: 392 | C60: 8 | D60: 0 | E60: 6 | F60: 7 | G60: 1002 | H60: 839.5263158
A61: 60 | H61: 839.5263158
A62: 61 | H62: 839.5263158
A63: 62 | H63: 839.5263158
A64: 63 | H64: 839.5263158
A65: 64 | B65: 980 | C65: 17 | D65: 0 | E65: 1 | F65: 4 | G65: 1950 | H65: 868
A66: 65 | H66: 868
A67: 66 | B67: -65 | C67: 9 | D67: 4 | E67: 2 | F67: 2 | G67: 265 | H67: 852.925
A68: 67 | H68: 852.925
A69: 68 | B69: 214 | C69: 11 | D69: 5 | E69: 2 | F69: 2 | G69: 594 | H69: 846.6097561
A70: 69 | H70: 846.6097561
A71: 70 | H71: 846.6097561
A72: 71 | H72: 846.6097561
A73: 72 | B73: 172 | C73: 17 | D73: 6 | E73: 2 | F73: 4 | G73: 842 | H73: 846.5
A74: 73 | H74: 846.5
A75: 74 | B75: 283 | C75: 15 | D75: 5 | E75: 3 | F75: 6 | G75: 963 | H75: 849.2093023
A76: 75 | H76: 849.2093023

Sheet Pieper,Florian
A1: Serie | B1: Sp.Pu | C1: gew. | D1: verl. | E1: abg. | F1: v.GS | G1: We.Pu. | H1: Durchschnitt Wertungspunkte | J1: Platz am Jahresende : | M1: 4 | N1: in Gruppe : | P1: 1 | Q1: Anzahl der Teilnahmen : | U1: 47
A2: 1 | B2: 346 | C2: 11 | D2: 3 | E2: 2 | F2: 4 | G2: 866 | H2: 866 | K2: Spiel- | L2: Spiele | P2: Wert.- | R2: Anz.Li.- | S2: Anz. | T2: Listenfehler
A3: 2 | B3: 636 | C3: 12 | D3: 2 | E3: 1 | F3: 1 | G3: 1176 | H3: 1021 | K3: punkte | L3: gew. | M3: ver. | N3: abgen. | O3: v.GS | P3: punkte | R3: führer | S3: Null-Fehler | T3: Summe | U3: Schnitt
A4: 3 | B4: 673 | C4: 11 | D4: 2 | E4: 2 | F4: 3 | G4: 1213 | H4: 1085 | J4: Max | K4: 762 | L4: 17 | M4: 5 | N4: 10 | O4: 11 | P4: 1612 | R4: 19 | S4: 19 | T4: 0 | U4: 0
A5: 4 | B5: 448 | C5: 10 | D5: 0 | E5: 5 | F5: 5 | G5: 1148 | H5: 1100.75 | J5: Schnitt | K5: 446.1489362 | L5: 11.76595745 | M5: 2.212765957 | N5: 3.425531915 | O5: 4.680851064 | P5: 1076.361702 | S5: Sum.Abr.geld : | T5: 104
A6: 5 | B6: 563 | C6: 16 | D6: 2 | E6: 3 | F6: 3 | G6: 1383 | H6: 1157.2 | J6: Min | K6: 38 | L6: 6 | M6: 0 | N6: 0 | O6: 1 | P6: 148 | S6: Schn.Abreizg. : | T6: 2.212765957
A7: 6 | H7: 1157.2
A8: 7 | B8: 608 | C8: 17 | D8: 1 | E8: 1 | F8: 3 | G8: 1498 | H8: 1214
A9: 8 | B9: 580 | C9: 14 | D9: 1 | E9: 2 | F9: 2 | G9: 1310 | H9: 1227.714286
A10: 9 | H10: 1227.714286
A11: 10 | H11: 1227.714286
A12: 11 | H12: 1227.714286
A13: 12 | H13: 1227.714286
A14: 13 | H14: 1227.714286
A15: 14 | H15: 1227.714286
A16: 15 | B16: 508 | C16: 13 | D16: 2 | E16: 1 | F16: 4 | G16: 1178 | H16: 1221.5
A17: 16 | H17: 1221.5
A18: 17 | H18: 1221.5
A19: 18 | H19: 1221.5
A20: 19 | B20: 364 | C20: 12 | D20: 2 | E20: 5 | F20: 6 | G20: 1044 | H20: 1201.777778
A21: 20 | B21: 517 | C21: 11 | D21: 1 | E21: 5 | F21: 8 | G21: 1257 | H21: 1207.3
A22: 21 | B22: 580 | C22: 12 | D22: 1 | E22: 2 | F22: 2 | G22: 1190 | H22: 1205.727273
A23: 22 | H23: 1205.727273
A24: 23 | B24: 308 | C24: 14 | D24: 3 | E24: 1 | F24: 2 | G24: 918 | H24: 1181.75
A25: 24 | B25: 762 | C25: 14 | D25: 1 | E25: 5 | F25: 5 | G25: 1612 | H25: 1214.846154
A26: 25 | B26: 466 | C26: 10 | D26: 2 | E26: 6 | F26: 7 | G26: 1076 | H26: 1204.928571
A27: 26 | B27: 532 | C27: 11 | D27: 0 | E27: 3 | F27: 3 | G27: 1202 | H27: 1204.733333
A28: 27 | H28: 1204.733333
A29: 28 | H29: 1204.733333
A30: 29 | B30: 567 | C30: 14 | D30: 2 | E30: 8 | F30: 8 | G30: 1407 | H30: 1217.375
A31: 30 | B31: 562 | C31: 11 | D31: 0 | E31: 5 | F31: 6 | G31: 1292 | H31: 1221.764706
A32: 31 | H32: 1221.764706
A33: 32 | H33: 1221.764706
A34: 33 | H34: 1221.764706
A35: 34 | H35: 1221.764706
A36: 35 | H36: 1221.764706
A37: 36 | H37: 1221.764706
A38: 37 | B38: 366 | C38: 8 | D38: 1 | E38: 8 | F38: 11 | G38: 1046 | H38: 1212
A39: 38 | B39: 200 | C39: 10 | D39: 4 | E39: 4 | F39: 7 | G39: 710 | H39: 1185.578947
A40: 39 | B40: 213 | C40: 9 | D40: 4 | E40: 4 | F40: 4 | G40: 623 | H40: 1157.45
A41: 40 | B41: 634 | C41: 14 | D41: 1 | E41: 5 | F41: 5 | G41: 1484 | H41: 1173
A42: 41 | B42: 278 | C42: 7 | D42: 1 | E42: 10 | F42: 11 | G42: 908 | H42: 1160.954545
A43: 42 | B43: 345 | C43: 13 | D43: 2 | E43: 2 | F43: 2 | G43: 975 | H43: 1152.869565
A44: 43 | B44: 61 | C44: 8 | D44: 2 | E44: 5 | F44: 8 | G44: 601 | H44: 1129.875
A45: 44 | B45: 284 | C45: 10 | D45: 3 | E45: 4 | F45: 4 | G45: 794 | H45: 1116.44
A46: 45 | H46: 1116.44
A47: 46 | H47: 1116.44
A48: 47 | H48: 1116.44
A49: 48 | H49: 1116.44
A50: 49 | B50: 713 | C50: 13 | D50: 2 | E50: 5 | F50: 7 | G50: 1473 | H50: 1130.153846
A51: 50 | B51: 483 | C51: 13 | D51: 4 | E51: 3 | F51: 3 | G51: 1053 | H51: 1127.296296
A52: 51 | H52: 1127.296296
A53: 52 | B53: 170 | C53: 6 | D53: 3 | E53: 3 | F53: 5 | G53: 470 | H53: 1103.821429
A54: 53 | B54: 532 | C54: 14 | D54: 1 | E54: 1 | F54: 1 | G54: 1222 | H54: 1107.896552
A55: 54 | H55: 1107.896552
A56: 55 | B56: 577 | C56: 13 | D56: 2 | E56: 0 | F56: 8 | G56: 1367 | H56: 1116.533333
A57: 56 | B57: 657 | C57: 13 | D57: 1 | E57: 6 | F57: 6 | G57: 1497 | H57: 1128.806452
A58: 57 | H58: 1128.806452
A59: 58 | H59: 1128.806452
A60: 59 | H60: 1128.806452
A61: 60 | B61: 234 | C61: 13 | D61: 4 | E61: 1 | F61: 5 | G61: 834 | H61: 1119.59375
A62: 61 | B62: 505 | C62: 14 | D62: 2 | E62: 2 | F62: 2 | G62: 1165 | H62: 1120.969697
A63: 62 | B63: 343 | C63: 10 | D63: 3 | E63: 2 | F63: 3 | G63: 783 | H63: 1111.029412
A64: 63 | B64: 386 | C64: 15 | D64: 4 | E64: 1 | F64: 5 | G64: 1086 | H64: 1110.314286
A65: 64 | B65: 436 | C65: 10 | D65: 3 | E65: 6 | F65: 8 | G65: 1026 | H65: 1107.972222
A66: 65 | B66: 583 | C66: 13 | D66: 1 | E66: 5 | F66: 5 | G66: 1383 | H66: 1115.405405
A67: 66 | B67: 38 | C67: 6 | D67: 5 | E67: 1 | F67: 2 | G67: 148 | H67: 1089.947368
A68: 67 | B68: 516 | C68: 14 | D68: 3 | E68: 2 | F68: 2 | G68: 1146 | H68: 1091.384615
A69: 68 | B69: 165 | C69: 9 | D69: 3 | E69: 1 | F69: 2 | G69: 525 | H69: 1077.225
A70: 69 | B70: 495 | C70: 14 | D70: 3 | E70: 3 | F70: 3 | G70: 1165 | H70: 1079.365854
A71: 70 | B71: 687 | C71: 12 | D71: 1 | E71: 4 | F71: 6 | G71: 1417 | H71: 1087.404762
A72: 71 | B72: 600 | C72: 13 | D72: 1 | E72: 4 | F72: 5 | G72: 1350 | H72: 1093.511628
A73: 72 | B73: 440 | C73: 12 | D73: 5 | E73: 4 | F73: 7 | G73: 1000 | H73: 1091.386364
A74: 73 | B74: 605 | C74: 13 | D74: 2 | E74: 3 | F74: 3 | G74: 1275 | H74: 1095.466667
A75: 74 | B75: 64 | C75: 11 | D75: 5 | E75: 4 | F75: 7 | G75: 574 | H75: 1084.130435
A76: 75 | B76: 339 | C76: 10 | D76: 3 | E76: 1 | F76: 1 | G76: 719 | H76: 1076.361702

Sheet Radant,Florian
A1: Serie | B1: Sp.Pu | C1: gew. | D1: verl. | E1: abg. | F1: v.GS | G1: We.Pu. | H1: Durchschnitt Wertungspunkte | J1: Platz am Jahresende : | M1: 2 | N1: in Gruppe : | P1: 1 | Q1: Anzahl der Teilnahmen : | U1: 51
A2: 1 | B2: 380 | C2: 11 | D2: 2 | E2: 8 | F2: 10 | G2: 1130 | H2: 1130 | K2: Spiel- | L2: Spiele | P2: Wert.- | R2: Anz.Li.- | S2: Anz. | T2: Listenfehler
A3: 2 | B3: 162 | C3: 6 | D3: 2 | E3: 6 | F3: 6 | G3: 602 | H3: 866 | K3: punkte | L3: gew. | M3: ver. | N3: abgen. | O3: v.GS | P3: punkte | R3: führer | S3: Null-Fehler | T3: Summe | U3: Schnitt
A4: 3 | B4: 787 | C4: 16 | D4: 1 | E4: 4 | F4: 5 | G4: 1687 | H4: 1139.666667 | J4: Max | K4: 831 | L4: 17 | M4: 7 | N4: 8 | O4: 10 | P4: 1687 | R4: 10 | S4: 10 | T4: 0 | U4: 0
A5: 4 | H5: 1139.666667 | J5: Schnitt | K5: 445.0196078 | L5: 11.52941176 | M5: 2 | N5: 3.62745098 | O5: 5.352941176 | P5: 1087.372549 | S5: Sum.Abr.geld : | T5: 102
A6: 5 | B6: 643 | C6: 14 | D6: 2 | E6: 2 | F6: 2 | G6: 1323 | H6: 1185.5 | J6: Min | K6: -42 | L6: 6 | M6: 0 | N6: 1 | O6: 1 | P6: 158 | S6: Schn.Abreizg. : | T6: 2
A7: 6 | B7: 501 | C7: 11 | D7: 3 | E7: 3 | F7: 5 | G7: 1051 | H7: 1158.6
A8: 7 | B8: 667 | C8: 11 | D8: 0 | E8: 2 | F8: 4 | G8: 1337 | H8: 1188.333333
A9: 8 | H9: 1188.333333
A10: 9 | B10: 403 | C10: 10 | D10: 1 | E10: 4 | F10: 4 | G10: 973 | H10: 1157.571429
A11: 10 | H11: 1157.571429
A12: 11 | H12: 1157.571429
A13: 12 | B13: 459 | C13: 13 | D13: 3 | E13: 3 | F13: 5 | G13: 1109 | H13: 1151.5
A14: 13 | B14: 514 | C14: 15 | D14: 3 | E14: 2 | F14: 5 | G14: 1264 | H14: 1164
A15: 14 | H15: 1164
A16: 15 | B16: 458 | C16: 13 | D16: 1 | E16: 4 | F16: 5 | G16: 1208 | H16: 1168.4
A17: 16 | H17: 1168.4
A18: 17 | H18: 1168.4
A19: 18 | H19: 1168.4
A20: 19 | B20: 488 | C20: 13 | D20: 3 | E20: 4 | F20: 4 | G20: 1108 | H20: 1162.909091
A21: 20 | B21: 416 | C21: 13 | D21: 3 | E21: 3 | F21: 6 | G21: 1096 | H21: 1157.333333
A22: 21 | H22: 1157.333333
A23: 22 | B23: 445 | C23: 11 | D23: 1 | E23: 5 | F23: 7 | G23: 1155 | H23: 1157.153846
A24: 23 | B24: 561 | C24: 8 | D24: 0 | E24: 3 | F24: 5 | G24: 1111 | H24: 1153.857143
A25: 24 | H25: 1153.857143
A26: 25 | B26: 488 | C26: 11 | D26: 1 | E26: 6 | F26: 8 | G26: 1228 | H26: 1158.8
A27: 26 | H27: 1158.8
A28: 27 | B28: 651 | C28: 11 | D28: 0 | E28: 4 | F28: 6 | G28: 1381 | H28: 1172.6875
A29: 28 | B29: 391 | C29: 11 | D29: 1 | E29: 6 | F29: 7 | G29: 1101 | H29: 1168.470588
A30: 29 | B30: 135 | C30: 6 | D30: 2 | E30: 5 | F30: 8 | G30: 575 | H30: 1135.5
A31: 30 | H31: 1135.5
A32: 31 | H32: 1135.5
A33: 32 | B33: 562 | C33: 10 | D33: 1 | E33: 2 | F33: 3 | G33: 1102 | H33: 1133.736842
A34: 33 | B34: 618 | C34: 16 | D34: 2 | E34: 4 | F34: 6 | G34: 1498 | H34: 1151.95
A35: 34 | B35: 490 | C35: 12 | D35: 1 | E35: 5 | F35: 5 | G35: 1190 | H35: 1153.761905
A36: 35 | B36: 716 | C36: 15 | D36: 0 | E36: 1 | F36: 1 | G36: 1496 | H36: 1169.318182
A37: 36 | H37: 1169.318182
A38: 37 | B38: 530 | C38: 17 | D38: 1 | E38: 2 | F38: 8 | G38: 1570 | H38: 1186.73913
A39: 38 | B39: 156 | C39: 11 | D39: 5 | E39: 2 | F39: 6 | G39: 636 | H39: 1163.791667
A40: 39 | B40: 333 | C40: 11 | D40: 3 | E40: 5 | F40: 5 | G40: 933 | H40: 1154.56
A41: 40 | B41: 125 | C41: 6 | D41: 3 | E41: 8 | F41: 9 | G41: 545 | H41: 1131.115385
A42: 41 | B42: -42 | C42: 8 | D42: 7 | E42: 3 | F42: 5 | G42: 158 | H42: 1095.074074
A43: 42 | B43: 723 | C43: 15 | D43: 1 | E43: 4 | F43: 4 | G43: 1583 | H43: 1112.5
A44: 43 | B44: 379 | C44: 13 | D44: 3 | E44: 2 | F44: 7 | G44: 1089 | H44: 1111.689655
A45: 44 | H45: 1111.689655
A46: 45 | B46: 517 | C46: 13 | D46: 2 | E46: 1 | F46: 3 | G46: 1157 | H46: 1113.2
A47: 46 | B47: 506 | C47: 14 | D47: 2 | E47: 4 | F47: 7 | G47: 1316 | H47: 1119.741935
A48: 47 | H48: 1119.741935
A49: 48 | B49: 594 | C49: 13 | D49: 3 | E49: 2 | F49: 2 | G49: 1154 | H49: 1120.8125
A50: 49 | B50: 77 | C50: 7 | D50: 4 | E50: 3 | F50: 5 | G50: 377 | H50: 1098.272727
A51: 50 | B51: 831 | C51: 14 | D51: 0 | E51: 3 | F51: 3 | G51: 1651 | H51: 1114.529412
A52: 51 | B52: 152 | C52: 12 | D52: 3 | E52: 1 | F52: 2 | G52: 662 | H52: 1101.6
A53: 52 | B53: 308 | C53: 8 | D53: 1 | E53: 4 | F53: 7 | G53: 868 | H53: 1095.111111
A54: 53 | B54: 641 | C54: 12 | D54: 0 | E54: 1 | F54: 1 | G54: 1281 | H54: 1100.135135
A55: 54 | B55: 324 | C55: 13 | D55: 3 | E55: 1 | F55: 4 | G55: 944 | H55: 1096.026316
A56: 55 | B56: 224 | C56: 6 | D56: 3 | E56: 7 | F56: 7 | G56: 584 | H56: 1082.897436
A57: 56 | H57: 1082.897436
A58: 57 | B58: 557 | C58: 16 | D58: 3 | E58: 4 | F58: 6 | G58: 1387 | H58: 1090.5
A59: 58 | H59: 1090.5
A60: 59 | B60: 497 | C60: 9 | D60: 1 | E60: 4 | F60: 9 | G60: 1167 | H60: 1092.365854
A61: 60 | H61: 1092.365854
A62: 61 | H62: 1092.365854
A63: 62 | B63: 753 | C63: 14 | D63: 0 | E63: 4 | F63: 6 | G63: 1633 | H63: 1105.238095
A64: 63 | H64: 1105.238095
A65: 64 | B65: 283 | C65: 8 | D65: 3 | E65: 3 | F65: 8 | G65: 773 | H65: 1097.511628
A66: 65 | H66: 1097.511628
A67: 66 | B67: 436 | C67: 12 | D67: 0 | E67: 6 | F67: 7 | G67: 1246 | H67: 1100.886364
A68: 67 | H68: 1100.886364
A69: 68 | B69: 264 | C69: 10 | D69: 2 | E69: 2 | F69: 3 | G69: 754 | H69: 1093.177778
A70: 69 | H70: 1093.177778
A71: 70 | B71: 562 | C71: 16 | D71: 3 | E71: 2 | F71: 4 | G71: 1332 | H71: 1098.369565
A72: 71 | B72: 505 | C72: 10 | D72: 1 | E72: 4 | F72: 5 | G72: 1105 | H72: 1098.510638
A73: 72 | B73: 312 | C73: 8 | D73: 4 | E73: 6 | F73: 8 | G73: 752 | H73: 1091.291667
A74: 73 | B74: 404 | C74: 9 | D74: 1 | E74: 6 | F74: 6 | G74: 1044 | H74: 1090.326531
A75: 74 | B75: 170 | C75: 10 | D75: 7 | E75: 3 | F75: 5 | G75: 470 | H75: 1077.92
A76: 75 | B76: 640 | C76: 16 | D76: 0 | E76: 2 | F76: 4 | G76: 1560 | H76: 1087.372549

Sheet Reinhold,Gabriele
A1: Serie | B1: Sp.Pu | C1: gew. | D1: verl. | E1: abg. | F1: v.GS | G1: We.Pu. | H1: Durchschnitt Wertungspunkte | J1: Platz am Jahresende : | M1: 18 | N1: in Gruppe : | P1: 1 | Q1: Anzahl der Teilnahmen : | U1: 51
A2: 1 | B2: 595 | C2: 12 | D2: 0 | E2: 4 | F2: 6 | G2: 1375 | H2: 1375 | K2: Spiel- | L2: Spiele | P2: Wert.- | R2: Anz.Li.- | S2: Anz. | T2: Listenfehler
A3: 2 | B3: 161 | C3: 7 | D3: 2 | E3: 6 | F3: 6 | G3: 651 | H3: 1013 | K3: punkte | L3: gew. | M3: ver. | N3: abgen. | O3: v.GS | P3: punkte | R3: führer | S3: Null-Fehler | T3: Summe | U3: Schnitt
A4: 3 | B4: 391 | C4: 8 | D4: 1 | E4: 3 | F4: 4 | G4: 861 | H4: 962.3333333 | J4: Max | K4: 704 | L4: 14 | M4: 5 | N4: 10 | O4: 11 | P4: 1484 | R4: 10 | S4: 10 | T4: 0 | U4: 0
A5: 4 | B5: 146 | C5: 5 | D5: 2 | E5: 3 | F5: 3 | G5: 416 | H5: 825.75 | J5: Schnitt | K5: 279.6470588 | L5: 8 | M5: 1.450980392 | N5: 4.509803922 | O5: 5.490196078 | P5: 792 | S5: Sum.Abr.geld : | T5: 74
A6: 5 | B6: 214 | C6: 11 | D6: 3 | E6: 4 | F6: 4 | G6: 774 | H6: 815.4 | J6: Min | K6: -40 | L6: 4 | M6: 0 | N6: 1 | O6: 1 | P6: 240 | S6: Schn.Abreizg. : | T6: 1.450980392
A7: 6 | B7: 339 | C7: 7 | D7: 0 | E7: 2 | F7: 2 | G7: 749 | H7: 804.3333333
A8: 7 | B8: 186 | C8: 7 | D8: 3 | E8: 1 | F8: 1 | G8: 426 | H8: 750.2857143
A9: 8 | B9: 594 | C9: 9 | D9: 0 | E9: 5 | F9: 5 | G9: 1244 | H9: 812
A10: 9 | B10: 484 | C10: 13 | D10: 0 | E10: 3 | F10: 6 | G10: 1314 | H10: 867.7777778
A11: 10 | B11: -40 | C11: 8 | D11: 4 | E11: 3 | F11: 7 | G11: 370 | H11: 818
A12: 11 | B12: 325 | C12: 12 | D12: 1 | E12: 5 | F12: 5 | G12: 1075 | H12: 841.3636364
A13: 12 | H13: 841.3636364
A14: 13 | H14: 841.3636364
A15: 14 | H15: 841.3636364
A16: 15 | B16: 61 | C16: 4 | D16: 2 | E16: 3 | F16: 6 | G16: 341 | H16: 799.6666667
A17: 16 | B17: 370 | C17: 13 | D17: 2 | E17: 3 | F17: 3 | G17: 1010 | H17: 815.8461538
A18: 17 | B18: 306 | C18: 7 | D18: 3 | E18: 6 | F18: 6 | G18: 746 | H18: 810.8571429
A19: 18 | B19: 74 | C19: 6 | D19: 5 | E19: 7 | F19: 7 | G19: 334 | H19: 779.0666667
A20: 19 | H20: 779.0666667
A21: 20 | H21: 779.0666667
A22: 21 | H22: 779.0666667
A23: 22 | H23: 779.0666667
A24: 23 | H24: 779.0666667
A25: 24 | H25: 779.0666667
A26: 25 | B26: 467 | C26: 11 | D26: 1 | E26: 7 | F26: 8 | G26: 1207 | H26: 805.8125
A27: 26 | B27: 61 | C27: 4 | D27: 1 | E27: 9 | F27: 9 | G27: 571 | H27: 792
A28: 27 | B28: 362 | C28: 9 | D28: 0 | E28: 5 | F28: 5 | G28: 1012 | H28: 804.2222222
A29: 28 | B29: 224 | C29: 8 | D29: 2 | E29: 5 | F29: 10 | G29: 824 | H29: 805.2631579
A30: 29 | H30: 805.2631579
A31: 30 | H31: 805.2631579
A32: 31 | H32: 805.2631579
A33: 32 | H33: 805.2631579
A34: 33 | H34: 805.2631579
A35: 34 | B35: 256 | C35: 5 | D35: 0 | E35: 3 | F35: 3 | G35: 596 | H35: 794.8
A36: 35 | B36: 257 | C36: 9 | D36: 2 | E36: 4 | F36: 4 | G36: 727 | H36: 791.5714286
A37: 36 | B37: 455 | C37: 9 | D37: 2 | E37: 3 | F37: 3 | G37: 925 | H37: 797.6363636
A38: 37 | B38: 402 | C38: 10 | D38: 1 | E38: 6 | F38: 9 | G38: 1122 | H38: 811.7391304
A39: 38 | B39: 276 | C39: 8 | D39: 1 | E39: 6 | F39: 8 | G39: 866 | H39: 814
A40: 39 | B40: 137 | C40: 4 | D40: 2 | E40: 8 | F40: 9 | G40: 507 | H40: 801.72
A41: 40 | H41: 801.72
A42: 41 | B42: 208 | C42: 6 | D42: 2 | E42: 5 | F42: 7 | G42: 618 | H42: 794.6538462
A43: 42 | B43: 566 | C43: 9 | D43: 3 | E43: 6 | F43: 6 | G43: 1106 | H43: 806.1851852
A44: 43 | B44: 106 | C44: 7 | D44: 2 | E44: 3 | F44: 3 | G44: 476 | H44: 794.3928571
A45: 44 | B45: 481 | C45: 11 | D45: 1 | E45: 6 | F45: 6 | G45: 1221 | H45: 809.1034483
A46: 45 | H46: 809.1034483
A47: 46 | B47: 260 | C47: 12 | D47: 2 | E47: 2 | F47: 4 | G47: 880 | H47: 811.4666667
A48: 47 | B48: 522 | C48: 11 | D48: 0 | E48: 3 | F48: 3 | G48: 1192 | H48: 823.7419355
A49: 48 | B49: 171 | C49: 6 | D49: 0 | E49: 3 | F49: 6 | G49: 651 | H49: 818.34375
A50: 49 | H50: 818.34375
A51: 50 | H51: 818.34375
A52: 51 | B52: 84 | C52: 5 | D52: 2 | E52: 4 | F52: 5 | G52: 384 | H52: 805.1818182
A53: 52 | B53: 7 | C53: 7 | D53: 3 | E53: 4 | F53: 6 | G53: 387 | H53: 792.8823529
A54: 53 | B54: 704 | C54: 14 | D54: 0 | E54: 2 | F54: 2 | G54: 1484 | H54: 812.6285714
A55: 54 | B55: 221 | C55: 7 | D55: 1 | E55: 6 | F55: 6 | G55: 701 | H55: 809.5277778
A56: 55 | B56: 74 | C56: 5 | D56: 3 | E56: 3 | F56: 7 | G56: 384 | H56: 798.027027
A57: 56 | B57: 266 | C57: 8 | D57: 0 | E57: 4 | F57: 4 | G57: 826 | H57: 798.7631579
A58: 57 | B58: 305 | C58: 6 | D58: 0 | E58: 7 | F58: 8 | G58: 845 | H58: 799.9487179
A59: 58 | B59: 255 | C59: 7 | D59: 1 | E59: 4 | F59: 4 | G59: 715 | H59: 797.825
A60: 59 | B60: 273 | C60: 7 | D60: 1 | E60: 5 | F60: 5 | G60: 773 | H60: 797.2195122
A61: 60 | B61: 70 | C61: 5 | D61: 4 | E61: 2 | F61: 4 | G61: 240 | H61: 783.952381
A62: 61 | H62: 783.952381
A63: 62 | B63: 317 | C63: 8 | D63: 0 | E63: 6 | F63: 6 | G63: 957 | H63: 787.9767442
A64: 63 | B64: 395 | C64: 10 | D64: 2 | E64: 2 | F64: 5 | G64: 945 | H64: 791.5454545
A65: 64 | B65: 375 | C65: 7 | D65: 1 | E65: 3 | F65: 3 | G65: 765 | H65: 790.9555556
A66: 65 | H66: 790.9555556
A67: 66 | H67: 790.9555556
A68: 67 | H68: 790.9555556
A69: 68 | H69: 790.9555556
A70: 69 | H70: 790.9555556
A71: 70 | B71: 30 | C71: 7 | D71: 3 | E71: 5 | F71: 5 | G71: 430 | H71: 783.1086957
A72: 71 | B72: 43 | C72: 9 | D72: 2 | E72: 7 | F72: 7 | G72: 673 | H72: 780.7659574
A73: 72 | B73: 492 | C73: 7 | D73: 0 | E73: 7 | F73: 10 | G73: 1142 | H73: 788.2916667
A74: 73 | B74: 258 | C74: 7 | D74: 0 | E74: 5 | F74: 5 | G74: 808 | H74: 788.6938776
A75: 74 | B75: 266 | C75: 7 | D75: 0 | E75: 10 | F75: 11 | G75: 946 | H75: 791.84
A76: 75 | B76: 410 | C76: 7 | D76: 1 | E76: 2 | F76: 3 | G76: 800 | H76: 792

Sheet Richter,Claus
A1: Serie | B1: Sp.Pu | C1: gew. | D1: verl. | E1: abg. | F1: v.GS | G1: We.Pu. | H1: Durchschnitt Wertungspunkte | J1: Platz am Jahresende : | M1: 24 | N1: in Gruppe : | P1: 1 | Q1: Anzahl der Teilnahmen : | U1: 40
A2: 1 | B2: 314 | C2: 9 | D2: 2 | E2: 5 | F2: 8 | G2: 904 | H2: 904 | K2: Spiel- | L2: Spiele | P2: Wert.- | R2: Anz.Li.- | S2: Anz. | T2: Listenfehler
A3: 2 | H3: 904 | K3: punkte | L3: gew. | M3: ver. | N3: abgen. | O3: v.GS | P3: punkte | R3: führer | S3: Null-Fehler | T3: Summe | U3: Schnitt
A4: 3 | B4: 347 | C4: 9 | D4: 1 | E4: 3 | F4: 5 | G4: 897 | H4: 900.5 | J4: Max | K4: 572 | L4: 14 | M4: 4 | N4: 10 | O4: 14 | P4: 1263 | R4: 6 | S4: 6 | T4: 0 | U4: 0
A5: 4 | H5: 900.5 | J5: Schnitt | K5: 294.425 | L5: 9.05 | M5: 1.975 | N5: 3.55 | O5: 4.8 | P5: 801.425 | S5: Sum.Abr.geld : | T5: 79
A6: 5 | H6: 900.5 | J6: Min | K6: -29 | L6: 4 | M6: 0 | N6: 0 | O6: 0 | P6: 188 | S6: Schn.Abreizg. : | T6: 1.975
A7: 6 | B7: 399 | C7: 8 | D7: 0 | E7: 4 | F7: 7 | G7: 1009 | H7: 936.6666667
A8: 7 | B8: 455 | C8: 11 | D8: 1 | E8: 4 | F8: 4 | G8: 1075 | H8: 971.25
A9: 8 | H9: 971.25
A10: 9 | B10: 159 | C10: 8 | D10: 2 | E10: 5 | F10: 7 | G10: 669 | H10: 910.8
A11: 10 | B11: 196 | C11: 6 | D11: 3 | E11: 10 | F11: 14 | G11: 766 | H11: 886.6666667
A12: 11 | H12: 886.6666667
A13: 12 | B13: 524 | C13: 10 | D13: 1 | E13: 6 | F13: 7 | G13: 1184 | H13: 929.1428571
A14: 13 | B14: 92 | C14: 4 | D14: 2 | E14: 2 | F14: 5 | G14: 342 | H14: 855.75
A15: 14 | H15: 855.75
A16: 15 | B16: 106 | C16: 7 | D16: 4 | E16: 4 | F16: 5 | G16: 406 | H16: 805.7777778
A17: 16 | B17: 119 | C17: 9 | D17: 2 | E17: 3 | F17: 3 | G17: 559 | H17: 781.1
A18: 17 | H18: 781.1
A19: 18 | B19: 338 | C19: 9 | D19: 0 | E19: 5 | F19: 10 | G19: 1088 | H19: 809
A20: 19 | H20: 809
A21: 20 | B21: 455 | C21: 11 | D21: 2 | E21: 4 | F21: 5 | G21: 1055 | H21: 829.5
A22: 21 | H22: 829.5
A23: 22 | B23: 399 | C23: 12 | D23: 2 | E23: 1 | F23: 5 | G23: 1049 | H23: 846.3846154
A24: 23 | B24: 447 | C24: 10 | D24: 0 | E24: 2 | F24: 2 | G24: 1027 | H24: 859.2857143
A25: 24 | H25: 859.2857143
A26: 25 | B26: 33 | C26: 7 | D26: 3 | E26: 4 | F26: 6 | G26: 413 | H26: 829.5333333
A27: 26 | H27: 829.5333333
A28: 27 | B28: -29 | C28: 9 | D28: 4 | E28: 1 | F28: 1 | G28: 261 | H28: 794
A29: 28 | B29: 461 | C29: 10 | D29: 2 | E29: 0 | F29: 0 | G29: 861 | H29: 797.9411765
A30: 29 | B30: 297 | C30: 9 | D30: 3 | E30: 2 | F30: 2 | G30: 677 | H30: 791.2222222
A31: 30 | H31: 791.2222222
A32: 31 | B32: 543 | C32: 12 | D32: 0 | E32: 3 | F32: 3 | G32: 1263 | H32: 816.0526316
A33: 32 | B33: 180 | C33: 5 | D33: 3 | E33: 6 | F33: 8 | G33: 520 | H33: 801.25
A34: 33 | H34: 801.25
A35: 34 | B35: 288 | C35: 9 | D35: 3 | E35: 2 | F35: 3 | G35: 678 | H35: 795.3809524
A36: 35 | B36: 322 | C36: 9 | D36: 1 | E36: 4 | F36: 5 | G36: 872 | H36: 798.8636364
A37: 36 | H37: 798.8636364
A38: 37 | B38: 146 | C38: 9 | D38: 3 | E38: 5 | F38: 7 | G38: 656 | H38: 792.6521739
A39: 38 | B39: 80 | C39: 8 | D39: 3 | E39: 5 | F39: 6 | G39: 510 | H39: 780.875
A40: 39 | H40: 780.875
A41: 40 | B41: 198 | C41: 7 | D41: 2 | E41: 6 | F41: 6 | G41: 688 | H41: 777.16
A42: 41 | B42: 467 | C42: 10 | D42: 2 | E42: 2 | F42: 2 | G42: 947 | H42: 783.6923077
A43: 42 | H43: 783.6923077
A44: 43 | B44: 432 | C44: 10 | D44: 2 | E44: 2 | F44: 2 | G44: 912 | H44: 788.4444444
A45: 44 | H45: 788.4444444
A46: 45 | B46: 572 | C46: 11 | D46: 1 | E46: 0 | F46: 3 | G46: 1162 | H46: 801.7857143
A47: 46 | B47: 197 | C47: 11 | D47: 2 | E47: 3 | F47: 4 | G47: 767 | H47: 800.5862069
A48: 47 | H48: 800.5862069
A49: 48 | B49: -22 | C49: 5 | D49: 4 | E49: 4 | F49: 4 | G49: 188 | H49: 780.1666667
A50: 49 | B50: 347 | C50: 8 | D50: 1 | E50: 6 | F50: 9 | G50: 967 | H50: 786.1935484
A51: 50 | H51: 786.1935484
A52: 51 | H52: 786.1935484
A53: 52 | H53: 786.1935484
A54: 53 | H54: 786.1935484
A55: 54 | H55: 786.1935484
A56: 55 | B56: 403 | C56: 8 | D56: 0 | E56: 2 | F56: 2 | G56: 863 | H56: 788.59375
A57: 56 | H57: 788.59375
A58: 57 | B58: 400 | C58: 10 | D58: 1 | E58: 3 | F58: 3 | G58: 970 | H58: 794.0909091
A59: 58 | H59: 794.0909091
A60: 59 | B60: 60 | C60: 9 | D60: 4 | E60: 1 | F60: 4 | G60: 430 | H60: 783.3823529
A61: 60 | B61: 532 | C61: 14 | D61: 2 | E61: 3 | F61: 3 | G61: 1222 | H61: 795.9142857
A62: 61 | H62: 795.9142857
A63: 62 | B63: 221 | C63: 9 | D63: 3 | E63: 3 | F63: 3 | G63: 641 | H63: 791.6111111
A64: 63 | H64: 791.6111111
A65: 64 | B65: 396 | C65: 13 | D65: 2 | E65: 2 | F65: 3 | G65: 1036 | H65: 798.2162162
A66: 65 | H66: 798.2162162
A67: 66 | B67: 194 | C67: 6 | D67: 2 | E67: 6 | F67: 6 | G67: 634 | H67: 793.8947368
A68: 67 | H68: 793.8947368
A69: 68 | H69: 793.8947368
A70: 69 | H70: 793.8947368
A71: 70 | B71: 518 | C71: 12 | D71: 0 | E71: 3 | F71: 3 | G71: 1238 | H71: 805.2820513
A72: 71 | H72: 805.2820513
A73: 72 | B73: 191 | C73: 9 | D73: 4 | E73: 6 | F73: 7 | G73: 651 | H73: 801.425
A74: 73 | H74: 801.425
A75: 74 | H75: 801.425
A76: 75 | H76: 801.425

Sheet Richter,Irmhild
A1: Serie | B1: Sp.Pu | C1: gew. | D1: verl. | E1: abg. | F1: v.GS | G1: We.Pu. | H1: Durchschnitt Wertungspunkte | J1: Platz am Jahresende : | M1: 25 | N1: in Gruppe : | P1: 1 | Q1: Anzahl der Teilnahmen : | U1: 38
A2: 1 | K2: Spiel- | L2: Spiele | P2: Wert.- | R2: Anz.Li.- | S2: Anz. | T2: Listenfehler
A3: 2 | K3: punkte | L3: gew. | M3: ver. | N3: abgen. | O3: v.GS | P3: punkte | R3: führer | S3: Null-Fehler | T3: Summe | U3: Schnitt
A4: 3 | B4: 231 | C4: 8 | D4: 3 | E4: 5 | F4: 5 | G4: 631 | H4: 631 | J4: Max | K4: 585 | L4: 13 | M4: 5 | N4: 7 | O4: 9 | P4: 1148 | R4: 12 | S4: 12 | T4: 0 | U4: 0
A5: 4 | H5: 631 | J5: Schnitt | K5: 221.5789474 | L5: 7.684210526 | M5: 2.236842105 | N5: 3.815789474 | O5: 4.447368421 | P5: 650 | S5: Sum.Abr.geld : | T5: 85
A6: 5 | H6: 631 | J6: Min | K6: -156 | L6: 2 | M6: 0 | N6: 0 | O6: 0 | P6: 4 | S6: Schn.Abreizg. : | T6: 2.236842105
A7: 6 | B7: 156 | C7: 7 | D7: 2 | E7: 7 | F7: 7 | G7: 686 | H7: 658.5
A8: 7 | B8: 199 | C8: 10 | D8: 3 | E8: 5 | F8: 5 | G8: 749 | H8: 688.6666667
A9: 8 | H9: 688.6666667
A10: 9 | B10: 395 | C10: 10 | D10: 1 | E10: 5 | F10: 5 | G10: 1045 | H10: 777.75
A11: 10 | B11: -26 | C11: 6 | D11: 3 | E11: 2 | F11: 2 | G11: 204 | H11: 663
A12: 11 | H12: 663
A13: 12 | B13: 275 | C13: 8 | D13: 1 | E13: 5 | F13: 5 | G13: 825 | H13: 690
A14: 13 | B14: -156 | C14: 4 | D14: 5 | E14: 5 | F14: 7 | G14: 4 | H14: 592
A15: 14 | H15: 592
A16: 15 | B16: 358 | C16: 10 | D16: 2 | E16: 3 | F16: 3 | G16: 878 | H16: 627.75
A17: 16 | B17: 246 | C17: 8 | D17: 3 | E17: 4 | F17: 8 | G17: 736 | H17: 639.7777778
A18: 17 | H18: 639.7777778
A19: 18 | B19: 312 | C19: 8 | D19: 1 | E19: 2 | F19: 5 | G19: 812 | H19: 657
A20: 19 | H20: 657
A21: 20 | B21: 357 | C21: 9 | D21: 0 | E21: 3 | F21: 3 | G21: 927 | H21: 681.5454545
A22: 21 | H22: 681.5454545
A23: 22 | B23: 585 | C23: 8 | D23: 2 | E23: 4 | F23: 5 | G23: 1035 | H23: 711
A24: 23 | B24: 93 | C24: 4 | D24: 3 | E24: 4 | F24: 4 | G24: 303 | H24: 679.6153846
A25: 24 | H25: 679.6153846
A26: 25 | B26: 302 | C26: 11 | D26: 2 | E26: 3 | F26: 6 | G26: 932 | H26: 697.6428571
A27: 26 | H27: 697.6428571
A28: 27 | B28: 94 | C28: 5 | D28: 3 | E28: 2 | F28: 2 | G28: 254 | H28: 668.0666667
A29: 28 | B29: 92 | C29: 4 | D29: 2 | E29: 7 | F29: 7 | G29: 472 | H29: 655.8125
A30: 29 | B30: 367 | C30: 7 | D30: 0 | E30: 6 | F30: 6 | G30: 957 | H30: 673.5294118
A31: 30 | H31: 673.5294118
A32: 31 | B32: -78 | C32: 8 | D32: 4 | E32: 5 | F32: 9 | G32: 392 | H32: 657.8888889
A33: 32 | B33: 460 | C33: 11 | D33: 1 | E33: 4 | F33: 6 | G33: 1140 | H33: 683.2631579
A34: 33 | H34: 683.2631579
A35: 34 | B35: 258 | C35: 5 | D35: 1 | E35: 4 | F35: 5 | G35: 608 | H35: 679.5
A36: 35 | B36: 312 | C36: 8 | D36: 3 | E36: 2 | F36: 2 | G36: 642 | H36: 677.7142857
A37: 36 | H37: 677.7142857
A38: 37 | B38: 518 | C38: 11 | D38: 0 | E38: 2 | F38: 2 | G38: 1148 | H38: 699.0909091
A39: 38 | H39: 699.0909091
A40: 39 | H40: 699.0909091
A41: 40 | B41: 136 | C41: 6 | D41: 3 | E41: 6 | F41: 8 | G41: 526 | H41: 691.5652174
A42: 41 | B42: 153 | C42: 9 | D42: 3 | E42: 5 | F42: 5 | G42: 653 | H42: 689.9583333
A43: 42 | H43: 689.9583333
A44: 43 | B44: 59 | C44: 4 | D44: 3 | E44: 5 | F44: 5 | G44: 309 | H44: 674.72
A45: 44 | H45: 674.72
A46: 45 | B46: 120 | C46: 10 | D46: 4 | E46: 2 | F46: 2 | G46: 500 | H46: 668
A47: 46 | B47: 403 | C47: 13 | D47: 3 | E47: 4 | F47: 5 | G47: 1053 | H47: 682.2592593
A48: 47 | H48: 682.2592593
A49: 48 | B49: 26 | C49: 4 | D49: 2 | E49: 3 | F49: 4 | G49: 246 | H49: 666.6785714
A50: 49 | B50: 298 | C50: 9 | D50: 1 | E50: 5 | F50: 5 | G50: 848 | H50: 672.9310345
A51: 50 | H51: 672.9310345
A52: 51 | H52: 672.9310345
A53: 52 | H53: 672.9310345
A54: 53 | H54: 672.9310345
A55: 54 | H55: 672.9310345
A56: 55 | B56: 103 | C56: 7 | D56: 2 | E56: 1 | F56: 1 | G56: 393 | H56: 663.6
A57: 56 | H57: 663.6
A58: 57 | B58: 307 | C58: 8 | D58: 2 | E58: 1 | F58: 1 | G58: 647 | H58: 663.0645161
A59: 58 | H59: 663.0645161
A60: 59 | B60: -53 | C60: 2 | D60: 3 | E60: 5 | F60: 5 | G60: 97 | H60: 645.375
A61: 60 | B61: 505 | C61: 8 | D61: 2 | E61: 4 | F61: 4 | G61: 965 | H61: 655.0606061
A62: 61 | H62: 655.0606061
A63: 62 | B63: 209 | C63: 10 | D63: 4 | E63: 0 | F63: 0 | G63: 509 | H63: 650.7647059
A64: 63 | H64: 650.7647059
A65: 64 | B65: 209 | C65: 8 | D65: 1 | E65: 3 | F65: 3 | G65: 649 | H65: 650.7142857
A66: 65 | H66: 650.7142857
A67: 66 | B67: 420 | C67: 12 | D67: 1 | E67: 3 | F67: 3 | G67: 1090 | H67: 662.9166667
A68: 67 | H68: 662.9166667
A69: 68 | H69: 662.9166667
A70: 69 | H70: 662.9166667
A71: 70 | B71: 239 | C71: 9 | D71: 2 | E71: 5 | F71: 5 | G71: 789 | H71: 666.3243243
A72: 71 | H72: 666.3243243
A73: 72 | B73: -64 | C73: 3 | D73: 4 | E73: 4 | F73: 4 | G73: 46 | H73: 650
A74: 73 | H74: 650
A75: 74 | H75: 650
A76: 75 | H76: 650

Sheet Richter,Thomas
A1: Serie | B1: Sp.Pu | C1: gew. | D1: verl. | E1: abg. | F1: v.GS | G1: We.Pu. | H1: Durchschnitt Wertungspunkte | J1: Platz am Jahresende : | M1: 22 | N1: in Gruppe : | P1: 1 | Q1: Anzahl der Teilnahmen : | U1: 27
A2: 1 | K2: Spiel- | L2: Spiele | P2: Wert.- | R2: Anz.Li.- | S2: Anz. | T2: Listenfehler
A3: 2 | K3: punkte | L3: gew. | M3: ver. | N3: abgen. | O3: v.GS | P3: punkte | R3: führer | S3: Null-Fehler | T3: Summe | U3: Schnitt
A4: 3 | B4: 213 | C4: 6 | D4: 2 | E4: 4 | F4: 6 | G4: 593 | H4: 593 | J4: Max | K4: 863 | L4: 19 | M4: 6 | N4: 7 | O4: 8 | P4: 1963 | R4: 6 | S4: 6 | T4: 0 | U4: 0
A5: 4 | B5: 174 | C5: 10 | D5: 4 | E5: 3 | F5: 3 | G5: 594 | H5: 593.5 | J5: Schnitt | K5: 337.962963 | L5: 11.18518519 | M5: 2.703703704 | N5: 3.37037037 | O5: 4.444444444 | P5: 910.9259259 | S5: Sum.Abr.geld : | T5: 73
A6: 5 | B6: -153 | C6: 3 | D6: 4 | E6: 7 | F6: 7 | G6: 77 | H6: 421.3333333 | J6: Min | K6: -153 | L6: 3 | M6: 0 | N6: 1 | O6: 1 | P6: 77 | S6: Schn.Abreizg. : | T6: 2.703703704
A7: 6 | B7: 367 | C7: 11 | D7: 2 | E7: 2 | F7: 2 | G7: 897 | H7: 540.25
A8: 7 | H8: 540.25
A9: 8 | H9: 540.25
A10: 9 | H10: 540.25
A11: 10 | B11: 54 | C11: 9 | D11: 6 | E11: 1 | F11: 1 | G11: 244 | H11: 481
A12: 11 | B12: 713 | C12: 11 | D12: 1 | E12: 4 | F12: 4 | G12: 1373 | H12: 629.6666667
A13: 12 | B13: 324 | C13: 9 | D13: 2 | E13: 5 | F13: 7 | G13: 884 | H13: 666
A14: 13 | H14: 666
A15: 14 | H15: 666
A16: 15 | B16: 306 | C16: 10 | D16: 1 | E16: 6 | F16: 7 | G16: 966 | H16: 703.5
A17: 16 | H17: 703.5
A18: 17 | H18: 703.5
A19: 18 | B19: 149 | C19: 9 | D19: 5 | E19: 2 | F19: 3 | G19: 439 | H19: 674.1111111
A20: 19 | B20: 432 | C20: 11 | D20: 2 | E20: 3 | F20: 3 | G20: 1002 | H20: 706.9
A21: 20 | H21: 706.9
A22: 21 | H22: 706.9
A23: 22 | H23: 706.9
A24: 23 | B24: 385 | C24: 19 | D24: 3 | E24: 4 | F24: 4 | G24: 1345 | H24: 764.9090909
A25: 24 | B25: 397 | C25: 12 | D25: 3 | E25: 2 | F25: 2 | G25: 927 | H25: 778.4166667
A26: 25 | B26: 345 | C26: 13 | D26: 2 | E26: 4 | F26: 7 | G26: 1105 | H26: 803.5384615
A27: 26 | B27: 467 | C27: 16 | D27: 4 | E27: 6 | F27: 6 | G27: 1307 | H27: 839.5
A28: 27 | B28: 357 | C28: 8 | D28: 2 | E28: 3 | F28: 4 | G28: 777 | H28: 835.3333333
A29: 28 | H29: 835.3333333
A30: 29 | H30: 835.3333333
A31: 30 | H31: 835.3333333
A32: 31 | H32: 835.3333333
A33: 32 | B33: 163 | C33: 12 | D33: 5 | E33: 4 | F33: 6 | G33: 693 | H33: 826.4375
A34: 33 | B34: 301 | C34: 8 | D34: 1 | E34: 5 | F34: 8 | G34: 891 | H34: 830.2352941
A35: 34 | H35: 830.2352941
A36: 35 | H36: 830.2352941
A37: 36 | H37: 830.2352941
A38: 37 | H38: 830.2352941
A39: 38 | B39: 433 | C39: 11 | D39: 3 | E39: 3 | F39: 6 | G39: 1013 | H39: 840.3888889
A40: 39 | B40: 99 | C40: 9 | D40: 6 | E40: 4 | F40: 5 | G40: 399 | H40: 817.1578947
A41: 40 | H41: 817.1578947
A42: 41 | H42: 817.1578947
A43: 42 | H43: 817.1578947
A44: 43 | H44: 817.1578947
A45: 44 | H45: 817.1578947
A46: 45 | H46: 817.1578947
A47: 46 | H47: 817.1578947
A48: 47 | H48: 817.1578947
A49: 48 | H49: 817.1578947
A50: 49 | B50: 184 | C50: 13 | D50: 4 | E50: 4 | F50: 6 | G50: 814 | H50: 817
A51: 50 | B51: 546 | C51: 17 | D51: 3 | E51: 1 | F51: 1 | G51: 1286 | H51: 839.3333333
A52: 51 | B52: 258 | C52: 7 | D52: 1 | E52: 3 | F52: 4 | G52: 678 | H52: 832
A53: 52 | H53: 832
A54: 53 | H54: 832
A55: 54 | B55: 417 | C55: 11 | D55: 3 | E55: 1 | F55: 3 | G55: 907 | H55: 835.2608696
A56: 55 | H56: 835.2608696
A57: 56 | H57: 835.2608696
A58: 57 | B58: 466 | C58: 16 | D58: 2 | E58: 1 | F58: 6 | G58: 1346 | H58: 856.5416667
A59: 58 | B59: 596 | C59: 13 | D59: 0 | E59: 1 | F59: 1 | G59: 1286 | H59: 873.72
A60: 59 | H60: 873.72
A61: 60 | H61: 873.72
A62: 61 | H62: 873.72
A63: 62 | H63: 873.72
A64: 63 | H64: 873.72
A65: 64 | H65: 873.72
A66: 65 | H66: 873.72
A67: 66 | H67: 873.72
A68: 67 | H68: 873.72
A69: 68 | B69: 863 | C69: 19 | D69: 1 | E69: 5 | F69: 5 | G69: 1963 | H69: 915.6153846
A70: 69 | B70: 269 | C70: 9 | D70: 1 | E70: 3 | F70: 3 | G70: 789 | H70: 910.9259259
A71: 70 | H71: 910.9259259
A72: 71 | H72: 910.9259259
A73: 72 | H73: 910.9259259
A74: 73 | H74: 910.9259259
A75: 74 | H75: 910.9259259
A76: 75 | H76: 910.9259259

Sheet Schmidt,Gerd
A1: Serie | B1: Sp.Pu | C1: gew. | D1: verl. | E1: abg. | F1: v.GS | G1: We.Pu. | H1: Durchschnitt Wertungspunkte | J1: Platz am Jahresende : | M1: 14 | N1: in Gruppe : | P1: 1 | Q1: Anzahl der Teilnahmen : | U1: 57
A2: 1 | B2: 129 | C2: 8 | D2: 4 | E2: 4 | F2: 4 | G2: 489 | H2: 489 | K2: Spiel- | L2: Spiele | P2: Wert.- | R2: Anz.Li.- | S2: Anz. | T2: Listenfehler
A3: 2 | B3: 135 | C3: 4 | D3: 3 | E3: 4 | F3: 4 | G3: 345 | H3: 417 | K3: punkte | L3: gew. | M3: ver. | N3: abgen. | O3: v.GS | P3: punkte | R3: führer | S3: Null-Fehler | T3: Summe | U3: Schnitt
A4: 3 | B4: 195 | C4: 11 | D4: 4 | E4: 7 | F4: 9 | G4: 815 | H4: 549.6666667 | J4: Max | K4: 756 | L4: 16 | M4: 7 | N4: 12 | O4: 13 | P4: 1541 | R4: 17 | S4: 17 | T4: 0 | U4: 0
A5: 4 | B5: 533 | C5: 16 | D5: 3 | E5: 2 | F5: 2 | G5: 1263 | H5: 728 | J5: Schnitt | K5: 374.7719298 | L5: 10.10526316 | M5: 2.403508772 | N5: 3.736842105 | O5: 4.771929825 | P5: 919.5087719 | S5: Sum.Abr.geld : | T5: 137
A6: 5 | B6: 410 | C6: 9 | D6: 1 | E6: 3 | F6: 3 | G6: 930 | H6: 768.4 | J6: Min | K6: -4 | L6: 4 | M6: 0 | N6: 0 | O6: 0 | P6: 143 | S6: Schn.Abreizg. : | T6: 2.403508772
A7: 6 | B7: 237 | C7: 11 | D7: 4 | E7: 2 | F7: 3 | G7: 677 | H7: 753.1666667
A8: 7 | B8: 410 | C8: 9 | D8: 1 | E8: 3 | F8: 3 | G8: 930 | H8: 778.4285714
A9: 8 | B9: 731 | C9: 15 | D9: 2 | E9: 4 | F9: 4 | G9: 1541 | H9: 873.75
A10: 9 | B10: 661 | C10: 11 | D10: 1 | E10: 2 | F10: 4 | G10: 1281 | H10: 919
A11: 10 | B11: -4 | C11: 8 | D11: 7 | E11: 4 | F11: 10 | G11: 346 | H11: 861.7
A12: 11 | B12: 580 | C12: 11 | D12: 2 | E12: 3 | F12: 3 | G12: 1150 | H12: 887.9090909
A13: 12 | B13: 241 | C13: 10 | D13: 4 | E13: 3 | F13: 4 | G13: 661 | H13: 869
A14: 13 | B14: 183 | C14: 10 | D14: 4 | E14: 1 | F14: 2 | G14: 543 | H14: 843.9230769
A15: 14 | B15: 94 | C15: 8 | D15: 3 | E15: 5 | F15: 5 | G15: 544 | H15: 822.5
A16: 15 | H16: 822.5
A17: 16 | H17: 822.5
A18: 17 | H18: 822.5
A19: 18 | H19: 822.5
A20: 19 | H20: 822.5
A21: 20 | H21: 822.5
A22: 21 | H22: 822.5
A23: 22 | B23: 133 | C23: 10 | D23: 2 | E23: 3 | F23: 5 | G23: 683 | H23: 813.2
A24: 23 | H24: 813.2
A25: 24 | H25: 813.2
A26: 25 | H26: 813.2
A27: 26 | H27: 813.2
A28: 27 | H28: 813.2
A29: 28 | B29: 509 | C29: 10 | D29: 0 | E29: 2 | F29: 2 | G29: 1089 | H29: 830.4375
A30: 29 | B30: 461 | C30: 11 | D30: 1 | E30: 4 | F30: 4 | G30: 1121 | H30: 847.5294118
A31: 30 | B31: 472 | C31: 12 | D31: 2 | E31: 4 | F31: 4 | G31: 1132 | H31: 863.3333333
A32: 31 | B32: 302 | C32: 8 | D32: 4 | E32: 12 | F32: 13 | G32: 892 | H32: 864.8421053
A33: 32 | H33: 864.8421053
A34: 33 | H34: 864.8421053
A35: 34 | B35: 506 | C35: 13 | D35: 3 | E35: 1 | F35: 3 | G35: 1096 | H35: 876.4
A36: 35 | B36: 431 | C36: 11 | D36: 1 | E36: 3 | F36: 5 | G36: 1081 | H36: 886.1428571
A37: 36 | B37: 144 | C37: 7 | D37: 2 | E37: 2 | F37: 2 | G37: 474 | H37: 867.4090909
A38: 37 | B38: 456 | C38: 9 | D38: 0 | E38: 1 | F38: 1 | G38: 946 | H38: 870.826087
A39: 38 | H39: 870.826087
A40: 39 | H40: 870.826087
A41: 40 | B41: 81 | C41: 10 | D41: 5 | E41: 3 | F41: 7 | G41: 541 | H41: 857.0833333
A42: 41 | B42: 621 | C42: 12 | D42: 1 | E42: 6 | F42: 8 | G42: 1411 | H42: 879.24
A43: 42 | B43: 239 | C43: 12 | D43: 4 | E43: 4 | F43: 4 | G43: 799 | H43: 876.1538462
A44: 43 | B44: 396 | C44: 13 | D44: 4 | E44: 3 | F44: 6 | G44: 1026 | H44: 881.7037037
A45: 44 | B45: 756 | C45: 15 | D45: 0 | E45: 0 | F45: 0 | G45: 1506 | H45: 904
A46: 45 | B46: 505 | C46: 9 | D46: 5 | E46: 5 | F46: 7 | G46: 915 | H46: 904.3793103
A47: 46 | B47: 698 | C47: 12 | D47: 2 | E47: 3 | F47: 5 | G47: 1348 | H47: 919.1666667
A48: 47 | B48: 133 | C48: 10 | D48: 5 | E48: 2 | F48: 2 | G48: 463 | H48: 904.4516129
A49: 48 | B49: 458 | C49: 11 | D49: 2 | E49: 3 | F49: 3 | G49: 1028 | H49: 908.3125
A50: 49 | B50: 425 | C50: 9 | D50: 1 | E50: 4 | F50: 9 | G50: 1095 | H50: 913.969697
A51: 50 | B51: 352 | C51: 10 | D51: 1 | E51: 7 | F51: 7 | G51: 1082 | H51: 918.9117647
A52: 51 | B52: 549 | C52: 9 | D52: 2 | E52: 3 | F52: 4 | G52: 1019 | H52: 921.7714286
A53: 52 | B53: 369 | C53: 11 | D53: 1 | E53: 7 | F53: 8 | G53: 1109 | H53: 926.9722222
A54: 53 | B54: 524 | C54: 12 | D54: 3 | E54: 1 | F54: 1 | G54: 1014 | H54: 929.3243243
A55: 54 | B55: 308 | C55: 13 | D55: 4 | E55: 4 | F55: 6 | G55: 938 | H55: 929.5526316
A56: 55 | B56: 470 | C56: 11 | D56: 3 | E56: 1 | F56: 5 | G56: 1020 | H56: 931.8717949
A57: 56 | B57: 474 | C57: 8 | D57: 3 | E57: 4 | F57: 4 | G57: 884 | H57: 930.675
A58: 57 | B58: 468 | C58: 12 | D58: 2 | E58: 9 | F58: 9 | G58: 1238 | H58: 938.1707317
A59: 58 | B59: 164 | C59: 5 | D59: 1 | E59: 7 | F59: 7 | G59: 644 | H59: 931.1666667
A60: 59 | B60: 309 | C60: 11 | D60: 2 | E60: 6 | F60: 6 | G60: 999 | H60: 932.744186
A61: 60 | B61: 340 | C61: 7 | D61: 1 | E61: 5 | F61: 6 | G61: 820 | H61: 930.1818182
A62: 61 | B62: 668 | C62: 12 | D62: 0 | E62: 3 | F62: 4 | G62: 1388 | H62: 940.3555556
A63: 62 | B63: 3 | C63: 5 | D63: 4 | E63: 2 | F63: 3 | G63: 143 | H63: 923.0217391
A64: 63 | B64: 337 | C64: 12 | D64: 1 | E64: 2 | F64: 2 | G64: 967 | H64: 923.9574468
A65: 64 | B65: 558 | C65: 12 | D65: 1 | E65: 4 | F65: 4 | G65: 1228 | H65: 930.2916667
A66: 65 | B66: 686 | C66: 12 | D66: 0 | E66: 3 | F66: 3 | G66: 1406 | H66: 940
A67: 66 | B67: 370 | C67: 10 | D67: 1 | E67: 4 | F67: 7 | G67: 1030 | H67: 941.8
A68: 67 | B68: 1 | C68: 7 | D68: 4 | E68: 5 | F68: 5 | G68: 351 | H68: 930.2156863
A69: 68 | B69: 250 | C69: 6 | D69: 3 | E69: 3 | F69: 6 | G69: 580 | H69: 923.4807692
A70: 69 | B70: 266 | C70: 7 | D70: 3 | E70: 3 | F70: 3 | G70: 586 | H70: 917.1132075
A71: 70 | B71: 395 | C71: 8 | D71: 2 | E71: 4 | F71: 6 | G71: 875 | H71: 916.3333333
A72: 71 | B72: 527 | C72: 12 | D72: 4 | E72: 2 | F72: 2 | G72: 1007 | H72: 917.9818182
A73: 72 | B73: 220 | C73: 9 | D73: 1 | E73: 8 | F73: 10 | G73: 920 | H73: 918.0178571
A74: 73 | B74: 493 | C74: 10 | D74: 3 | E74: 4 | F74: 4 | G74: 1003 | H74: 919.5087719
A75: 74 | H75: 919.5087719
A76: 75 | H76: 919.5087719

Sheet Schmidt,Silvia
A1: Serie | B1: Sp.Pu | C1: gew. | D1: verl. | E1: abg. | F1: v.GS | G1: We.Pu. | H1: Durchschnitt Wertungspunkte | J1: Platz am Jahresende : | M1: 29 | N1: in Gruppe : | P1: 3 | Q1: Anzahl der Teilnahmen : | U1: 24
A2: 1 | K2: Spiel- | L2: Spiele | P2: Wert.- | R2: Anz.Li.- | S2: Anz. | T2: Listenfehler
A3: 2 | K3: punkte | L3: gew. | M3: ver. | N3: abgen. | O3: v.GS | P3: punkte | R3: führer | S3: Null-Fehler | T3: Summe | U3: Schnitt
A4: 3 | J4: Max | K4: 585 | L4: 11 | M4: 4 | N4: 8 | O4: 8 | P4: 1215 | R4: 5 | S4: 5 | T4: 0 | U4: 0
A5: 4 | J5: Schnitt | K5: 163.4583333 | L5: 6.541666667 | M5: 1.875 | N5: 3.916666667 | O5: 4.291666667 | P5: 555.9583333 | S5: Sum.Abr.geld : | T5: 45
A6: 5 | J6: Min | K6: -256 | L6: 3 | M6: 0 | N6: 1 | O6: 1 | P6: -86 | S6: Schn.Abreizg. : | T6: 1.875
A7: 6
A8: 7
A9: 8
A10: 9
A11: 10
A12: 11
A13: 12
A14: 13
A15: 14
A16: 15
A17: 16
A18: 17 | B18: 358 | C18: 11 | D18: 2 | E18: 2 | F18: 2 | G18: 888 | H18: 888
A19: 18 | H19: 888
A20: 19 | H20: 888
A21: 20 | H21: 888
A22: 21 | H22: 888
A23: 22 | B23: 585 | C23: 10 | D23: 1 | E23: 3 | F23: 6 | G23: 1215 | H23: 1051.5
A24: 23 | H24: 1051.5
A25: 24 | H25: 1051.5
A26: 25 | H26: 1051.5
A27: 26 | H27: 1051.5
A28: 27 | H28: 1051.5
A29: 28 | H29: 1051.5
A30: 29 | B30: -256 | C30: 5 | D30: 4 | E30: 3 | F30: 4 | G30: -86 | H30: 672.3333333
A31: 30 | B31: 80 | C31: 6 | D31: 2 | E31: 5 | F31: 5 | G31: 480 | H31: 624.25
A32: 31 | H32: 624.25
A33: 32 | H33: 624.25
A34: 33 | H34: 624.25
A35: 34 | H35: 624.25
A36: 35 | B36: 172 | C36: 7 | D36: 1 | E36: 4 | F36: 4 | G36: 632 | H36: 625.8
A37: 36 | B37: 267 | C37: 5 | D37: 0 | E37: 7 | F37: 7 | G37: 797 | H37: 654.3333333
A38: 37 | H38: 654.3333333
A39: 38 | H39: 654.3333333
A40: 39 | H40: 654.3333333
A41: 40 | H41: 654.3333333
A42: 41 | B42: 109 | C42: 9 | D42: 4 | E42: 4 | F42: 4 | G42: 519 | H42: 635
A43: 42 | B43: 114 | C43: 4 | D43: 1 | E43: 4 | F43: 4 | G43: 424 | H43: 608.625
A44: 43 | B44: 173 | C44: 10 | D44: 4 | E44: 4 | F44: 4 | G44: 633 | H44: 611.3333333
A45: 44 | B45: -22 | C45: 6 | D45: 3 | E45: 4 | F45: 4 | G45: 288 | H45: 579
A46: 45 | H46: 579
A47: 46 | B47: 291 | C47: 7 | D47: 1 | E47: 6 | F47: 7 | G47: 801 | H47: 599.1818182
A48: 47 | B48: -32 | C48: 4 | D48: 4 | E48: 2 | F48: 2 | G48: 48 | H48: 553.25
A49: 48 | H49: 553.25
A50: 49 | B50: 198 | C50: 6 | D50: 2 | E50: 2 | F50: 4 | G50: 518 | H50: 550.5384615
A51: 50 | B51: 216 | C51: 5 | D51: 1 | E51: 3 | F51: 3 | G51: 536 | H51: 549.5
A52: 51 | H52: 549.5
A53: 52 | B53: 197 | C53: 9 | D53: 2 | E53: 4 | F53: 4 | G53: 707 | H53: 560
A54: 53 | B54: 67 | C54: 3 | D54: 2 | E54: 7 | F54: 7 | G54: 397 | H54: 549.8125
A55: 54 | H55: 549.8125
A56: 55 | B56: 121 | C56: 5 | D56: 1 | E56: 1 | F56: 1 | G56: 351 | H56: 538.1176471
A57: 56 | B57: 332 | C57: 7 | D57: 1 | E57: 3 | F57: 3 | G57: 752 | H57: 550
A58: 57 | H58: 550
A59: 58 | H59: 550
A60: 59 | H60: 550
A61: 60 | B61: 308 | C61: 6 | D61: 1 | E61: 2 | F61: 4 | G61: 678 | H61: 556.7368421
A62: 61 | B62: 435 | C62: 7 | D62: 0 | E62: 5 | F62: 5 | G62: 985 | H62: 578.15
A63: 62 | H63: 578.15
A64: 63 | H64: 578.15
A65: 64 | B65: -79 | C65: 5 | D65: 1 | E65: 4 | F65: 4 | G65: 241 | H65: 562.0952381
A66: 65 | B66: 54 | C66: 5 | D66: 3 | E66: 3 | F66: 3 | G66: 274 | H66: 549
A67: 66 | H67: 549
A68: 67 | H68: 549
A69: 68 | H69: 549
A70: 69 | H70: 549
A71: 70 | B71: 220 | C71: 10 | D71: 3 | E71: 4 | F71: 4 | G71: 730 | H71: 556.8695652
A72: 71 | B72: 15 | C72: 5 | D72: 1 | E72: 8 | F72: 8 | G72: 535 | H72: 555.9583333
A73: 72 | H73: 555.9583333
A74: 73 | H74: 555.9583333
A75: 74 | H75: 555.9583333
A76: 75 | H76: 555.9583333

Sheet Stollberg,Benjamin
A1: Serie | B1: Sp.Pu | C1: gew. | D1: verl. | E1: abg. | F1: v.GS | G1: We.Pu. | H1: Durchschnitt Wertungspunkte | J1: Platz am Jahresende : | M1: 1 | N1: in Gruppe : | P1: 1 | Q1: Anzahl der Teilnahmen : | U1: 45
A2: 1 | B2: 234 | C2: 8 | D2: 4 | E2: 5 | F2: 6 | G2: 614 | H2: 614 | K2: Spiel- | L2: Spiele | P2: Wert.- | R2: Anz.Li.- | S2: Anz. | T2: Listenfehler
A3: 2 | B3: 431 | C3: 10 | D3: 1 | E3: 5 | F3: 5 | G3: 1081 | H3: 847.5 | K3: punkte | L3: gew. | M3: ver. | N3: abgen. | O3: v.GS | P3: punkte | R3: führer | S3: Null-Fehler | T3: Summe | U3: Schnitt
A4: 3 | H4: 847.5 | J4: Max | K4: 822 | L4: 16 | M4: 5 | N4: 8 | O4: 15 | P4: 1782 | R4: 12 | S4: 12 | T4: 0 | U4: 0
A5: 4 | H5: 847.5 | J5: Schnitt | K5: 457.8666667 | L5: 10.75555556 | M5: 1.444444444 | N5: 4.133333333 | O5: 5.444444444 | P5: 1100.533333 | S5: Sum.Abr.geld : | T5: 65
A6: 5 | B6: 568 | C6: 11 | D6: 2 | E6: 2 | F6: 2 | G6: 1098 | H6: 931 | J6: Min | K6: 134 | L6: 5 | M6: 0 | N6: 1 | O6: 1 | P6: 464 | S6: Schn.Abreizg. : | T6: 1.444444444
A7: 6 | H7: 931
A8: 7 | B8: 509 | C8: 13 | D8: 2 | E8: 1 | F8: 3 | G8: 1149 | H8: 985.5
A9: 8 | B9: 400 | C9: 9 | D9: 1 | E9: 3 | F9: 3 | G9: 920 | H9: 972.4
A10: 9 | H10: 972.4
A11: 10 | B11: 342 | C11: 10 | D11: 2 | E11: 2 | F11: 4 | G11: 862 | H11: 954
A12: 11 | B12: 575 | C12: 12 | D12: 2 | E12: 2 | F12: 6 | G12: 1255 | H12: 997
A13: 12 | H13: 997
A14: 13 | B14: 469 | C14: 11 | D14: 1 | E14: 3 | F14: 5 | G14: 1119 | H14: 1012.25
A15: 14 | B15: 516 | C15: 12 | D15: 0 | E15: 3 | F15: 3 | G15: 1236 | H15: 1037.111111
A16: 15 | B16: 758 | C16: 13 | D16: 0 | E16: 6 | F16: 8 | G16: 1648 | H16: 1098.2
A17: 16 | H17: 1098.2
A18: 17 | H18: 1098.2
A19: 18 | H19: 1098.2
A20: 19 | H20: 1098.2
A21: 20 | B21: 305 | C21: 11 | D21: 3 | E21: 5 | F21: 6 | G21: 885 | H21: 1078.818182
A22: 21 | B22: 345 | C22: 11 | D22: 3 | E22: 3 | F22: 3 | G22: 865 | H22: 1061
A23: 22 | H23: 1061
A24: 23 | H24: 1061
A25: 24 | H25: 1061
A26: 25 | B26: 676 | C26: 12 | D26: 0 | E26: 1 | F26: 3 | G26: 1366 | H26: 1084.461538
A27: 26 | B27: 528 | C27: 15 | D27: 2 | E27: 2 | F27: 2 | G27: 1258 | H27: 1096.857143
A28: 27 | H28: 1096.857143
A29: 28 | B29: 219 | C29: 10 | D29: 5 | E29: 3 | F29: 4 | G29: 589 | H29: 1063
A30: 29 | B30: 620 | C30: 11 | D30: 0 | E30: 6 | F30: 8 | G30: 1410 | H30: 1084.6875
A31: 30 | B31: 605 | C31: 14 | D31: 2 | E31: 3 | F31: 4 | G31: 1325 | H31: 1098.823529
A32: 31 | B32: 267 | C32: 9 | D32: 2 | E32: 7 | F32: 15 | G32: 1067 | H32: 1097.055556
A33: 32 | H33: 1097.055556
A34: 33 | H34: 1097.055556
A35: 34 | B35: 619 | C35: 13 | D35: 2 | E35: 2 | F35: 4 | G35: 1289 | H35: 1107.157895
A36: 35 | B36: 329 | C36: 8 | D36: 0 | E36: 1 | F36: 1 | G36: 759 | H36: 1089.75
A37: 36 | B37: 709 | C37: 14 | D37: 1 | E37: 4 | F37: 4 | G37: 1519 | H37: 1110.190476
A38: 37 | H38: 1110.190476
A39: 38 | B39: 532 | C39: 9 | D39: 2 | E39: 7 | F39: 9 | G39: 1152 | H39: 1112.090909
A40: 39 | B40: 562 | C40: 11 | D40: 2 | E40: 1 | F40: 3 | G40: 1102 | H40: 1111.652174
A41: 40 | H41: 1111.652174
A42: 41 | B42: 346 | C42: 11 | D42: 2 | E42: 6 | F42: 10 | G42: 1096 | H42: 1111
A43: 42 | B43: 331 | C43: 8 | D43: 2 | E43: 6 | F43: 6 | G43: 871 | H43: 1101.4
A44: 43 | H44: 1101.4
A45: 44 | H45: 1101.4
A46: 45 | B46: 366 | C46: 8 | D46: 0 | E46: 6 | F46: 6 | G46: 1006 | H46: 1097.730769
A47: 46 | H47: 1097.730769
A48: 47 | H48: 1097.730769
A49: 48 | B49: 516 | C49: 16 | D49: 2 | E49: 3 | F49: 4 | G49: 1336 | H49: 1106.555556
A50: 49 | B50: 228 | C50: 8 | D50: 2 | E50: 5 | F50: 7 | G50: 738 | H50: 1093.392857
A51: 50 | H51: 1093.392857
A52: 51 | B52: 537 | C52: 13 | D52: 1 | E52: 3 | F52: 6 | G52: 1317 | H52: 1101.103448
A53: 52 | B53: 430 | C53: 11 | D53: 1 | E53: 7 | F53: 7 | G53: 1140 | H53: 1102.4
A54: 53 | B54: 682 | C54: 12 | D54: 0 | E54: 4 | F54: 4 | G54: 1442 | H54: 1113.354839
A55: 54 | H55: 1113.354839
A56: 55 | B56: 223 | C56: 9 | D56: 3 | E56: 7 | F56: 7 | G56: 733 | H56: 1101.46875
A57: 56 | B57: 639 | C57: 10 | D57: 1 | E57: 3 | F57: 3 | G57: 1209 | H57: 1104.727273
A58: 57 | B58: 134 | C58: 6 | D58: 3 | E58: 3 | F58: 6 | G58: 464 | H58: 1085.882353
A59: 58 | B59: 318 | C59: 10 | D59: 1 | E59: 4 | F59: 4 | G59: 928 | H59: 1081.371429
A60: 59 | H60: 1081.371429
A61: 60 | B61: 275 | C61: 10 | D61: 3 | E61: 4 | F61: 6 | G61: 805 | H61: 1073.694444
A62: 61 | B62: 797 | C62: 15 | D62: 0 | E62: 5 | F62: 5 | G62: 1747 | H62: 1091.891892
A63: 62 | H63: 1091.891892
A64: 63 | H64: 1091.891892
A65: 64 | B65: 322 | C65: 10 | D65: 3 | E65: 7 | F65: 8 | G65: 912 | H65: 1087.157895
A66: 65 | B66: 381 | C66: 12 | D66: 0 | E66: 5 | F66: 5 | G66: 1181 | H66: 1089.564103
A67: 66 | B67: 566 | C67: 10 | D67: 0 | E67: 5 | F67: 7 | G67: 1276 | H67: 1094.225
A68: 67 | B68: 240 | C68: 6 | D68: 1 | E68: 3 | F68: 3 | G68: 610 | H68: 1082.414634
A69: 68 | B69: 734 | C69: 15 | D69: 0 | E69: 4 | F69: 5 | G69: 1634 | H69: 1095.547619
A70: 69 | B70: 822 | C70: 16 | D70: 0 | E70: 4 | F70: 4 | G70: 1782 | H70: 1111.511628
A71: 70 | H71: 1111.511628
A72: 71 | H72: 1111.511628
A73: 72 | H73: 1111.511628
A74: 73 | H74: 1111.511628
A75: 74 | B75: 356 | C75: 5 | D75: 0 | E75: 8 | F75: 12 | G75: 966 | H75: 1108.204545
A76: 75 | B76: 243 | C76: 6 | D76: 1 | E76: 7 | F76: 9 | G76: 763 | H76: 1100.533333

Sheet Stopp,Reiner
A1: Serie | B1: Sp.Pu | C1: gew. | D1: verl. | E1: abg. | F1: v.GS | G1: We.Pu. | H1: Durchschnitt Wertungspunkte | J1: Platz am Jahresende : | M1: 12 | N1: in Gruppe : | P1: 1 | Q1: Anzahl der Teilnahmen : | U1: 70
A2: 1 | B2: 72 | C2: 7 | D2: 2 | E2: 7 | F2: 9 | G2: 592 | H2: 592 | K2: Spiel- | L2: Spiele | P2: Wert.- | R2: Anz.Li.- | S2: Anz. | T2: Listenfehler
A3: 2 | B3: 248 | C3: 9 | D3: 2 | E3: 5 | F3: 5 | G3: 798 | H3: 695 | K3: punkte | L3: gew. | M3: ver. | N3: abgen. | O3: v.GS | P3: punkte | R3: führer | S3: Null-Fehler | T3: Summe | U3: Schnitt
A4: 3 | B4: 350 | C4: 9 | D4: 3 | E4: 4 | F4: 5 | G4: 800 | H4: 730 | J4: Max | K4: 810 | L4: 17 | M4: 7 | N4: 7 | O4: 11 | P4: 1610 | R4: 20 | S4: 20 | T4: 0 | U4: 0
A5: 4 | B5: 417 | C5: 12 | D5: 1 | E5: 4 | F5: 4 | G5: 1127 | H5: 829.25 | J5: Schnitt | K5: 368.2285714 | L5: 10.45714286 | M5: 2.114285714 | N5: 3.271428571 | O5: 4.557142857 | P5: 935.8 | S5: Sum.Abr.geld : | T5: 148
A6: 5 | B6: 97 | C6: 6 | D6: 3 | E6: 2 | F6: 2 | G6: 327 | H6: 728.8 | J6: Min | K6: -354 | L6: 4 | M6: 0 | N6: 0 | O6: 0 | P6: -234 | S6: Schn.Abreizg. : | T6: 2.114285714
A7: 6 | B7: 482 | C7: 16 | D7: 2 | E7: 2 | F7: 2 | G7: 1262 | H7: 817.6666667
A8: 7 | B8: 557 | C8: 17 | D8: 1 | E8: 3 | F8: 3 | G8: 1447 | H8: 907.5714286
A9: 8 | B9: 486 | C9: 11 | D9: 0 | E9: 3 | F9: 3 | G9: 1156 | H9: 938.625
A10: 9 | B10: 458 | C10: 13 | D10: 3 | E10: 2 | F10: 3 | G10: 1048 | H10: 950.7777778
A11: 10 | B11: 462 | C11: 12 | D11: 1 | E11: 4 | F11: 5 | G11: 1162 | H11: 971.9
A12: 11 | B12: 810 | C12: 14 | D12: 3 | E12: 1 | F12: 1 | G12: 1390 | H12: 1009.909091
A13: 12 | B13: 199 | C13: 10 | D13: 4 | E13: 2 | F13: 5 | G13: 649 | H13: 979.8333333
A14: 13 | B14: 642 | C14: 14 | D14: 0 | E14: 2 | F14: 6 | G14: 1522 | H14: 1021.538462
A15: 14 | B15: 379 | C15: 12 | D15: 0 | E15: 3 | F15: 6 | G15: 1159 | H15: 1031.357143
A16: 15 | B16: 792 | C16: 11 | D16: 2 | E16: 4 | F16: 6 | G16: 1422 | H16: 1057.4
A17: 16 | B17: 451 | C17: 9 | D17: 1 | E17: 1 | F17: 4 | G17: 971 | H17: 1052
A18: 17 | B18: 251 | C18: 10 | D18: 4 | E18: 5 | F18: 5 | G18: 751 | H18: 1034.294118
A19: 18 | B19: 444 | C19: 10 | D19: 2 | E19: 5 | F19: 10 | G19: 1144 | H19: 1040.388889
A20: 19 | B20: 379 | C20: 10 | D20: 2 | E20: 3 | F20: 6 | G20: 959 | H20: 1036.105263
A21: 20 | B21: 758 | C21: 13 | D21: 1 | E21: 2 | F21: 8 | G21: 1598 | H21: 1064.2
A22: 21 | B22: 507 | C22: 10 | D22: 0 | E22: 3 | F22: 3 | G22: 1097 | H22: 1065.761905
A23: 22 | B23: 266 | C23: 8 | D23: 1 | E23: 5 | F23: 7 | G23: 826 | H23: 1054.863636
A24: 23 | B24: 491 | C24: 14 | D24: 2 | E24: 2 | F24: 5 | G24: 1241 | H24: 1062.956522
A25: 24 | B25: 423 | C25: 9 | D25: 1 | E25: 5 | F25: 5 | G25: 1023 | H25: 1061.291667
A26: 25 | B26: 581 | C26: 11 | D26: 0 | E26: 2 | F26: 3 | G26: 1221 | H26: 1067.68
A27: 26 | B27: 338 | C27: 9 | D27: 1 | E27: 3 | F27: 3 | G27: 858 | H27: 1059.615385
A28: 27 | B28: 20 | C28: 5 | D28: 4 | E28: 4 | F28: 9 | G28: 340 | H28: 1032.962963
A29: 28 | B29: 586 | C29: 14 | D29: 4 | E29: 5 | F29: 5 | G29: 1286 | H29: 1042
A30: 29 | B30: 747 | C30: 14 | D30: 1 | E30: 3 | F30: 7 | G30: 1607 | H30: 1061.482759
A31: 30 | B31: 220 | C31: 9 | D31: 2 | E31: 2 | F31: 4 | G31: 690 | H31: 1049.1
A32: 31 | B32: 523 | C32: 9 | D32: 1 | E32: 2 | F32: 2 | G32: 1003 | H32: 1047.612903
A33: 32 | B33: 349 | C33: 13 | D33: 1 | E33: 1 | F33: 3 | G33: 1039 | H33: 1047.34375
A34: 33 | B34: 221 | C34: 10 | D34: 2 | E34: 3 | F34: 6 | G34: 801 | H34: 1039.878788
A35: 34 | B35: 425 | C35: 11 | D35: 1 | E35: 2 | F35: 2 | G35: 985 | H35: 1038.264706
A36: 35 | B36: 521 | C36: 9 | D36: 1 | E36: 2 | F36: 2 | G36: 981 | H36: 1036.628571
A37: 36 | B37: 122 | C37: 8 | D37: 3 | E37: 3 | F37: 3 | G37: 492 | H37: 1021.5
A38: 37 | B38: 503 | C38: 14 | D38: 1 | E38: 0 | F38: 0 | G38: 1153 | H38: 1025.054054
A39: 38 | B39: -354 | C39: 7 | D39: 7 | E39: 1 | F39: 4 | G39: -234 | H39: 991.9210526
A40: 39 | B40: 354 | C40: 8 | D40: 1 | E40: 4 | F40: 4 | G40: 864 | H40: 988.6410256
A41: 40 | B41: 194 | C41: 9 | D41: 5 | E41: 1 | F41: 1 | G41: 434 | H41: 974.775
A42: 41 | B42: 285 | C42: 10 | D42: 2 | E42: 7 | F42: 9 | G42: 955 | H42: 974.2926829
A43: 42 | B43: 480 | C43: 12 | D43: 1 | E43: 3 | F43: 3 | G43: 1150 | H43: 978.4761905
A44: 43 | B44: 302 | C44: 10 | D44: 2 | E44: 3 | F44: 3 | G44: 792 | H44: 974.1395349
A45: 44 | B45: 481 | C45: 10 | D45: 3 | E45: 1 | F45: 1 | G45: 871 | H45: 971.7954545
A46: 45 | H46: 971.7954545
A47: 46 | B47: 17 | C47: 9 | D47: 3 | E47: 7 | F47: 11 | G47: 647 | H47: 964.5777778
A48: 47 | B48: 189 | C48: 8 | D48: 3 | E48: 4 | F48: 4 | G48: 599 | H48: 956.6304348
A49: 48 | B49: 123 | C49: 8 | D49: 2 | E49: 3 | F49: 3 | G49: 543 | H49: 947.8297872
A50: 49 | H50: 947.8297872
A51: 50 | H51: 947.8297872
A52: 51 | B52: 512 | C52: 13 | D52: 3 | E52: 3 | F52: 4 | G52: 1132 | H52: 951.6666667
A53: 52 | B53: 293 | C53: 9 | D53: 0 | E53: 7 | F53: 11 | G53: 1073 | H53: 954.1428571
A54: 53 | B54: 380 | C54: 11 | D54: 2 | E54: 6 | F54: 6 | G54: 1070 | H54: 956.46
A55: 54 | B55: 180 | C55: 8 | D55: 3 | E55: 5 | F55: 7 | G55: 640 | H55: 950.254902
A56: 55 | B56: 264 | C56: 10 | D56: 3 | E56: 3 | F56: 5 | G56: 764 | H56: 946.6730769
A57: 56 | B57: 431 | C57: 13 | D57: 2 | E57: 2 | F57: 2 | G57: 1061 | H57: 948.8301887
A58: 57 | B58: 213 | C58: 10 | D58: 5 | E58: 3 | F58: 5 | G58: 613 | H58: 942.6111111
A59: 58 | B59: 174 | C59: 9 | D59: 3 | E59: 4 | F59: 4 | G59: 634 | H59: 937
A60: 59 | B60: 523 | C60: 14 | D60: 3 | E60: 5 | F60: 5 | G60: 1273 | H60: 943
A61: 60 | B61: 138 | C61: 8 | D61: 2 | E61: 2 | F61: 5 | G61: 588 | H61: 936.7719298
A62: 61 | B62: 107 | C62: 9 | D62: 3 | E62: 3 | F62: 3 | G62: 527 | H62: 929.7068966
A63: 62 | H63: 929.7068966
A64: 63 | H64: 929.7068966
A65: 64 | B65: 445 | C65: 12 | D65: 2 | E65: 1 | F65: 3 | G65: 1035 | H65: 931.4915254
A66: 65 | B66: 115 | C66: 6 | D66: 2 | E66: 4 | F66: 4 | G66: 475 | H66: 923.8833333
A67: 66 | B67: 98 | C67: 8 | D67: 4 | E67: 3 | F67: 4 | G67: 418 | H67: 915.5901639
A68: 67 | B68: 702 | C68: 14 | D68: 1 | E68: 4 | F68: 4 | G68: 1512 | H68: 925.2096774
A69: 68 | B69: 413 | C69: 9 | D69: 1 | E69: 4 | F69: 4 | G69: 973 | H69: 925.968254
A70: 69 | B70: 577 | C70: 10 | D70: 1 | E70: 4 | F70: 4 | G70: 1187 | H70: 930.046875
A71: 70 | B71: 553 | C71: 11 | D71: 2 | E71: 4 | F71: 6 | G71: 1183 | H71: 933.9384615
A72: 71 | B72: 422 | C72: 12 | D72: 2 | E72: 3 | F72: 4 | G72: 1042 | H72: 935.5757576
A73: 72 | B73: 392 | C73: 13 | D73: 4 | E73: 3 | F73: 7 | G73: 1052 | H73: 937.3134328
A74: 73 | B74: 760 | C74: 13 | D74: 0 | E74: 5 | F74: 5 | G74: 1610 | H74: 947.2058824
A75: 74 | B75: -156 | C75: 4 | D75: 6 | E75: 5 | F75: 6 | G75: -76 | H75: 932.3768116
A76: 75 | B76: 592 | C76: 13 | D76: 2 | E76: 1 | F76: 1 | G76: 1172 | H76: 935.8

Sheet Wehrsig,Manuel
A1: Serie | B1: Sp.Pu | C1: gew. | D1: verl. | E1: abg. | F1: v.GS | G1: We.Pu. | H1: Durchschnitt Wertungspunkte | J1: Platz am Jahresende : | M1: 11 | N1: in Gruppe : | P1: 1 | Q1: Anzahl der Teilnahmen : | U1: 49
A2: 1 | B2: 336 | C2: 9 | D2: 2 | E2: 2 | F2: 5 | G2: 836 | H2: 836 | K2: Spiel- | L2: Spiele | P2: Wert.- | R2: Anz.Li.- | S2: Anz. | T2: Listenfehler
A3: 2 | B3: 554 | C3: 10 | D3: 0 | E3: 5 | F3: 5 | G3: 1254 | H3: 1045 | K3: punkte | L3: gew. | M3: ver. | N3: abgen. | O3: v.GS | P3: punkte | R3: führer | S3: Null-Fehler | T3: Summe | U3: Schnitt
A4: 3 | B4: 286 | C4: 9 | D4: 1 | E4: 2 | F4: 4 | G4: 806 | H4: 965.3333333 | J4: Max | K4: 809 | L4: 17 | M4: 7 | N4: 10 | O4: 12 | P4: 1724 | R4: 17 | S4: 17 | T4: 0 | U4: 0
A5: 4 | B5: 226 | C5: 8 | D5: 2 | E5: 3 | F5: 3 | G5: 646 | H5: 885.5 | J5: Schnitt | K5: 370.3673469 | L5: 9.530612245 | M5: 1.653061224 | N5: 4.183673469 | O5: 5.408163265 | P5: 940.7755102 | S5: Sum.Abr.geld : | T5: 81
A6: 5 | H6: 885.5 | J6: Min | K6: -115 | L6: 3 | M6: 0 | N6: 0 | O6: 0 | P6: -15 | S6: Schn.Abreizg. : | T6: 1.653061224
A7: 6 | B7: 809 | C7: 14 | D7: 0 | E7: 1 | F7: 2 | G7: 1569 | H7: 1022.2
A8: 7 | B8: 455 | C8: 10 | D8: 1 | E8: 2 | F8: 2 | G8: 965 | H8: 1012.666667
A9: 8 | B9: 372 | C9: 9 | D9: 2 | E9: 2 | F9: 2 | G9: 802 | H9: 982.5714286
A10: 9 | B10: -64 | C10: 8 | D10: 4 | E10: 2 | F10: 2 | G10: 216 | H10: 886.75
A11: 10 | B11: -75 | C11: 6 | D11: 5 | E11: 9 | F11: 12 | G11: 335 | H11: 825.4444444
A12: 11 | H12: 825.4444444
A13: 12 | B13: 218 | C13: 7 | D13: 1 | E13: 5 | F13: 5 | G13: 718 | H13: 814.7
A14: 13 | H14: 814.7
A15: 14 | H15: 814.7
A16: 15 | H16: 814.7
A17: 16 | B17: 297 | C17: 6 | D17: 1 | E17: 2 | F17: 4 | G17: 667 | H17: 801.2727273
A18: 17 | B18: 374 | C18: 6 | D18: 2 | E18: 2 | F18: 2 | G18: 654 | H18: 789
A19: 18 | B19: 568 | C19: 13 | D19: 0 | E19: 5 | F19: 6 | G19: 1398 | H19: 835.8461538
A20: 19 | B20: 334 | C20: 8 | D20: 1 | E20: 4 | F20: 6 | G20: 864 | H20: 837.8571429
A21: 20 | B21: 566 | C21: 9 | D21: 1 | E21: 4 | F21: 6 | G21: 1146 | H21: 858.4
A22: 21 | H22: 858.4
A23: 22 | B23: 369 | C23: 12 | D23: 3 | E23: 4 | F23: 5 | G23: 969 | H23: 865.3125
A24: 23 | B24: 447 | C24: 11 | D24: 0 | E24: 2 | F24: 2 | G24: 1077 | H24: 877.7647059
A25: 24 | H25: 877.7647059
A26: 25 | B26: 236 | C26: 10 | D26: 2 | E26: 5 | F26: 5 | G26: 786 | H26: 872.6666667
A27: 26 | H27: 872.6666667
A28: 27 | B28: 311 | C28: 9 | D28: 2 | E28: 8 | F28: 11 | G28: 991 | H28: 878.8947368
A29: 28 | B29: 744 | C29: 14 | D29: 1 | E29: 8 | F29: 11 | G29: 1724 | H29: 921.15
A30: 29 | B30: 453 | C30: 10 | D30: 1 | E30: 4 | F30: 4 | G30: 1063 | H30: 927.9047619
A31: 30 | H31: 927.9047619
A32: 31 | B32: -100 | C32: 4 | D32: 6 | E32: 8 | F32: 11 | G32: 130 | H32: 891.6363636
A33: 32 | H33: 891.6363636
A34: 33 | H34: 891.6363636
A35: 34 | H35: 891.6363636
A36: 35 | B36: 462 | C36: 11 | D36: 2 | E36: 6 | F36: 9 | G36: 1182 | H36: 904.2608696
A37: 36 | H37: 904.2608696
A38: 37 | B38: -115 | C38: 6 | D38: 7 | E38: 2 | F38: 5 | G38: -15 | H38: 865.9583333
A39: 38 | H39: 865.9583333
A40: 39 | H40: 865.9583333
A41: 40 | B41: 473 | C41: 12 | D41: 2 | E41: 3 | F41: 3 | G41: 1093 | H41: 875.04
A42: 41 | H42: 875.04
A43: 42 | H43: 875.04
A44: 43 | B44: 359 | C44: 9 | D44: 0 | E44: 5 | F44: 5 | G44: 1009 | H44: 880.1923077
A45: 44 | B45: 293 | C45: 7 | D45: 0 | E45: 0 | F45: 0 | G45: 643 | H45: 871.4074074
A46: 45 | H46: 871.4074074
A47: 46 | B47: 354 | C47: 11 | D47: 2 | E47: 3 | F47: 5 | G47: 954 | H47: 874.3571429
A48: 47 | B48: 367 | C48: 9 | D48: 1 | E48: 2 | F48: 2 | G48: 847 | H48: 873.4137931
A49: 48 | B49: 598 | C49: 12 | D49: 1 | E49: 7 | F49: 8 | G49: 1388 | H49: 890.5666667
A50: 49 | B50: 130 | C50: 6 | D50: 3 | E50: 5 | F50: 7 | G50: 490 | H50: 877.6451613
A51: 50 | B51: 509 | C51: 10 | D51: 0 | E51: 4 | F51: 4 | G51: 1169 | H51: 886.75
A52: 51 | B52: 606 | C52: 12 | D52: 0 | E52: 3 | F52: 5 | G52: 1356 | H52: 900.969697
A53: 52 | H53: 900.969697
A54: 53 | H54: 900.969697
A55: 54 | H55: 900.969697
A56: 55 | B56: 384 | C56: 11 | D56: 4 | E56: 4 | F56: 6 | G56: 914 | H56: 901.3529412
A57: 56 | B57: 539 | C57: 11 | D57: 2 | E57: 5 | F57: 5 | G57: 1189 | H57: 909.5714286
A58: 57 | B58: 150 | C58: 7 | D58: 1 | E58: 10 | F58: 10 | G58: 750 | H58: 905.1388889
A59: 58 | B59: 538 | C59: 10 | D59: 3 | E59: 4 | F59: 4 | G59: 1048 | H59: 909
A60: 59 | H60: 909
A61: 60 | B61: 358 | C61: 8 | D61: 2 | E61: 3 | F61: 6 | G61: 838 | H61: 907.1315789
A62: 61 | B62: 208 | C62: 8 | D62: 1 | E62: 1 | F62: 3 | G62: 648 | H62: 900.4871795
A63: 62 | B63: 508 | C63: 12 | D63: 1 | E63: 6 | F63: 6 | G63: 1298 | H63: 910.425
A64: 63 | B64: 601 | C64: 14 | D64: 0 | E64: 5 | F64: 7 | G64: 1511 | H64: 925.0731707
A65: 64 | H65: 925.0731707
A66: 65 | H66: 925.0731707
A67: 66 | B67: 512 | C67: 9 | D67: 1 | E67: 6 | F67: 7 | G67: 1122 | H67: 929.7619048
A68: 67 | B68: 757 | C68: 10 | D68: 0 | E68: 9 | F68: 9 | G68: 1617 | H68: 945.744186
A69: 68 | B69: 368 | C69: 11 | D69: 2 | E69: 5 | F69: 7 | G69: 1028 | H69: 947.6136364
A70: 69 | B70: 401 | C70: 17 | D70: 1 | E70: 2 | F70: 2 | G70: 1281 | H70: 955.0222222
A71: 70 | B71: 469 | C71: 12 | D71: 3 | E71: 3 | F71: 7 | G71: 1129 | H71: 958.8043478
A72: 71 | B72: 204 | C72: 6 | D72: 1 | E72: 5 | F72: 5 | G72: 654 | H72: 952.3191489
A73: 72 | H73: 952.3191489
A74: 73 | H74: 952.3191489
A75: 74 | B75: -56 | C75: 3 | D75: 3 | E75: 7 | F75: 10 | G75: 244 | H75: 937.5625
A76: 75 | B76: 455 | C76: 11 | D76: 0 | E76: 1 | F76: 3 | G76: 1095 | H76: 940.7755102

Sheet Spieler
A1: Serie | B1: Sp.Pu | C1: gew. | D1: verl. | E1: abg. | F1: v.GS | G1: We.Pu. | H1: Durchschnitt Wertungspunkte | J1: Platz am Jahresende : | N1: in Gruppe : | Q1: Anzahl der Teilnahmen :
K2: Spiel- | L2: Spiele | P2: Wert.- | R2: Anz.Li.- | S2: Anz. | T2: Listenfehler
K3: punkte | L3: gew. | M3: ver. | N3: abgen. | O3: v.GS | P3: punkte | R3: führer | S3: Null-Fehler | T3: Summe | U3: Schnitt
J4: Max
J5: Schnitt | S5: Sum.Abr.geld :
J6: Min | S6: Schn.Abreizg. :

Sheet Verein
A1: Name | B1: Pl. | C1: Spielpunkte | F1: Spiele gewonnen | I1: Spiele verloren | L1: Spiele abgen. | O1: Wertungspunkte | R1: Anz. | S1: Anz. | T1: Anz. | U1: Su. | V1: MiWe | W1: Su. | X1: MiWe
B2: jew. | C2: Max | D2: MiWe | E2: Min | F2: Max | G2: MiWe | H2: Min | I2: Max | J2: MiWe | K2: Min | L2: Max | M2: MiWe | N2: Min | O2: Max | P2: MiWe | Q2: Min | R2: TN | S2: LF | T2: 0-Fehl. | U2: LF | V2: LF | W2: Abr.G | X2: Abr.G
A3: Max | C3: =MAX($C$6:$C$37) -> 949 | D3: =MAX($D$6:$D$37) -> 431.3333333 | E3: =MAX($E$6:$E$37) -> 82 | F3: =MAX($F$6:$F$37) -> 20 | G3: =MAX($G$6:$G$37) -> 12.125 | H3: =MAX($H$6:$H$37) -> 7 | I3: =MAX($I$6:$I$37) -> 7 | J3: =MAX($J$6:$J$37) -> 3.388888889 | K3: =MAX($K$6:$K$37) -> 1 | L3: =MAX($L$6:$L$37) -> 10 | M3: =MAX($M$6:$M$37) -> 5.039215686 | N3: =MAX($N$6:$N$37) -> 2 | O3: =MAX($O$6:$O$37) -> 2031 | P3: =MAX($P$6:$P$37) -> 1058.196429 | Q3: =MAX($Q$6:$Q$37) -> 463 | R3: =MAX($R$6:$R$37) -> 67 | S3: =MAX($S$6:$S$37) -> 23 | T3: =MAX($T$6:$T$37) -> 23 | U3: =MAX($U$6:$U$37) -> 0 | V3: =MAX($V$6:$V$37) -> 0 | W3: =MAX($W$6:$W$37) -> 171 | X3: =MAX($X$6:$X$37) -> 3.388888889
A4: MiWe | C4: =AVERAGE($C$6:$C$37) -> 795.96875 | D4: =AVERAGE($D$6:$D$37) -> 340.2703761 | E4: =AVERAGE($E$6:$E$37) -> -71.59375 | F4: =AVERAGE($F$6:$F$37) -> 15.59375 | G4: =AVERAGE($G$6:$G$37) -> 9.621667602 | H4: =AVERAGE($H$6:$H$37) -> 4.09375 | I4: =AVERAGE($I$6:$I$37) -> 5.34375 | J4: =AVERAGE($J$6:$J$37) -> 1.966557272 | K4: =AVERAGE($K$6:$K$37) -> 0.03125 | L4: =AVERAGE($L$6:$L$37) -> 8.1875 | M4: =AVERAGE($M$6:$M$37) -> 3.835461816 | N4: =AVERAGE($N$6:$N$37) -> 0.4375 | O4: =AVERAGE($O$6:$O$37) -> 1616.375 | P4: =AVERAGE($P$6:$P$37) -> 889.9214885 | Q4: =AVERAGE($Q$6:$Q$37) -> 135.875 | R4: =AVERAGE($R$6:$R$37) -> 42.34375 | S4: =AVERAGE($S$6:$S$37) -> 11.5625 | T4: =AVERAGE($T$6:$T$37) -> 11.5625 | U4: =AVERAGE($U$6:$U$37) -> 0 | V4: =AVERAGE($V$6:$V$37) -> 0 | W4: =AVERAGE($W$6:$W$37) -> 80.15625 | X4: =AVERAGE($X$6:$X$37) -> 1.903691775
A5: Min | C5: =MIN($C$6:$C$37) -> 454 | D5: =MIN($D$6:$D$37) -> 206.4827586 | E5: =MIN($E$6:$E$37) -> -253 | F5: =MIN($F$6:$F$37) -> 10 | G5: =MIN($G$6:$G$37) -> 6.558823529 | H5: =MIN($H$6:$H$37) -> 0 | I5: =MIN($I$6:$I$37) -> 3 | J5: =MIN($J$6:$J$37) -> 0.9019607843 | K5: =MIN($K$6:$K$37) -> 0 | L5: =MIN($L$6:$L$37) -> 6 | M5: =MIN($M$6:$M$37) -> 2.888888889 | N5: =MIN($N$6:$N$37) -> 0 | O5: =MIN($O$6:$O$37) -> 1004 | P5: =MIN($P$6:$P$37) -> 602 | Q5: =MIN($Q$6:$Q$37) -> -253 | R5: =MIN($R$6:$R$37) -> 9 | S5: =MIN($S$6:$S$37) -> 1 | T5: =MIN($T$6:$T$37) -> 1 | U5: =MIN($U$6:$U$37) -> 0 | V5: =MIN($V$6:$V$37) -> 0 | W5: =MIN($W$6:$W$37) -> 14 | X5: =MIN($X$6:$X$37) -> 0.7368421053
A6: Bachmann,Dieter | B6: 17 | C6: 864 | D6: 307.890625 | E6: -190 | F6: 15 | G6: 8.875 | H6: 4 | I6: 5 | J6: 1.796875 | K6: 0 | L6: 9 | M6: 4.046875 | N6: 0 | O6: 1714 | P6: 834.765625 | Q6: -10 | R6: 64 | S6: 19 | T6: 19 | U6: 0 | V6: 0 | W6: 115 | X6: 1.796875
A7: Blancke,Manfred | B7: 12 | C7: 851 | D7: 379.1525424 | E7: -112 | F7: 16 | G7: 11.01694915 | H7: 5 | I7: 7 | J7: 2.86440678 | K7: 0 | L7: 7 | M7: 3.254237288 | N7: 0 | O7: 1669 | P7: 933.0508475 | Q7: 87 | R7: 59 | S7: 20 | T7: 20 | U7: 0 | V7: 0 | W7: 169 | X7: 2.86440678
A8: Bormann,Tyler | B8: 25 | C8: 707 | D8: 342.3703704 | E8: -149 | F8: 16 | G8: 10.59259259 | H8: 5 | I8: 7 | J8: 2.37037037 | K8: 0 | L8: 8 | M8: 3.925925926 | N8: 0 | O8: 1557 | P8: 924.962963 | Q8: 111 | R8: 27 | S8: 7 | T8: 7 | U8: 0 | V8: 0 | W8: 31 | X8: 1.148148148
A9: Bruns,Arvid | B9: 29 | C9: 908 | D9: 344.3684211 | E9: 60 | F9: 16 | G9: 8.789473684 | H9: 5 | I9: 3 | J9: 1.526315789 | K9: 0 | L9: 9 | M9: 3.526315789 | N9: 0 | O9: 1828 | P9: 855.9473684 | Q9: 272 | R9: 19 | S9: 8 | T9: 8 | U9: 0 | V9: 0 | W9: 14 | X9: 0.7368421053
A10: Dietrich Dr.,Kristina | B10: 20 | C10: 772 | D10: 294.3478261 | E10: -57 | F10: 14 | G10: 7.565217391 | H10: 3 | I10: 4 | J10: 1.304347826 | K10: 0 | L10: 9 | M10: 4.239130435 | N10: 0 | O10: 1495 | P10: 781.0869565 | Q10: 180 | R10: 46 | S10: 11 | T10: 11 | U10: 0 | V10: 0 | W10: 60 | X10: 1.304347826
A11: Endt,Angelika | B11: 8 | C11: 853 | D11: 368.1724138 | E11: -46 | F11: 18 | G11: 9.879310345 | H11: 4 | I11: 7 | J11: 1.603448276 | K11: 0 | L11: 9 | M11: 4.086206897 | N11: 1 | O11: 1783 | P11: 951.4482759 | Q11: 287 | R11: 58 | S11: 23 | T11: 23 | U11: 0 | V11: 0 | W11: 93 | X11: 1.603448276
A12: Franke,Thomas | B12: 14 | C12: 895 | D12: 357.3484848 | E12: 36 | F12: 18 | G12: 9.46969697 | H12: 4 | I12: 4 | J12: 1.606060606 | K12: 0 | L12: 9 | M12: 4.045454545 | N12: 1 | O12: 1665 | P12: 928.7121212 | Q12: 426 | R12: 66 | S12: 21 | T12: 21 | U12: 0 | V12: 0 | W12: 106 | X12: 1.606060606
A13: Gibson,Sybille | B13: 23 | C13: 727 | D13: 258.5641026 | E13: -253 | F13: 17 | G13: 9.615384615 | H13: 4 | I13: 7 | J13: 2.641025641 | K13: 0 | L13: 8 | M13: 3.487179487 | N13: 0 | O13: 1537 | P13: 761.6410256 | Q13: -253 | R13: 39 | S13: 6 | T13: 6 | U13: 0 | V13: 0 | W13: 103 | X13: 2.641025641
A14: Hartmann,Andreas | B14: 9 | C14: 852 | D14: 390.0217391 | E14: -8 | F14: 18 | G14: 10.04347826 | H14: 5 | I14: 5 | J14: 2 | K14: 0 | L14: 7 | M14: 3.782608696 | N14: 0 | O14: 1767 | P14: 950.8913043 | Q14: 152 | R14: 46 | S14: 12 | T14: 12 | U14: 0 | V14: 0 | W14: 92 | X14: 2
A15: Heidecke,Gabriele | B15: 21 | C15: 754 | D15: 290.037037 | E15: -177 | F15: 15 | G15: 9.462962963 | H15: 4 | I15: 6 | J15: 2.722222222 | K15: 0 | L15: 8 | M15: 3.203703704 | N15: 0 | O15: 1724 | P15: 774.1111111 | Q15: -107 | R15: 54 | S15: 12 | T15: 12 | U15: 0 | V15: 0 | W15: 147 | X15: 2.722222222
A16: Helbig,Sylvelie | B16: 22 | C16: 791 | D16: 291.2857143 | E16: -92 | F16: 13 | G16: 6.761904762 | H16: 1 | I16: 3 | J16: 0.9047619048 | K16: 0 | L16: 8 | M16: 4 | N16: 1 | O16: 1601 | P16: 754.3809524 | Q16: 78 | R16: 42 | S16: 14 | T16: 14 | U16: 0 | V16: 0 | W16: 38 | X16: 0.9047619048
A17: Karloff,Helmut | B17: 16 | C17: 746 | D17: 398.1714286 | E17: -180 | F17: 15 | G17: 9.914285714 | H17: 5 | I17: 7 | J17: 1.714285714 | K17: 0 | L17: 8 | M17: 3.428571429 | N17: 0 | O17: 1618 | P17: 968.4571429 | Q17: -160 | R17: 35 | S17: 7 | T17: 7 | U17: 0 | V17: 0 | W17: 60 | X17: 1.714285714
A18: Kraus,Mario | B18: 10 | C18: 914 | D18: 365.8235294 | E18: 80 | F18: 13 | G18: 8.176470588 | H18: 4 | I18: 4 | J18: 0.9019607843 | K18: 0 | L18: 10 | M18: 5.039215686 | N18: 1 | O18: 1664 | P18: 945.627451 | Q18: 250 | R18: 51 | S18: 8 | T18: 8 | U18: 0 | V18: 0 | W18: 46 | X18: 0.9019607843
A19: Kunstmann,Paul | B19: 30 | C19: 833 | D19: 384.125 | E19: 33 | F19: 15 | G19: 11.25 | H19: 7 | I19: 5 | J19: 2.4375 | K19: 0 | L19: 7 | M19: 3.625 | N19: 0 | O19: 1723 | P19: 969.125 | Q19: 463 | R19: 16 | S19: 6 | T19: 6 | U19: 0 | V19: 0 | W19: 39 | X19: 2.4375
A20: Liebing,Theodor | B20: 1 | C20: 931 | D20: 406.2321429 | E20: 49 | F20: 18 | G20: 11.375 | H20: 4 | I20: 5 | J20: 1.910714286 | K20: 0 | L20: 8 | M20: 4.232142857 | N20: 1 | O20: 1761 | P20: 1058.196429 | Q20: 407 | R20: 56 | S20: 18 | T20: 18 | U20: 0 | V20: 0 | W20: 107 | X20: 1.910714286
A21: Lipfert,Ingrid | B21: 24 | C21: 668 | D21: 249.7647059 | E21: -42 | F21: 13 | G21: 6.558823529 | H21: 0 | I21: 3 | J21: 1.147058824 | K21: 0 | L21: 9 | M21: 4.705882353 | N21: 1 | O21: 1388 | P21: 730.3529412 | Q21: 148 | R21: 34 | S21: 7 | T21: 7 | U21: 0 | V21: 0 | W21: 39 | X21: 1.147058824
A22: Lippold,Michael | B22: 15 | C22: 863 | D22: 363.8108108 | E22: -89 | F22: 18 | G22: 11.45945946 | H22: 5 | I22: 7 | J22: 2.837837838 | K22: 0 | L22: 7 | M22: 3.459459459 | N22: 1 | O22: 1683 | P22: 952.7297297 | Q22: 31 | R22: 37 | S22: 9 | T22: 9 | U22: 0 | V22: 0 | W22: 105 | X22: 2.837837838
A23: Nitzschke,Andreas | B23: 2 | C23: 931 | D23: 397.8636364 | E23: -208 | F23: 18 | G23: 10.52272727 | H23: 5 | I23: 6 | J23: 1.659090909 | K23: 0 | L23: 8 | M23: 4.295454545 | N23: 2 | O23: 2031 | P23: 1031.045455 | Q23: 122 | R23: 44 | S23: 16 | T23: 16 | U23: 0 | V23: 0 | W23: 73 | X23: 1.659090909
A24: Nitzschke,Holger | B24: 6 | C24: 949 | D24: 370.5333333 | E24: 16 | F24: 16 | G24: 10.44444444 | H24: 4 | I24: 5 | J24: 1.977777778 | K24: 0 | L24: 7 | M24: 3.777777778 | N24: 0 | O24: 1597 | P24: 971.6444444 | Q24: 284 | R24: 45 | S24: 8 | T24: 8 | U24: 0 | V24: 0 | W24: 89 | X24: 1.977777778
A25: Pampa,Jakob | B25: 31 | C25: 685 | D25: 243.9444444 | E25: -249 | F25: 20 | G25: 11.22222222 | H25: 3 | I25: 7 | J25: 3.388888889 | K25: 0 | L25: 7 | M25: 3.222222222 | N25: 0 | O25: 1625 | P25: 775.0555556 | Q25: -50 | R25: 18 | S25: 3 | T25: 3 | U25: 0 | V25: 0 | W25: 61 | X25: 3.388888889
A26: Pieper,Florian | B26: 4 | C26: 868 | D26: 386.6041667 | E26: 58 | F26: 19 | G26: 12.125 | H26: 7 | I26: 7 | J26: 2.854166667 | K26: 0 | L26: 9 | M26: 3.25 | N26: 0 | O26: 1709 | P26: 1002.4375 | Q26: 418 | R26: 48 | S26: 23 | T26: 23 | U26: 0 | V26: 0 | W26: 137 | X26: 2.854166667
A27: Radant,Florian | B27: 5 | C27: 860 | D27: 386.2444444 | E27: -156 | F27: 16 | G27: 10.75555556 | H27: 3 | I27: 7 | J27: 2.133333333 | K27: 0 | L27: 8 | M27: 3.777777778 | N27: 1 | O27: 1642 | P27: 980.6888889 | Q27: -6 | R27: 45 | S27: 13 | T27: 13 | U27: 0 | V27: 0 | W27: 96 | X27: 2.133333333
A28: Reinhold,Gabriele | B28: 19 | C28: 719 | D28: 290.2608696 | E28: -54 | F28: 16 | G28: 8.217391304 | H28: 4 | I28: 5 | J28: 1.52173913 | K28: 0 | L28: 8 | M28: 4.456521739 | N28: 0 | O28: 1549 | P28: 810.9130435 | Q28: 76 | R28: 46 | S28: 16 | T28: 16 | U28: 0 | V28: 0 | W28: 70 | X28: 1.52173913
A29: Richter,Claus | B29: 26 | C29: 605 | D29: 288.7428571 | E29: -92 | F29: 13 | G29: 8.342857143 | H29: 3 | I29: 4 | J29: 1.742857143 | K29: 0 | L29: 7 | M29: 3.771428571 | N29: 1 | O29: 1349 | P29: 781.3142857 | Q29: 48 | R29: 35 | S29: 10 | T29: 10 | U29: 0 | V29: 0 | W29: 61 | X29: 1.742857143
A30: Richter Dr.,Irmhild | B30: 28 | C30: 619 | D30: 211.1153846 | E30: -150 | F30: 11 | G30: 7.269230769 | H30: 2 | I30: 4 | J30: 1.846153846 | K30: 0 | L30: 7 | M30: 3.846153846 | N30: 1 | O30: 1409 | P30: 643.8076923 | Q30: 0 | R30: 26 | S30: 8 | T30: 8 | U30: 0 | V30: 0 | W30: 48 | X30: 1.846153846
A31: Richter,Thomas | B31: 32 | C31: 766 | D31: 431.3333333 | E31: 82 | F31: 15 | G31: 11.44444444 | H31: 7 | I31: 6 | J31: 2.777777778 | K31: 1 | L31: 6 | M31: 2.888888889 | N31: 0 | O31: 1586 | P31: 989.1111111 | Q31: 182 | R31: 9 | S31: 4 | T31: 4 | U31: 0 | V31: 0 | W31: 25 | X31: 2.777777778
A32: Rödiger,Marc | B32: 18 | C32: 757 | D32: 397.3333333 | E32: -37 | F32: 14 | G32: 9.515151515 | H32: 5 | I32: 4 | J32: 1.454545455 | K32: 0 | L32: 10 | M32: 4.03030303 | N32: 0 | O32: 1517 | P32: 973.3939394 | Q32: 267 | R32: 33 | S32: 5 | T32: 5 | U32: 0 | V32: 0 | W32: 48 | X32: 1.454545455
A33: Schmidt,Gerd | B33: 13 | C33: 849 | D33: 372.3030303 | E33: -127 | F33: 16 | G33: 10.60606061 | H33: 5 | I33: 6 | J33: 2.590909091 | K33: 0 | L33: 8 | M33: 3.560606061 | N33: 0 | O33: 1669 | P33: 931.5454545 | Q33: -117 | R33: 66 | S33: 14 | T33: 14 | U33: 0 | V33: 0 | W33: 171 | X33: 2.590909091
A34: Schmidt,Silvia | B34: 27 | C34: 454 | D34: 206.4827586 | E34: -111 | F34: 10 | G34: 6.862068966 | H34: 3 | I34: 5 | J34: 1.896551724 | K34: 0 | L34: 7 | M34: 3.551724138 | N34: 1 | O34: 1004 | P34: 602 | Q34: 87 | R34: 29 | S34: 1 | T34: 1 | U34: 0 | V34: 0 | W34: 55 | X34: 1.896551724
A35: Stollberg,Benjamin | B35: 3 | C35: 762 | D35: 386.8444444 | E35: 51 | F35: 16 | G35: 10.33333333 | H35: 5 | I35: 7 | J35: 1.622222222 | K35: 0 | L35: 10 | M35: 4.066666667 | N35: 0 | O35: 1603 | P35: 1007.955556 | Q35: 362 | R35: 45 | S35: 8 | T35: 8 | U35: 0 | V35: 0 | W35: 73 | X35: 1.622222222
A36: Stopp,Reiner | B36: 11 | C36: 886 | D36: 346.1791045 | E36: -75 | F36: 17 | G36: 10.62686567 | H36: 2 | I36: 5 | J36: 2.074626866 | K36: 0 | L36: 10 | M36: 3.731343284 | N36: 0 | O36: 1655 | P36: 940.5074627 | Q36: 195 | R36: 67 | S36: 17 | T36: 17 | U36: 0 | V36: 0 | W36: 139 | X36: 2.074626866
A37: Thiemer,Hartmut | B37: 7 | C37: 832 | D37: 381.38 | E37: -102 | F37: 14 | G37: 8.8 | H37: 4 | I37: 4 | J37: 1.1 | K37: 0 | L37: 10 | M37: 4.42 | N37: 1 | O37: 1602 | P37: 960.58 | Q37: 118 | R37: 50 | S37: 16 | T37: 16 | U37: 0 | V37: 0 | W37: 55 | X37: 1.1
